Workbook

Sheet Example 6.1
A1: A Beginners Guide to the Steel Construction Manual, 16th ed. | H1: last modified: 29 May 2023
A2: Example 6.1 | H2: by: TBQ
A14: Solution:
A16: Results Summary: (Calculations follow)
E18: Controlling
B19: Section | D19: (KL/r) | E19: Direction
B20: =+B45 -> C10X30 | D20: =+H45 -> 179.6407186 | E20: Weak
B21: =+B46 -> W14X30 | D21: 80.53691275 | E21: Weak
B22: =+B47 -> HSS7X4X1/2 | D22: 157.5 | E22: Strong
B23: =+B48 -> HSS10X0.312 | D23: 110.2040816 | E23: N/A
A26: The figure illustrates the buckling parameters in each principle plane.
A28: Determine the effective length coefficient(s) in each plane:
B31: Strong Plane/Direction: | E31: Weak Plane/Direction:
B32: Unbraced, Fixed, Pinned | E32: Braced, Pinned, Pinned
F34: Lower | G34: Upper
B35: Kx | C35: 2.1 | E35: Ky | F35: 1 | G35: 1
B36: Lx | C36: 15 | D36: ft | E36: Ly | F36: 5 | G36: 10 | H36: ft
B37: (KL)x | C37: =+C35*C36 -> 31.5 | D37: ft | E37: (KL)y | F37: =+F35*F36 -> 5 | G37: =+G35*G36 -> 10 | H37: ft
E38: Controlling (KL)y | G38: 10 | H38: ft
A40: Determine the slenderness ratios for each section
B42: Section | D42: Strong Plane/Direction | F42: Weak Plane/Direction | H42: Controlling
D43: rx | E43: (KL/r)x | F43: ry | G43: (KL/r)y | H43: (KL/r) | I43: Plane
D44: (in) | F44: (in)
A45: a. | B45: C10X30 | D45: 3.42 | E45: =+C$37*12/D45 -> 110.5263158 | F45: 0.668 | G45: =12*G$37/F45 -> 179.6407186 | H45: =+MAX(E45,G45) -> 179.6407186 | I45: Weak
A46: b. | B46: W14X30 | D46: 5.73 | E46: =+C$37*12/D46 -> 65.96858639 | F46: 1.49 | G46: =12*G$37/F46 -> 80.53691275 | H46: =+MAX(E46,G46) -> 80.53691275 | I46: Weak
A47: c. | B47: HSS7X4X1/2 | D47: 2.4 | E47: =+C$37*12/D47 -> 157.5 | F47: 1.53 | G47: =12*G$37/F47 -> 78.43137255 | H47: =+MAX(E47,G47) -> 157.5 | I47: Strong
A48: d. | B48: HSS10X0.312 | D48: 3.43 | E48: =+C$37*12/D48 -> 110.2040816 | F48: 3.43 | G48: =12*G$37/F48 -> 34.98542274 | H48: =+MAX(E48,G48) -> 110.2040816 | I48: N/A

Sheet Example 6.2
A1: A Beginners Guide to the Steel Construction Manual, 16th ed. | H1: last modified: 29 May 2023
A2: Example 6.2 | H2: by: TBQ
A13: Solution:
B14: See SCM Table B4.1a
C16: UnStiffened Element | G16: Stiffened Element | K16: Critical
A17: Section | C17: Case | D17: Coeff. | E17: b/t | F17: Fy | G17: Case | H17: Coeff. | I17: b/t | J17: Fy | K17: Fy
F18: (ksi) | J18: (ksi) | K18: (ksi)
A19: W18X35 | C19: 1 | D19: 0.56 | E19: 7.06 | F19: =29000*(D19/E19)^2 -> 182.4587309 | G19: 5 | H19: 1.49 | I19: 53.5 | J19: =29000*(H19/I19)^2 -> 22.49380732 | K19: =MIN(F19,J19) -> 22.49380732
A20: C9X13.4 | C20: 1 | D20: 0.56 | E20: 5.88 | F20: =29000*(D20/E20)^2 -> 263.0385488 | G20: 5 | H20: 1.49 | I20: 30.04 | J20: =29000*(H20/I20)^2 -> 71.34617226 | K20: =MIN(F20,J20) -> 71.34617226
A21: HSS10X4X1/8 | C21: N/A | D21: ------ | E21: ------ | F21: ------ | G21: 6 | H21: 1.4 | I21: 83.2 | J21: =29000*(H21/I21)^2 -> 8.211214867 | K21: =MIN(F21,J21) -> 8.211214867
A22: HSS7.500X0.188 | C22: N/A | D22: ------ | E22: ------ | F22: ------ | G22: 9 | H22: 0.11 | I22: 40.2 | J22: =29000*(H22/I22) -> 79.35323383 | K22: =MIN(F22,J22) -> 79.35323383
A23: M4X6 | C23: 1 | D23: 0.56 | E23: 11.9 | F23: =29000*(D23/E23)^2 -> 64.22145329 | G23: 5 | H23: 1.49 | I23: 22 | J23: =29000*(H23/I23)^2 -> 133.0225207 | K23: =MIN(F23,J23) -> 64.22145329
A26: The critical Fy is the yield stress at which the member is considered to be slender for axial compresson.
A27: See SCM Table B4.1 (pg 16.1-16) for slenderness criteria equations.

Sheet Example 6.3
A1: A Beginners Guide to the Steel Construction Manual, 16th ed. | H1: last modified: 29 May 2023
A2: Example 6.3 | H2: by: TBQ
A10: Solution:
B12: Solution Summary: Column effective lengths
F14: Grid
B15: In Plane: | C15: Level | D15: 1 | E15: 2 | F15: 3 | G15: 4
D16: (ft) | E16: (ft) | F16: (ft) | G16: (ft)
C17: 3rd flr | D17: =+N61 -> 13.2 | E17: =+N99 -> 15.6 | F17: =+N137 -> 21.48 | G17: =+N175 -> 28.56
C18: 2nd flr | D18: =+N63 -> 6.75 | E18: =+N101 -> 8 | F18: =+N139 -> 8.6 | G18: =+N177 -> 8.4
C19: 1st flr | D19: =+N65 -> 13.75 | E19: =+N103 -> 20.57 | F19: =+N141 -> 20.68 | G19: =+N179 -> 14.19
B22: Out of Plane | D22: Grid
C23: Level | D23: All
D24: (ft)
C25: 3rd flr | D25: =+E36 -> 12
C26: 2nd flr | D26: =+E37 -> 10
C27: 1st flr top | D27: =+E38 -> 5.5
C28: 1st ftr btm | D28: =+E39 -> 5.5
A31: Grid 1: Strong Axis Bending
B34: Level | C34: L | D34: K | E34: KL
C35: (ft) | E35: (ft)
B36: 3rd flr | C36: 12 | D36: 1 | E36: =+C36*D36 -> 12
B37: 2nd flr | C37: 10 | D37: 1 | E37: =+C37*D37 -> 10
B38: 1st flr top | C38: 5.5 | D38: 1 | E38: =+C38*D38 -> 5.5
B39: 1st ftr btm | C39: 5.5 | D39: 1 | E39: =+C39*D39 -> 5.5
B42: In this direction, all joints are braced and there are no intersecting
B43: beams that cause rotational restraint in the plane of the web.
A48: Grid 1: Weak Axis Bending
C50: Height | D50: Column | E50: Bending | F50: Left Girder | H50: Right Girder
B51: Level | C51: below | D51: Below | E51: Axis | F51: Section | G51: Length | H51: Section | I51: Length
C52: (ft) | G52: (ft) | I52: (ft)
B53: Roof | C53: 12 | D53: W14X82 | E53: W | F53: ---- | G53: 0 | H53: W21X50 | I53: 20
B54: 3rd | C54: 10 | D54: =+D53 -> W14X82 | E54: =+E53 -> W | F54: ---- | G54: 0 | H54: W21X55 | I54: 20
B55: 2nd | C55: 11 | D55: =+D54 -> W14X82 | E55: =+E54 -> W | F55: ---- | G55: 0 | H55: W21X55 | I55: 20
B56: Fndtn
A58: Level | B58: Joint | C58: Ic,above | D58: Lc,above | E58: Ic,below | F58: Lc,below | G58: lg,left | H58: Lg,left | I58: Ig,right | J58: Lg,right | K58: G | L58: Sidesway | M58: K | N58: KL
C59: (in4) | D59: (ft) | E59: (in4) | F59: (ft) | G59: (in4) | H59: (ft) | I59: (in4) | J59: (ft) | M59: frm Nomographs | N59: (ft)
B60: Roof | C60: 0 | D60: 1e-09 | E60: =VLOOKUP(D53,StlSects,IF(E53="W",34,30)) -> 148 | F60: =+C53 -> 12 | G60: =IF(F53="----",0,VLOOKUP(F53,StlSects,30)) -> 0 | H60: =IF(G53=0,0.00001,G53) -> 1e-05 | I60: =IF(H53="----",0,VLOOKUP(H53,StlSects,30)) -> 984 | J60: =IF(I53=0,0.00001,I53) -> 20 | K60: =IF(AND(G60=0,I60=0),10,(C60/D60+E60/F60)/(G60/H60+I60/J60)) -> 0.2506775068
A61: 3rd floor | L61: Uninhibited | M61: 1.1 | N61: =+M61*C53 -> 13.2
B62: 3rd | C62: =VLOOKUP(D53,StlSects,IF(E53="W",34,30)) -> 148 | D62: =+C53 -> 12 | E62: =VLOOKUP(D54,StlSects,IF(E54="W",34,30)) -> 148 | F62: =+C54 -> 10 | G62: =IF(F54="----",0,VLOOKUP(F54,StlSects,30)) -> 0 | H62: =IF(G54=0,0.00001,G54) -> 1e-05 | I62: =IF(H54="----",0,VLOOKUP(H54,StlSects,30)) -> 1140 | J62: =IF(I54=0,0.00001,I54) -> 20 | K62: =IF(AND(G62=0,I62=0),10,(C62/D62+E62/F62)/(G62/H62+I62/J62)) -> 0.4760233918
A63: 2nd floor | L63: Inhibited | M63: 0.675 | N63: =+M63*C54 -> 6.75
B64: 2nd | C64: =VLOOKUP(D54,StlSects,IF(E54="W",34,30)) -> 148 | D64: =+C54 -> 10 | E64: =VLOOKUP(D55,StlSects,IF(E55="W",34,30)) -> 148 | F64: =+C55 -> 11 | G64: =IF(F55="----",0,VLOOKUP(F55,StlSects,30)) -> 0 | H64: =IF(G55=0,0.00001,G55) -> 1e-05 | I64: =IF(H55="----",0,VLOOKUP(H55,StlSects,30)) -> 1140 | J64: =IF(I55=0,0.00001,I55) -> 20 | K64: =IF(AND(G64=0,I64=0),10,(C64/D64+E64/F64)/(G64/H64+I64/J64)) -> 0.4956937799
A65: 1st floor | L65: Uninhibited | M65: 1.25 | N65: =+M65*C55 -> 13.75
B66: Fndtn | C66: =VLOOKUP(D55,StlSects,IF(E55="W",34,30)) -> 148 | D66: =+C55 -> 11 | E66: ---- | F66: ---- | G66: ---- | H66: ---- | I66: ---- | J66: ---- | K66: 1
A69: Grid 2: Weak Axis Bending
B72: Level | C72: L | D72: K | E72: KL
C73: (ft) | E73: (ft)
B74: 3rd flr | C74: 12 | D74: 1 | E74: =+C74*D74 -> 12
B75: 2nd flr | C75: 10 | D75: 1 | E75: =+C75*D75 -> 10
B76: 1st flr top | C76: 5.5 | D76: 1 | E76: =+C76*D76 -> 5.5
B77: 1st ftr btm | C77: 5.5 | D77: 1 | E77: =+C77*D77 -> 5.5
B80: In this direction, all joints are braced and there are no intersecting
B81: beams that cause rotational restraint in the plane of the flange
A86: Grid 2: Strong Axis Bending
C88: Height | D88: Column | E88: Bending | F88: Left Girder | H88: Right Girder
B89: Level | C89: below | D89: Below | E89: Axis | F89: Section | G89: Length | H89: Section | I89: Length
C90: (ft) | G90: (ft) | I90: (ft)
B91: Roof | C91: 12 | D91: W12X65 | E91: S | F91: W21X50 | G91: 20 | H91: W21X62 | I91: 30
B92: 3rd | C92: 10 | D92: =+D91 -> W12X65 | E92: =+E91 -> S | F92: W21X55 | G92: 20 | H92: ---- | I92: 30
B93: 2nd | C93: 11 | D93: =+D92 -> W12X65 | E93: =+E92 -> S | F93: W21X55 | G93: 20 | H93: W24X68 | I93: 30
B94: Fndtn
A96: Level | B96: Joint | C96: Ic,above | D96: Lc,above | E96: Ic,below | F96: Lc,below | G96: lg,left | H96: Lg,left | I96: Ig,right | J96: Lg,right | K96: G | L96: Sidesway | M96: K | N96: KL
C97: (in4) | D97: (ft) | E97: (in4) | F97: (ft) | G97: (in4) | H97: (ft) | I97: (in4) | J97: (ft) | M97: frm Nomographs | N97: (ft)
B98: Roof | C98: 0 | D98: 1e-09 | E98: =VLOOKUP(D91,StlSects,IF(E91="W",34,30)) -> 533 | F98: =+C91 -> 12 | G98: =IF(F91="----",0,VLOOKUP(F91,StlSects,30)) -> 984 | H98: =IF(G91=0,0.00001,G91) -> 20 | I98: =IF(H91="----",0,VLOOKUP(H91,StlSects,30)) -> 1330 | J98: =IF(I91=0,0.00001,I91) -> 30 | K98: =IF(AND(G98=0,I98=0),10,(C98/D98+E98/F98)/(G98/H98+I98/J98)) -> 0.4748752673
A99: 3rd floor | L99: =+L61 -> Uninhibited | M99: 1.3 | N99: =+M99*C91 -> 15.6
B100: 3rd | C100: =VLOOKUP(D91,StlSects,IF(E91="W",34,30)) -> 533 | D100: =+C91 -> 12 | E100: =VLOOKUP(D92,StlSects,IF(E92="W",34,30)) -> 533 | F100: =+C92 -> 10 | G100: =IF(F92="----",0,VLOOKUP(F92,StlSects,30)) -> 1140 | H100: =IF(G92=0,0.00001,G92) -> 20 | I100: =IF(H92="----",0,VLOOKUP(H92,StlSects,30)) -> 0 | J100: =IF(I92=0,0.00001,I92) -> 30 | K100: =IF(AND(G100=0,I100=0),10,(C100/D100+E100/F100)/(G100/H100+I100/J100)) -> 1.714327485
A101: 2nd floor | L101: =+L63 -> Inhibited | M101: 0.8 | N101: =+M101*C92 -> 8
B102: 2nd | C102: =VLOOKUP(D92,StlSects,IF(E92="W",34,30)) -> 533 | D102: =+C92 -> 10 | E102: =VLOOKUP(D93,StlSects,IF(E93="W",34,30)) -> 533 | F102: =+C93 -> 11 | G102: =IF(F93="----",0,VLOOKUP(F93,StlSects,30)) -> 1140 | H102: =IF(G93=0,0.00001,G93) -> 20 | I102: =IF(H93="----",0,VLOOKUP(H93,StlSects,30)) -> 1830 | J102: =IF(I93=0,0.00001,I93) -> 30 | K102: =IF(AND(G102=0,I102=0),10,(C102/D102+E102/F102)/(G102/H102+I102/J102)) -> 0.8623266564
A103: 1st floor | L103: =+L65 -> Uninhibited | M103: 1.87 | N103: =+M103*C93 -> 20.57
B104: Fndtn | C104: =VLOOKUP(D93,StlSects,IF(E93="W",34,30)) -> 533 | D104: =+C93 -> 11 | E104: ---- | F104: ---- | G104: ---- | H104: ---- | I104: ---- | J104: ---- | K104: 10
A107: Grid 3: Weak Axis Bending
B110: Level | C110: L | D110: K | E110: KL
C111: (ft) | E111: (ft)
B112: 3rd flr | C112: 12 | D112: 1 | E112: =+C112*D112 -> 12
B113: 2nd flr | C113: 10 | D113: 1 | E113: =+C113*D113 -> 10
B114: 1st flr top | C114: 5.5 | D114: 1 | E114: =+C114*D114 -> 5.5
B115: 1st ftr btm | C115: 5.5 | D115: 1 | E115: =+C115*D115 -> 5.5
B118: In this direction, all joints are braced and there are no intersecting
B119: beams that cause rotational restraint in the plane of the flange
A124: Grid 3: Strong Axis Bending
C126: Height | D126: Column | E126: Bending | F126: Left Girder | H126: Right Girder
B127: Level | C127: below | D127: Below | E127: Axis | F127: Section | G127: Length | H127: Section | I127: Length
C128: (ft) | G128: (ft) | I128: (ft)
B129: Roof | C129: 12 | D129: W12X65 | E129: S | F129: W21X62 | G129: 30 | H129: W18X35 | I129: 15
B130: 3rd | C130: 10 | D130: =+D129 -> W12X65 | E130: =+E129 -> S | F130: ---- | G130: 30 | H130: ---- | I130: 15
B131: 2nd | C131: 11 | D131: =+D130 -> W12X65 | E131: =+E130 -> S | F131: W24X68 | G131: 30 | H131: W18X35 | I131: 15
B132: Fndtn
A134: Level | B134: Joint | C134: Ic,above | D134: Lc,above | E134: Ic,below | F134: Lc,below | G134: lg,left | H134: Lg,left | I134: Ig,right | J134: Lg,right | K134: G | L134: Sidesway | M134: K | N134: KL
C135: (in4) | D135: (ft) | E135: (in4) | F135: (ft) | G135: (in4) | H135: (ft) | I135: (in4) | J135: (ft) | M135: frm Nomographs | N135: (ft)
B136: Roof | C136: 0 | D136: 1e-09 | E136: =VLOOKUP(D129,StlSects,IF(E129="W",34,30)) -> 533 | F136: =+C129 -> 12 | G136: =IF(F129="----",0,VLOOKUP(F129,StlSects,30)) -> 1330 | H136: =IF(G129=0,0.00001,G129) -> 30 | I136: =IF(H129="----",0,VLOOKUP(H129,StlSects,30)) -> 510 | J136: =IF(I129=0,0.00001,I129) -> 15 | K136: =IF(AND(G136=0,I136=0),10,(C136/D136+E136/F136)/(G136/H136+I136/J136)) -> 0.5670212766
A137: 3rd floor | L137: =+L61 -> Uninhibited | M137: 1.79 | N137: =+M137*C129 -> 21.48
B138: 3rd | C138: =VLOOKUP(D129,StlSects,IF(E129="W",34,30)) -> 533 | D138: =+C129 -> 12 | E138: =VLOOKUP(D130,StlSects,IF(E130="W",34,30)) -> 533 | F138: =+C130 -> 10 | G138: =IF(F130="----",0,VLOOKUP(F130,StlSects,30)) -> 0 | H138: =IF(G130=0,0.00001,G130) -> 30 | I138: =IF(H130="----",0,VLOOKUP(H130,StlSects,30)) -> 0 | J138: =IF(I130=0,0.00001,I130) -> 15 | K138: =IF(AND(G138=0,I138=0),10,(C138/D138+E138/F138)/(G138/H138+I138/J138)) -> 10
A139: 2nd floor | L139: =+L63 -> Inhibited | M139: 0.86 | N139: =+M139*C130 -> 8.6
B140: 2nd | C140: =VLOOKUP(D130,StlSects,IF(E130="W",34,30)) -> 533 | D140: =+C130 -> 10 | E140: =VLOOKUP(D131,StlSects,IF(E131="W",34,30)) -> 533 | F140: =+C131 -> 11 | G140: =IF(F131="----",0,VLOOKUP(F131,StlSects,30)) -> 1830 | H140: =IF(G131=0,0.00001,G131) -> 30 | I140: =IF(H131="----",0,VLOOKUP(H131,StlSects,30)) -> 510 | J140: =IF(I131=0,0.00001,I131) -> 15 | K140: =IF(AND(G140=0,I140=0),10,(C140/D140+E140/F140)/(G140/H140+I140/J140)) -> 1.071100478
A141: 1st floor | L141: =+L65 -> Uninhibited | M141: 1.88 | N141: =+M141*C131 -> 20.68
B142: Fndtn | C142: =VLOOKUP(D131,StlSects,IF(E131="W",34,30)) -> 533 | D142: =+C131 -> 11 | E142: ---- | F142: ---- | G142: ---- | H142: ---- | I142: ---- | J142: ---- | K142: 10
A145: Grid 4: Strong Axis Bending
B148: Level | C148: L | D148: K | E148: KL
C149: (ft) | E149: (ft)
B150: 3rd flr | C150: 12 | D150: 1 | E150: =+C150*D150 -> 12
B151: 2nd flr | C151: 10 | D151: 1 | E151: =+C151*D151 -> 10
B152: 1st flr top | C152: 5.5 | D152: 1 | E152: =+C152*D152 -> 5.5
B153: 1st ftr btm | C153: 5.5 | D153: 1 | E153: =+C153*D153 -> 5.5
B156: In this direction, all joints are braced and there are no intersecting
B157: beams that cause rotational restraint in the plane of the flange
A162: Grid 4: Weak Axis Bending
C164: Height | D164: Column | E164: Bending | F164: Left Girder | H164: Right Girder
B165: Level | C165: below | D165: Below | E165: Axis | F165: Section | G165: Length | H165: Section | I165: Length
C166: (ft) | G166: (ft) | I166: (ft)
B167: Roof | C167: 12 | D167: W14X82 | E167: W | F167: W18X35 | G167: 15 | H167: ---- | I167: 0
B168: 3rd | C168: 10 | D168: =+D167 -> W14X82 | E168: =+E167 -> W | F168: ---- | G168: 15 | H168: ---- | I168: 0
B169: 2nd | C169: 11 | D169: =+D168 -> W14X82 | E169: =+E168 -> W | F169: W18X35 | G169: 15 | H169: ---- | I169: 0
B170: Fndtn
A172: Level | B172: Joint | C172: Ic,above | D172: Lc,above | E172: Ic,below | F172: Lc,below | G172: lg,left | H172: Lg,left | I172: Ig,right | J172: Lg,right | K172: G | L172: Sidesway | M172: K | N172: KL
C173: (in4) | D173: (ft) | E173: (in4) | F173: (ft) | G173: (in4) | H173: (ft) | I173: (in4) | J173: (ft) | M173: frm Nomographs | N173: (ft)
B174: Roof | C174: 0 | D174: 1e-09 | E174: =VLOOKUP(D167,StlSects,IF(E167="W",34,30)) -> 148 | F174: =+C167 -> 12 | G174: =IF(F167="----",0,VLOOKUP(F167,StlSects,30)) -> 510 | H174: =IF(G167=0,0.00001,G167) -> 15 | I174: =IF(H167="----",0,VLOOKUP(H167,StlSects,30)) -> 0 | J174: =IF(I167=0,0.00001,I167) -> 1e-05 | K174: =IF(AND(G174=0,I174=0),10,(C174/D174+E174/F174)/(G174/H174+I174/J174)) -> 0.362745098
A175: 3rd floor | L175: =+L61 -> Uninhibited | M175: 2.38 | N175: =+M175*C167 -> 28.56
B176: 3rd | C176: =VLOOKUP(D167,StlSects,IF(E167="W",34,30)) -> 148 | D176: =+C167 -> 12 | E176: =VLOOKUP(D168,StlSects,IF(E168="W",34,30)) -> 148 | F176: =+C168 -> 10 | G176: =IF(F168="----",0,VLOOKUP(F168,StlSects,30)) -> 0 | H176: =IF(G168=0,0.00001,G168) -> 15 | I176: =IF(H168="----",0,VLOOKUP(H168,StlSects,30)) -> 0 | J176: =IF(I168=0,0.00001,I168) -> 1e-05 | K176: =IF(AND(G176=0,I176=0),10,(C176/D176+E176/F176)/(G176/H176+I176/J176)) -> 10
A177: 2nd floor | L177: =+L63 -> Inhibited | M177: 0.84 | N177: =+M177*C168 -> 8.4
B178: 2nd | C178: =VLOOKUP(D168,StlSects,IF(E168="W",34,30)) -> 148 | D178: =+C168 -> 10 | E178: =VLOOKUP(D169,StlSects,IF(E169="W",34,30)) -> 148 | F178: =+C169 -> 11 | G178: =IF(F169="----",0,VLOOKUP(F169,StlSects,30)) -> 510 | H178: =IF(G169=0,0.00001,G169) -> 15 | I178: =IF(H169="----",0,VLOOKUP(H169,StlSects,30)) -> 0 | J178: =IF(I169=0,0.00001,I169) -> 1e-05 | K178: =IF(AND(G178=0,I178=0),10,(C178/D178+E178/F178)/(G178/H178+I178/J178)) -> 0.8310160428
A179: 1st floor | L179: =+L65 -> Uninhibited | M179: 1.29 | N179: =+M179*C169 -> 14.19
B180: Fndtn | C180: =VLOOKUP(D169,StlSects,IF(E169="W",34,30)) -> 148 | D180: =+C169 -> 11 | E180: ---- | F180: ---- | G180: ---- | H180: ---- | I180: ---- | J180: ---- | K180: 1

Sheet SteelProps
B2: Fy | C2: Fu
A3: A36 | B3: 36 | C3: 58
A4: A36, PL of 8" thick | B4: 32 | C4: 58
A5: A500 Gr B, Rect HSS | B5: 46 | C5: 58
A6: A500 Gr B, Rnd HSS | B6: 42 | C6: 58
A7: A53 Gr. B, Pipe | B7: 35 | C7: 60
A8: A572 Gr 50 | B8: 50 | C8: 65
A9: A588 | B9: 50 | C9: 70
A10: A992 | B10: 50 | C10: 65

Sheet StlSubTables
B6: RndHSS | E6: RectHSS | H6: IShapes
B7: ---- | C7: =VLOOKUP(B7,StlSects,4) ->  | E7: ---- | F7: =VLOOKUP(E7,StlSects,4) ->  | H7: ---- | I7: =VLOOKUP(H7,StlSects,4) -> 
B8: HSS1.660X0.140 | C8: 2.274862147 | E8: HSS2X1X1/8 | F8: 2.194178528 | H8: S3X5.7 | I8: 5.7
B9: HSS1.900X0.120 | C9: 2.28341426 | E9: HSS2-1/2X1X1/8 | F9: 2.61952575 | H9: S3X7.5 | I9: 7.5
B10: HSS1.900X0.145 | C10: 2.720373801 | E10: HSS2X2X1/8 | F10: 2.61952575 | H10: S4X7.7 | I10: 7.7
B11: HSS2.375X0.125 | C11: 3.006602344 | E11: HSS2X2X1/8 | F11: 2.61952575 | H11: W6X8.5 | I11: 8.5
B12: HSS2.500X0.125 | C12: 3.173635808 | E12: HSS2X1X3/16 | F12: 3.028310854 | H12: W6X9 | I12: 9
B13: HSS1.900X0.188 | C13: 3.440686237 | E13: HSS2-1/2X1-1/2X1/8 | F13: 3.044872972 | H13: S4X9.5 | I13: 9.5
B14: HSS2.375X0.154 | C14: 3.656391915 | E14: HSS3X1X1/8 | F14: 3.044872972 | H14: S5X10 | I14: 10
B15: HSS2.875X0.125 | C15: 3.674736199 | E15: HSS2-1/4X2X1/8 | F15: 3.257546583 | H15: W8X10 | I15: 10
B16: HSS3X0.125 | C16: 3.841769662 | E16: HSS2-1/2X2X1/8 | F16: 3.470220194 | H16: W10X12 | I16: 12
B17: HSS3X0.134 | C17: 4.105484767 | E17: HSS2-1/4X2-1/4X1/8 | F17: 3.470220194 | H17: W6X12 | I17: 12
B18: HSS2.375X0.188 | C18: 4.395315888 | E18: HSS3X1-1/2X1/8 | F18: 3.470220194 | H18: S6X12.5 | I18: 12.5
B19: HSS3.500X0.125 | C19: 4.509903516 | E19: HSS2-1/2X1X3/16 | F19: 3.668033076 | H19: W4X13 | I19: 13
B20: HSS3X0.152 | C20: 4.627719568 | E20: HSS2X1-1/2X3/16 | F20: 3.668033076 | H20: W8X13 | I20: 13
B21: HSS2.500X0.188 | C21: 4.646534217 | E21: HSS2-1/2X2-1/2X1/8 | F21: 3.895567417 | H21: W12X14 | I21: 14
B22: HSS2.375X0.218 | C22: 5.026782556 | E22: HSS3-1/2X1-1/2X1/8 | F22: 3.895567417 | H22: W10X15 | I22: 15
B23: HSS4X0.125 | C23: 5.178037371 | E23: HSS3X2X1/8 | F23: 3.895567417 | H23: W6X15 | I23: 15
B24: HSS2.875X0.188 | C24: 5.400189205 | E24: HSS2X2X3/16 | F24: 4.298880854 | H24: W8X15 | I24: 15
B25: HSS3X0.188 | C25: 5.651407534 | E25: HSS2-1/2X1-1/2X3/16 | F25: 4.307755299 | H25: W12X16 | I25: 16
B26: HSS2.375X0.250 | C26: 5.679137761 | E26: HSS3X1X3/16 | F26: 4.307755299 | H26: W5X16 | I26: 16
B27: HSS2.875X0.203 | C27: 5.798503883 | E27: HSS3-1/2X2X1/8 | F27: 4.320914639 | H27: W6X16 | I27: 16
B28: HSS4.500X0.125 | C28: 5.846171225 | E28: HSS3X2-1/2X1/8 | F28: 4.320914639 | H28: W10X17 | I28: 17
B29: HSS2.500X0.250 | C29: 6.013204689 | E29: HSS2-1/4X2X3/16 | F29: 4.62761641 | H29: S6X17.2 | I29: 17.3
B30: HSS3X0.203 | C30: 6.069766228 | E30: HSS3X3X1/8 | F30: 4.746261861 | H30: W8X18 | I30: 18
B31: HSS3X0.216 | C31: 6.428452551 | E31: HSS4X2X1/8 | F31: 4.746261861 | H31: S8X18.4 | I31: 18.4
B32: HSS5X0.125 | C32: 6.514305079 | E32: HSS2-1/4X2-1/4X3/16 | F32: 4.936901687 | H32: W10X19 | I32: 19
B33: HSS3.500X0.188 | C33: 6.656280851 | E33: HSS2-1/2X2X3/16 | F33: 4.947477521 | H33: W12X19 | I33: 19
B34: HSS2.875X0.250 | C34: 7.01540547 | E34: HSS3X1-1/2X3/16 | F34: 4.947477521 | H34: W5X19 | I34: 19
B35: HSS3.500X0.203 | C35: 7.154815607 | E35: HSS4X2-1/2X1/8 | F35: 5.171609083 | H35: W6X20 | I35: 20
B36: HSS3X0.250 | C36: 7.349472397 | E36: HSS2-1/2X1-1/2X1/4 | F36: 5.37523797 | H36: W8X21 | I36: 21
B37: HSS3.500X0.216 | C37: 7.582987852 | E37: HSS2X2X1/4 | F37: 5.37523797 | H37: W10X22 | I37: 22
B38: HSS4X0.188 | C38: 7.661154168 | E38: HSS2-1/2X2-1/2X3/16 | F38: 5.574922521 | H38: W12X22 | I38: 22
B39: HSS5.563X0.134 | C39: =VLOOKUP(B39,StlSects,4) -> 7.776928402 | E39: HSS3-1/2X1-1/2X3/16 | F39: 5.587199743 | H39: W14X22 | I39: 22
B40: HSS6X0.125 | C40: 7.850572788 | E40: HSS3X2X3/16 | F40: 5.587199743 | H40: S8X23 | I40: 23
B41: HSS4.500X0.188 | C41: 8.666027484 | E41: HSS3-1/2X3-1/2X1/8 | F41: 5.596956306 | H41: W8X24 | I41: 24
B42: HSS3.500X0.250 | C42: 8.685740106 | E42: HSS4X3X1/8 | F42: 5.596956306 | H42: W6X25 | I42: 25
B43: HSS6.625X0.125 | C43: 8.685740106 | E43: HSS5X2X1/8 | F43: 5.596956306 | H43: S10X25.4 | I43: 25.4
B44: HSS4X0.220 | C44: 8.889921811 | E44: HSS5X2-1/2X1/8 | F44: 6.022303528 | H44: W10X26 | I44: 26
B45: HSS4X0.226 | C45: 9.117878392 | E45: HSS2-1/2X2X1/4 | F45: 6.225932414 | H45: W12X26 | I45: 26
B46: HSS7X0.125 | C46: 9.186840496 | E46: HSS2-1/4X2-1/4X1/4 | F46: 6.225932414 | H46: W14X26 | I46: 26
B47: HSS4X0.237 | C47: 9.533799734 | E47: HSS3X1-1/2X1/4 | F47: 6.225932414 | H47: W16X26 | I47: 26
B48: HSS5X0.188 | C48: 9.670900801 | E48: HSS3-1/2X2X3/16 | F48: 6.226921965 | H48: W8X28 | I48: 28
B49: HSS4X0.250 | C49: 10 | E49: HSS3X2-1/2X3/16 | F49: 6.226921965 | H49: W10X30 | I49: 30
B50: HSS3.500X0.300 | C50: 10.262536 | E50: HSS4X4X1/8 | F50: 6.44765075 | H50: W12X30 | I50: 30
B51: HSS3.500X0.313 | C51: 10.66374771 | E51: HSS5X3X1/8 | F51: 6.44765075 | H51: W14X30 | I51: 30
B52: HSS4.500X0.237 | C52: 10.80058152 | E52: HSS6X2X1/8 | F52: 6.44765075 | H52: W16X31 | I52: 31
B53: HSS5.563X0.188 | C53: 10.80238816 | E53: HSS3X3X3/16 | F53: 6.850964187 | H53: W8X31 | I53: 31
B54: HSS6X0.188 | C54: 11.68064743 | E54: HSS4X2X3/16 | F54: 6.866644187 | H54: S12X31.8 | I54: 31.8
B55: HSS4X0.313 | C55: 12.33675488 | E55: HSS2-1/2X2-1/2X1/4 | F55: 7.076626859 | H55: W10X33 | I55: 33
B56: HSS5X0.250 | C56: 12.69454323 | E56: HSS3-1/2X1-1/2X1/4 | F56: 7.076626859 | H56: W14X34 | I56: 34
B57: HSS6.625X0.188 | C57: 12.93673908 | E57: HSS3X2X1/4 | F57: 7.076626859 | H57: S10X35 | I57: 35
B58: HSS5X0.258 | C58: 13.07870416 | E58: HSS4-1/2X4-1/2X1/8 | F58: 7.298345194 | H58: S12X35 | I58: 35
B59: HSS6.875X0.188 | C59: 13.43917574 | E59: HSS5X4X1/8 | F59: 7.298345194 | H59: W12X35 | I59: 35
B60: HSS7X0.188 | C60: 13.69039407 | E60: HSS6X3X1/8 | F60: 7.298345194 | H60: W18X35 | I60: 35
B61: HSS5.500X0.258 | C61: 14.45773244 | E61: HSS7X2X1/4 | F61: 7.298345194 | H61: W8X35 | I61: 35
B62: HSS5.563X0.258 | C62: 14.63149 | E62: HSS4X2-1/2X3/16 | F62: 7.50636641 | H62: W16X36 | I62: 36
B63: HSS7.500X0.188 | C63: 14.69526739 | E63: HSS3-1/2X2X1/4 | F63: 7.927321303 | H63: W14X38 | I63: 38
B64: HSS4.500X0.337 | C64: 14.99753114 | E64: HSS3X2-1/2X1/4 | F64: 7.927321303 | H64: W10X39 | I64: 39
B65: HSS6X0.250 | C65: 15.36707865 | E65: HSS3-1/2X3-1/2X3/16 | F65: 8.127005854 | H65: W12X40 | I65: 40
B66: HSS5X0.312 | C66: 15.63599985 | E66: HSS4X3X3/16 | F66: 8.146088632 | H66: W16X40 | I66: 40
B67: HSS4.500X0.375 | C67: 16.53631289 | E67: HSS5X2X3/16 | F67: 8.146088632 | H67: W18X40 | I67: 40
B68: HSS8.625X0.188 | C68: 16.95623235 | E68: HSS5X5X1/8 | F68: 8.149039639 | H68: W8X40 | I68: 40
B69: HSS6.625X0.250 | C69: 17.03741328 | E69: HSS6X4X1/8 | F69: 8.149039639 | H69: S12X40.8 | I69: 40.8
B70: HSS6X0.280 | C70: 17.1213309 | E70: HSS7X3X1/8 | F70: 8.149039639 | H70: S15X42.9 | I70: 42.9
B71: HSS6.875X0.250 | C71: =VLOOKUP(B71,StlSects,4) -> 17.70554714 | E71: HSS8X2X1/8 | F71: =VLOOKUP(E71,StlSects,4) -> 8.149039639 | H71: W14X43 | I71: =VLOOKUP(H71,StlSects,4) -> 43
B72: HSS7X0.250 | C72: 18.03961407 | E72: HSS2-1/2X2-1/2X5/16 | F72: 8.398394549 | H72: W21X44 | I72: 44
B73: HSS5X0.375 | C73: 18.54071446 | E73: HSS3X2X5/16 | F73: 8.407486771 | H73: W10X45 | I73: 45
B74: HSS9.625X0.188 | C74: 18.96597898 | E74: HSS3X3X1/4 | F74: 8.778015748 | H74: W12X45 | I74: 45
B75: HSS6X0.312 | C75: 18.97132405 | E75: HSS4X2X1/4 | F75: 8.778015748 | H75: W16X45 | I75: 45
B76: HSS6.625X0.280 | C76: 18.99210569 | E76: HSS5X2-1/2X3/16 | F76: 8.785810854 | H76: W18X46 | I76: 46
B77: HSS7.500X0.250 | C77: 19.37588177 | E77: HSS5-1/2X5-1/2X1/8 | F77: 8.999734083 | H77: W14X48 | I77: 48
B78: HSS10X0.188 | C78: 19.71963397 | E78: HSS6X5X1/8 | F78: 8.999734083 | H78: W21X48 | I78: 48
B79: HSS5.500X0.375 | C79: 20.54511602 | E79: HSS7X4X1/8 | F79: 8.999734083 | H79: W8X48 | I79: 48
B80: HSS5.563X0.375 | C80: 20.79767062 | E80: HSS8X3X1/8 | F80: 8.999734083 | H80: W10X49 | I80: 49
B81: HSS6.625X0.312 | C81: 21.05590168 | E81: HSS4X4X3/16 | F81: 9.403047521 | H81: S12X50 | I81: 50
B82: HSS6.875X0.312 | C82: 21.88973273 | E82: HSS5X3X3/16 | F82: 9.425533076 | H82: S15X50 | I82: 50
B83: HSS7X0.312 | C83: 22.30664825 | E83: HSS6X2X3/16 | F83: 9.425533076 | H83: W12X50 | I83: 50
B84: HSS8.625X0.250 | C84: 22.38248412 | E84: HSS3X2-1/2X5/16 | F84: 9.472556215 | H84: W16X50 | I84: 50
B85: HSS6X0.375 | C85: 22.54951758 | E85: HSS4X2-1/2X1/4 | F85: 9.628710192 | H85: W18X50 | I85: 50
B86: HSS7.500X0.312 | C86: 23.97431035 | E86: HSS10X2X1/8 | F86: 9.850428528 | H86: W21X50 | I86: 50
B87: HSS5X0.500 | C87: 24.05281875 | E87: HSS6X6X1/8 | F87: 9.850428528 | H87: W12X53 | I87: 53
B88: HSS6.625X0.375 | C88: 25.05501954 | E88: HSS7X5X1/8 | F88: 9.850428528 | H88: W14X53 | I88: 53
B89: HSS9.625X0.250 | C89: 25.05501954 | E89: HSS8X4X1/8 | F89: 9.850428528 | H89: W10X54 | I89: 54
B90: HSS7.625X0.328 | C90: 25.58595611 | E90: HSS3-1/2X3-1/2X1/4 | F90: 10.47940464 | H90: S18X54.7 | I90: 54.7
B91: HSS10X0.250 | C91: 26.05722032 | E91: HSS4X3X1/4 | F91: 10.47940464 | H91: W18X55 | I91: 55
B92: HSS6.875X0.375 | C92: 26.05722032 | E92: HSS5X2X1/4 | F92: 10.47940464 | H92: W21X55 | I92: 55
B93: HSS7X0.375 | C93: 26.55832071 | E93: HSS3X3X5/16 | F93: 10.52513066 | H93: W24X55 | I93: 55
B94: HSS5.500X0.500 | C94: 26.72535417 | E94: HSS4X2X5/16 | F94: 10.53762566 | H94: W16X57 | I94: 57
B95: HSS5.563X0.500 | C95: 27.06209363 | E95: HSS4-1/2X4-1/2X3/16 | F95: 10.67908919 | H95: W21X57 | I95: 57
B96: HSS10.750X0.250 | C96: 28.06162188 | E96: HSS10X3X1/8 | F96: 10.70112297 | H96: W12X58 | I96: 58
B97: HSS7.500X0.375 | C97: 28.56272227 | E97: HSS5X4X3/16 | F97: 10.70497752 | H97: W8X58 | I97: 58
B98: HSS8.625X0.322 | C98: 28.5807993 | E98: HSS6X3X3/16 | F98: 10.70497752 | H98: W10X60 | I98: 60
B99: HSS6.625X0.432 | C99: 28.60014846 | E99: HSS7X2X3/16 | F99: 10.70497752 | H99: W18X60 | I99: 60
B100: HSS7.625X0.375 | C100: 29.06382266 | E100: HSS10X3-1/2X1/8 | F100: 11.12647019 | H100: W14X61 | I100: 61
B101: HSS6X0.500 | C101: 29.39788959 | E101: HSS5X2-1/2X1/4 | F101: 11.33009908 | H101: W21X62 | I101: 62
B102: HSS9.625X0.312 | C102: 31.06187428 | E102: HSS10X4X1/8 | F102: 11.55181742 | H102: W24X62 | I102: 62
B103: HSS10X0.312 | C103: =VLOOKUP(B103,StlSects,4) -> 32.31262086 | E103: HSS7X7X1/8 | F103: 11.55181742 | H103: W12X65 | I103: 65
B104: HSS6.625X0.500 | C104: 32.73855886 | E104: HSS4X2-1/2X5/16 | F104: 11.6026951 | H104: W18X65 | I104: 65
B105: HSS8.625X0.375 | C105: 33.07262579 | E105: HSS5X5X3/16 | F105: 11.95513085 | H105: S20X66 | I105: 66
B106: HSS12.750X0.250 | C106: 33.40669271 | E106: HSS6X4X3/16 | F106: 11.98442197 | H106: W16X67 | I106: 67
B107: HSS6.875X0.500 | C107: 34.07482657 | E107: HSS7X3X3/16 | F107: 11.98442197 | H107: W8X67 | I107: 67
B108: HSS7X0.500 | C108: 34.74296042 | E108: HSS8X2X3/16 | F108: 11.98442197 | H108: W10X68 | I108: 68
B109: HSS14X0.250 | C109: 36.74736199 | E109: HSS3X3X3/8 | F109: 12.09329317 | H109: W14X68 | I109: 68
B110: HSS9.625X0.375 | C110: 37.08142891 | E110: HSS4X2X3/8 | F110: 12.09329317 | H110: W21X68 | I110: 68
B111: HSS7.500X0.500 | C111: 37.41549584 | E111: HSS4X4X1/4 | F111: 12.18079353 | H111: W24X68 | I111: 68
B112: HSS10X0.375 | C112: 38.58473008 | E112: HSS5X3X1/4 | F112: 12.18079353 | H112: S18X70 | I112: 70
B113: HSS10.750X0.375 | C113: 41.59133243 | E113: HSS6X2X1/4 | F113: 12.18079353 | H113: W18X71 | I113: 71
B114: HSS16X0.250 | C114: 42.09243282 | E114: HSS3-1/2X3-1/2X5/16 | F114: 12.65186677 | H114: W12X72 | I114: 72
B115: HSS8.625X0.500 | C115: 43.42870053 | E115: HSS4X3X5/16 | F115: 12.66776455 | H115: W21X73 | I115: 73
B116: HSS14X0.312 | C116: 45.65391766 | E116: HSS5X2X5/16 | F116: 12.66776455 | H116: W14X74 | I116: 74
B117: HSS9.625X0.500 | C117: 48.77377136 | E117: HSS5-1/2X5-1/2X3/16 | F117: 13.23117252 | H117: S20X75 | I117: 75
B118: HSS12.750X0.375 | C118: 49.60893868 | E118: HSS8X8X1/8 | F118: 13.25320631 | H118: W18X76 | I118: 76
B119: HSS10X0.500 | C119: 50.77817293 | E119: HSS6X5X3/16 | F119: 13.26386641 | H119: W24X76 | I119: 76
B120: HSS16X0.312 | C120: 52.32456606 | E120: HSS7X4X3/16 | F120: 13.26386641 | H120: W10X77 | I120: 77
B121: HSS8.625X0.625 | C121: 53.45070834 | E121: HSS8X3X3/16 | F121: 13.26386641 | H121: W16X77 | I121: 77
B122: HSS14X0.375 | C122: 54.61994259 | E122: HSS4X2-1/2X3/8 | F122: 13.36933484 | H122: W12X79 | I122: 79
B123: HSS10.750X0.500 | C123: 54.78697605 | E123: HSS4-1/2X4-1/2X1/4 | F123: 13.88218241 | H123: S24X80 | I123: 80
B124: HSS10X0.625 | C124: 62.63754884 | E124: HSS5X4X1/4 | F124: 13.88218241 | H124: W14X82 | I124: 82
B125: HSS16X0.375 | C125: 62.63754884 | E125: HSS6X3X1/4 | F125: 13.88218241 | H125: W21X83 | I125: 83
B126: HSS12.750X0.500 | C126: 65.47711772 | E126: HSS7X2X1/2 | F126: 13.88218241 | H126: W24X84 | I126: 84
B127: HSS18X0.375 | C127: 70.65515509 | E127: HSS6X6X3/16 | F127: 14.50721419 | H127: W27X84 | I127: 84
B128: HSS14X0.500 | C128: 72.15845626 | E128: HSS10X2X3/16 | F128: 14.54331085 | H128: S20X86 | I128: 86
B129: HSS16X0.438 | C129: 72.86567327 | E129: HSS7X5X3/16 | F129: 14.54331085 | H129: W18X86 | I129: 86
B130: HSS20X0.375 | C130: 78.67276134 | E130: HSS8X4X3/16 | F130: 14.54331085 | H130: W12X87 | I130: 87
B131: HSS16X0.500 | C131: 82.84859793 | E131: HSS9X3X3/16 | F131: 14.54331085 | H131: W10X88 | I131: 88
B132: HSS14X0.625 | C132: 89.36290301 | E132: HSS3-1/2X3-1/2X3/8 | F132: 14.6453765 | H132: W16X89 | I132: 89
B133: HSS18X0.500 | C133: 93.5387396 | E133: HSS4X3X3/8 | F133: 14.6453765 | H133: S24X90 | I133: 90
B134: HSS16X0.625 | C134: 103 | E134: HSS5X2X3/8 | F134: 14.6453765 | H134: W14X90 | I134: 90
B135: HSS20X0.500 | C135: =VLOOKUP(B135,StlSects,4) -> 104 | E135: HSS4X4X5/16 | F135: =VLOOKUP(E135,StlSects,4) -> 14.77860288 | H135: W30X90 | I135: =VLOOKUP(H135,StlSects,4) -> 90
E136: HSS5X3X5/16 | F136: 14.79790344 | H136: W21X93 | I136: 93
E137: HSS6X2X5/16 | F137: 14.79790344 | H137: W24X94 | I137: 94
E138: HSS9X9X1/8 | F138: 14.95459519 | H138: W27X94 | I138: 94
E139: HSS5X5X1/4 | F139: 15.5835713 | H139: S20X96 | I139: 96
E140: HSS6X4X1/4 | F140: 15.5835713 | H140: W12X96 | I140: 96
E141: HSS7X3X1/4 | F141: 15.5835713 | H141: W18X97 | I141: 97
E142: HSS8X2X1/4 | F142: 15.5835713 | H142: W14X99 | I142: 99
E143: HSS10X3X3/16 | F143: 15.8227553 | H143: W30X99 | I143: 99
E144: HSS10X3-1/2X3/16 | F144: 16.46247752 | H144: S24X100 | I144: 100
E145: HSS4-1/2X4-1/2X5/16 | F145: 16.90533899 | H145: W10X100 | I145: 100
E146: HSS5X4X5/16 | F146: 16.92804233 | H146: W16X100 | I146: 100
E147: HSS6X3X5/16 | F147: 16.92804233 | H147: W21X101 | I147: 101
E148: HSS7X7X3/16 | F148: 17.05929752 | H148: W27X102 | I148: 102
E149: HSS10X4X3/16 | F149: 17.10219974 | H149: W24X103 | I149: 103
E150: HSS12X2X3/16 | F150: 17.10219974 | H150: W24X104 | I150: 104
E151: HSS8X6X3/16 | F151: 17.10219974 | H151: S24X106 | I151: 106
E152: HSS9X5X3/16 | F152: 17.10219974 | H152: W12X106 | I152: 106
E153: HSS4X4X3/8 | F153: 17.19745984 | H153: W18X106 | I153: 106
E154: HSS5X3X3/8 | F154: 17.19745984 | H154: W30X108 | I154: 108
E155: HSS6X2X3/8 | F155: 17.19745984 | H155: W14X109 | I155: 109
E156: HSS5-1/2X5-1/2X1/4 | F156: 17.28496019 | H156: W21X111 | I156: 111
E157: HSS6X5X1/4 | F157: 17.28496019 | H157: W10X112 | I157: 112
E158: HSS7X4X1/4 | F158: 17.28496019 | H158: W27X114 | I158: 114
E159: HSS8X3X1/4 | F159: 17.28496019 | H159: W30X116 | I159: 116
E160: HSS10X5X3/16 | F160: 18.38164419 | H160: W24X117 | I160: 117
E161: HSS12X3X3/16 | F161: 18.38164419 | H161: W33X118 | I161: 118
E162: HSS10X2X1/4 | F162: 18.98634908 | H162: W18X119 | I162: 119
E163: HSS6X6X1/4 | F163: 18.98634908 | H163: W12X120 | I163: 120
E164: HSS7X5X1/4 | F164: 18.98634908 | H164: W14X120 | I164: 120
E165: HSS8X4X1/4 | F165: 18.98634908 | H165: S24X121 | I165: 121
E166: HSS9X3X1/4 | F166: 18.98634908 | H166: W21X122 | I166: 122
E167: HSS5X5X5/16 | F167: 19.0320751 | H167: W30X124 | I167: 124
E168: HSS6X4X5/16 | F168: 19.05818122 | H168: W27X129 | I168: 129
E169: HSS7X3X5/16 | F169: 19.05818122 | H169: W18X130 | I169: 130
E170: HSS8X2X5/16 | F170: 19.05818122 | H170: W33X130 | I170: 130
E171: HSS8X8X3/16 | F171: 19.61138085 | H171: W24X131 | I171: 131
E172: HSS10X6X3/16 | F172: 19.66108863 | H172: W14X132 | I172: 132
E173: HSS12X4X3/16 | F173: 19.66108863 | H173: W21X132 | I173: 132
E174: HSS9X7X3/16 | F174: 19.66108863 | H174: W30X132 | I174: 132
E175: HSS4-1/2X4-1/2X3/8 | F175: 19.74954317 | H175: W36X135 | I175: 135
E176: HSS5X4X3/8 | F176: 19.74954317 | H176: W12X136 | I176: 136
E177: HSS6X3X3/8 | F177: 19.74954317 | H177: W33X141 | I177: 141
E178: HSS10X3X1/4 | F178: 20.68773797 | H178: W18X143 | I178: 143
E179: HSS5-1/2X5-1/2X5/16 | F179: 21.15881122 | H179: W14X145 | I179: 145
E180: HSS6X5X5/16 | F180: 21.1883201 | H180: W24X146 | I180: 146
E181: HSS7X4X5/16 | F181: 21.1883201 | H181: W27X146 | I181: 146
E182: HSS8X3X5/16 | F182: 21.1883201 | H182: W21X147 | I182: 147
E183: HSS4X4X1/2 | F183: 21.49831654 | H183: W30X148 | I183: 148
E184: HSS5X3X1/2 | F184: 21.49831654 | H184: W40X149 | I184: 149
E185: HSS10X3-1/2X1/4 | F185: 21.53843241 | H185: W36X150 | I185: 150
E186: HSS14X4X3/16 | F186: 22.11825352 | H186: W12X152 | I186: 152
E187: HSS9X9X3/16 | F187: 22.16346419 | H187: W33X152 | I187: 152
E188: HSS10X8X3/16 | F188: 22.21997752 | H188: W18X158 | I188: 158
E189: HSS12X6X3/16 | F189: 22.21997752 | H189: W14X159 | I189: 159
E190: HSS5X5X3/8 | F190: 22.3016265 | H190: W36X160 | I190: 160
E191: HSS6X4X3/8 | F191: 22.3016265 | H191: W27X161 | I191: 161
E192: HSS7X3X3/8 | F192: 22.3016265 | H192: W24X162 | I192: 162
E193: HSS8X2X3/8 | F193: 22.3016265 | H193: W21X166 | I193: 166
E194: HSS10X4X1/4 | F194: 22.38912686 | H194: W40X167 | I194: 167
E195: HSS12X2X1/4 | F195: 22.38912686 | H195: W33X169 | I195: 169
E196: HSS7X7X1/4 | F196: 22.38912686 | H196: W12X170 | I196: 170
E197: HSS8X6X1/4 | F197: 22.38912686 | H197: W36X170 | I197: 170
E198: HSS9X5X1/4 | F198: 22.38912686 | H198: W30X173 | I198: 173
E199: HSS6X6X5/16 | F199: =VLOOKUP(E199,StlSects,4) -> 23.28554733 | H199: W18X175 | I199: =VLOOKUP(H199,StlSects,4) -> 175
E200: HSS10X2X5/16 | F200: 23.31845899 | H200: W14X176 | I200: 176
E201: HSS7X5X5/16 | F201: 23.31845899 | H201: W24X176 | I201: 176
E202: HSS8X4X5/16 | F202: 23.31845899 | H202: W27X178 | I202: 178
E203: HSS9X3X5/16 | F203: 23.31845899 | H203: W21X182 | I203: 182
E204: HSS10X5X1/4 | F204: 24.09051575 | H204: W36X182 | I204: 182
E205: HSS12X3X1/4 | F205: 24.09051575 | H205: W40X183 | I205: 183
... 164 more rows

Sheet StlSects
A1: 1 | B1: 2 | C1: 3 | D1: 4 | E1: 5 | F1: 6 | G1: 7 | H1: 8 | I1: 9 | J1: 10 | K1: 11 | L1: 12 | M1: 13 | N1: 14 | O1: 15 | P1: 16 | Q1: 17 | R1: 18 | S1: 19 | T1: 20 | U1: 21 | V1: 22 | W1: 23 | X1: 24 | Y1: 25 | Z1: 26 | AA1: 27 | AB1: 28 | AC1: 29 | AD1: 30 | AE1: 31 | AF1: 32 | AG1: 33 | AH1: 34 | AI1: 35 | AJ1: 36 | AK1: 37 | AL1: 38 | AM1: 39 | AN1: 40 | AO1: 41 | AP1: 42 | AQ1: 43 | AR1: 44 | AS1: 45 | AT1: 46 | AU1: 47 | AV1: 48 | AW1: 49
A2: AISC_MANUAL_LABEL | B2: TYPE | C2: T_F | D2: W | E2: A | F2: D | G2: HT | H2: OD | I2: BF | J2: B | K2: ID | L2: TW | M2: TF | N2: T | O2: TNOM | P2: TDES | Q2: KDES | R2: KDET | S2: K1 | T2: X | U2: Y | V2: E0 | W2: XP | X2: YP | Y2: BF_2TF | Z2: B_T | AA2: H_TW | AB2: H_T | AC2: D_T | AD2: IX | AE2: ZX | AF2: SX | AG2: RX | AH2: IY | AI2: ZY | AJ2: SY | AK2: RY | AL2: RZ | AM2: J | AN2: CW | AO2: C | AP2: WNO | AQ2: SW | AR2: QF | AS2: QW | AT2: RO | AU2: H | AV2: TAN_ALPHA | AW2: QS
A3: C10X15.3 | B3: C | C3: F | D3: 15.3 | E3: 4.48 | F3: 10 | G3: 0 | H3: 0 | I3: 2.6 | J3: 0 | K3: 0 | L3: 0.24 | M3: 0.436 | N3: 0 | O3: 0 | P3: 0 | Q3: 1 | R3: 1 | S3: 0 | T3: 0.634 | U3: 0 | V3: 0.796 | W3: 0.224 | X3: 0 | Y3: 0 | Z3: 0 | AA3: 0 | AB3: 0 | AC3: 0 | AD3: 67.3 | AE3: 15.9 | AF3: 13.5 | AG3: 3.87 | AH3: 2.27 | AI3: 2.34 | AJ3: 1.15 | AK3: 0.711 | AL3: 0 | AM3: 0.209 | AN3: 45.5 | AO3: 0 | AP3: 0 | AQ3: 0 | AR3: 0 | AS3: 0 | AT3: 4.19 | AU3: 0.884 | AV3: 0 | AW3: 0
A4: C10X20 | B4: C | C4: F | D4: 20 | E4: 5.87 | F4: 10 | G4: 0 | H4: 0 | I4: 2.74 | J4: 0 | K4: 0 | L4: 0.379 | M4: 0.436 | N4: 0 | O4: 0 | P4: 0 | Q4: 1 | R4: 1 | S4: 0 | T4: 0.606 | U4: 0 | V4: 0.636 | W4: 0.294 | X4: 0 | Y4: 0 | Z4: 0 | AA4: 0 | AB4: 0 | AC4: 0 | AD4: 78.9 | AE4: 19.4 | AF4: 15.8 | AG4: 3.66 | AH4: 2.8 | AI4: 2.7 | AJ4: 1.31 | AK4: 0.69 | AL4: 0 | AM4: 0.368 | AN4: 56.9 | AO4: 0 | AP4: 0 | AQ4: 0 | AR4: 0 | AS4: 0 | AT4: 3.93 | AU4: 0.9 | AV4: 0 | AW4: 0
A5: C10X25 | B5: C | C5: F | D5: 25 | E5: 7.34 | F5: 10 | G5: 0 | H5: 0 | I5: 2.89 | J5: 0 | K5: 0 | L5: 0.526 | M5: 0.436 | N5: 0 | O5: 0 | P5: 0 | Q5: 1 | R5: 1 | S5: 0 | T5: 0.617 | U5: 0 | V5: 0.494 | W5: 0.367 | X5: 0 | Y5: 0 | Z5: 0 | AA5: 0 | AB5: 0 | AC5: 0 | AD5: 91.1 | AE5: 23.1 | AF5: 18.2 | AG5: 3.52 | AH5: 3.34 | AI5: 3.18 | AJ5: 1.47 | AK5: 0.675 | AL5: 0 | AM5: 0.687 | AN5: 68.3 | AO5: 0 | AP5: 0 | AQ5: 0 | AR5: 0 | AS5: 0 | AT5: 3.76 | AU5: 0.912 | AV5: 0 | AW5: 0
A6: C10X30 | B6: C | C6: F | D6: 30 | E6: 8.81 | F6: 10 | G6: 0 | H6: 0 | I6: 3.03 | J6: 0 | K6: 0 | L6: 0.673 | M6: 0.436 | N6: 0 | O6: 0 | P6: 0 | Q6: 1 | R6: 1 | S6: 0 | T6: 0.649 | U6: 0 | V6: 0.368 | W6: 0.441 | X6: 0 | Y6: 0 | Z6: 0 | AA6: 0 | AB6: 0 | AC6: 0 | AD6: 103 | AE6: 26.7 | AF6: 20.7 | AG6: 3.42 | AH6: 3.93 | AI6: 3.78 | AJ6: 1.65 | AK6: 0.668 | AL6: 0 | AM6: 1.22 | AN6: 79.5 | AO6: 0 | AP6: 0 | AQ6: 0 | AR6: 0 | AS6: 0 | AT6: 3.63 | AU6: 0.921 | AV6: 0 | AW6: 0
A7: C12X20.7 | B7: C | C7: F | D7: 20.7 | E7: 6.08 | F7: 12 | G7: 0 | H7: 0 | I7: 2.94 | J7: 0 | K7: 0 | L7: 0.282 | M7: 0.501 | N7: 0 | O7: 0 | P7: 0 | Q7: 1.13 | R7: 1.125 | S7: 0 | T7: 0.698 | U7: 0 | V7: 0.87 | W7: 0.253 | X7: 0 | Y7: 0 | Z7: 0 | AA7: 0 | AB7: 0 | AC7: 0 | AD7: 129 | AE7: 25.6 | AF7: 21.5 | AG7: 4.61 | AH7: 3.86 | AI7: 3.47 | AJ7: 1.72 | AK7: 0.797 | AL7: 0 | AM7: 0.369 | AN7: 112 | AO7: 0 | AP7: 0 | AQ7: 0 | AR7: 0 | AS7: 0 | AT7: 4.93 | AU7: 0.899 | AV7: 0 | AW7: 0
A8: C12X25 | B8: C | C8: F | D8: 25 | E8: 7.34 | F8: 12 | G8: 0 | H8: 0 | I8: 3.05 | J8: 0 | K8: 0 | L8: 0.387 | M8: 0.501 | N8: 0 | O8: 0 | P8: 0 | Q8: 1.13 | R8: 1.125 | S8: 0 | T8: 0.674 | U8: 0 | V8: 0.746 | W8: 0.306 | X8: 0 | Y8: 0 | Z8: 0 | AA8: 0 | AB8: 0 | AC8: 0 | AD8: 144 | AE8: 29.4 | AF8: 24 | AG8: 4.43 | AH8: 4.45 | AI8: 3.82 | AJ8: 1.87 | AK8: 0.779 | AL8: 0 | AM8: 0.538 | AN8: 130 | AO8: 0 | AP8: 0 | AQ8: 0 | AR8: 0 | AS8: 0 | AT8: 4.72 | AU8: 0.909 | AV8: 0 | AW8: 0
A9: C12X30 | B9: C | C9: F | D9: 30 | E9: 8.81 | F9: 12 | G9: 0 | H9: 0 | I9: 3.17 | J9: 0 | K9: 0 | L9: 0.51 | M9: 0.501 | N9: 0 | O9: 0 | P9: 0 | Q9: 1.13 | R9: 1.125 | S9: 0 | T9: 0.674 | U9: 0 | V9: 0.618 | W9: 0.367 | X9: 0 | Y9: 0 | Z9: 0 | AA9: 0 | AB9: 0 | AC9: 0 | AD9: 162 | AE9: 33.8 | AF9: 27 | AG9: 4.29 | AH9: 5.12 | AI9: 4.32 | AJ9: 2.05 | AK9: 0.762 | AL9: 0 | AM9: 0.861 | AN9: 151 | AO9: 0 | AP9: 0 | AQ9: 0 | AR9: 0 | AS9: 0 | AT9: 4.54 | AU9: 0.919 | AV9: 0 | AW9: 0
A10: C15X33.9 | B10: C | C10: F | D10: 33.9 | E10: 10 | F10: 15 | G10: 0 | H10: 0 | I10: 3.4 | J10: 0 | K10: 0 | L10: 0.4 | M10: 0.65 | N10: 0 | O10: 0 | P10: 0 | Q10: 1.44 | R10: 1.4375 | S10: 0 | T10: 0.788 | U10: 0 | V10: 0.896 | W10: 0.332 | X10: 0 | Y10: 0 | Z10: 0 | AA10: 0 | AB10: 0 | AC10: 0 | AD10: 315 | AE10: 50.8 | AF10: 42 | AG10: 5.62 | AH10: 8.07 | AI10: 6.19 | AJ10: 3.09 | AK10: 0.901 | AL10: 0 | AM10: 1.01 | AN10: 358 | AO10: 0 | AP10: 0 | AQ10: 0 | AR10: 0 | AS10: 0 | AT10: 5.94 | AU10: 0.92 | AV10: 0 | AW10: 0
A11: C15X40 | B11: C | C11: F | D11: 40 | E11: 11.8 | F11: 15 | G11: 0 | H11: 0 | I11: 3.52 | J11: 0 | K11: 0 | L11: 0.52 | M11: 0.65 | N11: 0 | O11: 0 | P11: 0 | Q11: 1.44 | R11: 1.4375 | S11: 0 | T11: 0.778 | U11: 0 | V11: 0.767 | W11: 0.392 | X11: 0 | Y11: 0 | Z11: 0 | AA11: 0 | AB11: 0 | AC11: 0 | AD11: 348 | AE11: 57.5 | AF11: 46.5 | AG11: 5.45 | AH11: 9.17 | AI11: 6.84 | AJ11: 3.34 | AK11: 0.883 | AL11: 0 | AM11: 1.45 | AN11: 410 | AO11: 0 | AP11: 0 | AQ11: 0 | AR11: 0 | AS11: 0 | AT11: 5.71 | AU11: 0.927 | AV11: 0 | AW11: 0
A12: C15X50 | B12: C | C12: F | D12: 50 | E12: 14.7 | F12: 15 | G12: 0 | H12: 0 | I12: 3.72 | J12: 0 | K12: 0 | L12: 0.716 | M12: 0.65 | N12: 0 | O12: 0 | P12: 0 | Q12: 1.44 | R12: 1.4375 | S12: 0 | T12: 0.799 | U12: 0 | V12: 0.583 | W12: 0.49 | X12: 0 | Y12: 0 | Z12: 0 | AA12: 0 | AB12: 0 | AC12: 0 | AD12: 404 | AE12: 68.5 | AF12: 53.8 | AG12: 5.24 | AH12: 11 | AI12: 8.14 | AJ12: 3.77 | AK12: 0.865 | AL12: 0 | AM12: 2.65 | AN12: 492 | AO12: 0 | AP12: 0 | AQ12: 0 | AR12: 0 | AS12: 0 | AT12: 5.49 | AU12: 0.937 | AV12: 0 | AW12: 0
A13: C3X3.5 | B13: C | C13: F | D13: 3.5 | E13: 1.09 | F13: 3 | G13: 0 | H13: 0 | I13: 1.37 | J13: 0 | K13: 0 | L13: 0.132 | M13: 0.273 | N13: 0 | O13: 0 | P13: 0 | Q13: 0.688 | R13: 0.6875 | S13: 0 | T13: 0.443 | U13: 0 | V13: 0.493 | W13: 0.296 | X13: 0 | Y13: 0 | Z13: 0 | AA13: 0 | AB13: 0 | AC13: 0 | AD13: 1.57 | AE13: 1.24 | AF13: 1.04 | AG13: 1.2 | AH13: 0.169 | AI13: 0.364 | AJ13: 0.182 | AK13: 0.394 | AL13: 0 | AM13: 0.0226 | AN13: 0.276 | AO13: 0 | AP13: 0 | AQ13: 0 | AR13: 0 | AS13: 0 | AT13: 1.57 | AU13: 0.646 | AV13: 0 | AW13: 0
A14: C3X4.1 | B14: C | C14: F | D14: 4.1 | E14: 1.2 | F14: 3 | G14: 0 | H14: 0 | I14: 1.41 | J14: 0 | K14: 0 | L14: 0.17 | M14: 0.273 | N14: 0 | O14: 0 | P14: 0 | Q14: 0.688 | R14: 0.6875 | S14: 0 | T14: 0.437 | U14: 0 | V14: 0.461 | W14: 0.262 | X14: 0 | Y14: 0 | Z14: 0 | AA14: 0 | AB14: 0 | AC14: 0 | AD14: 1.65 | AE14: 1.32 | AF14: 1.1 | AG14: 1.17 | AH14: 0.191 | AI14: 0.399 | AJ14: 0.196 | AK14: 0.398 | AL14: 0 | AM14: 0.0269 | AN14: 0.307 | AO14: 0 | AP14: 0 | AQ14: 0 | AR14: 0 | AS14: 0 | AT14: 1.53 | AU14: 0.655 | AV14: 0 | AW14: 0
A15: C3X5 | B15: C | C15: F | D15: 5 | E15: 1.47 | F15: 3 | G15: 0 | H15: 0 | I15: 1.5 | J15: 0 | K15: 0 | L15: 0.258 | M15: 0.273 | N15: 0 | O15: 0 | P15: 0 | Q15: 0.688 | R15: 0.6875 | S15: 0 | T15: 0.439 | U15: 0 | V15: 0.392 | W15: 0.245 | X15: 0 | Y15: 0 | Z15: 0 | AA15: 0 | AB15: 0 | AC15: 0 | AD15: 1.85 | AE15: 1.52 | AF15: 1.23 | AG15: 1.12 | AH15: 0.241 | AI15: 0.464 | AJ15: 0.228 | AK15: 0.405 | AL15: 0 | AM15: 0.0425 | AN15: 0.379 | AO15: 0 | AP15: 0 | AQ15: 0 | AR15: 0 | AS15: 0 | AT15: 1.45 | AU15: 0.673 | AV15: 0 | AW15: 0
A16: C3X6 | B16: C | C16: F | D16: 6 | E16: 1.76 | F16: 3 | G16: 0 | H16: 0 | I16: 1.6 | J16: 0 | K16: 0 | L16: 0.356 | M16: 0.273 | N16: 0 | O16: 0 | P16: 0 | Q16: 0.688 | R16: 0.6875 | S16: 0 | T16: 0.455 | U16: 0 | V16: 0.322 | W16: 0.294 | X16: 0 | Y16: 0 | Z16: 0 | AA16: 0 | AB16: 0 | AC16: 0 | AD16: 2.07 | AE16: 1.74 | AF16: 1.38 | AG16: 1.08 | AH16: 0.3 | AI16: 0.543 | AJ16: 0.263 | AK16: 0.413 | AL16: 0 | AM16: 0.0725 | AN16: 0.462 | AO16: 0 | AP16: 0 | AQ16: 0 | AR16: 0 | AS16: 0 | AT16: 1.4 | AU16: 0.69 | AV16: 0 | AW16: 0
A17: C4X4.5 | B17: C | C17: F | D17: 4.5 | E17: 1.38 | F17: 4 | G17: 0 | H17: 0 | I17: 1.58 | J17: 0 | K17: 0 | L17: 0.125 | M17: 0.296 | N17: 0 | O17: 0 | P17: 0 | Q17: 0.75 | R17: 0.75 | S17: 0 | T17: 0.493 | U17: 0 | V17: 0.587 | W17: 0.321 | X17: 0 | Y17: 0 | Z17: 0 | AA17: 0 | AB17: 0 | AC17: 0 | AD17: 3.65 | AE17: 2.12 | AF17: 1.83 | AG17: 1.63 | AH17: 0.289 | AI17: 0.531 | AJ17: 0.265 | AK17: 0.457 | AL17: 0 | AM17: 0.0322 | AN17: 0.871 | AO17: 0 | AP17: 0 | AQ17: 0 | AR17: 0 | AS17: 0 | AT17: 2.01 | AU17: 0.71 | AV17: 0 | AW17: 0
A18: C4X5.4 | B18: C | C18: F | D18: 5.4 | E18: 1.58 | F18: 4 | G18: 0 | H18: 0 | I18: 1.58 | J18: 0 | K18: 0 | L18: 0.184 | M18: 0.296 | N18: 0 | O18: 0 | P18: 0 | Q18: 0.75 | R18: 0.75 | S18: 0 | T18: 0.457 | U18: 0 | V18: 0.501 | W18: 0.231 | X18: 0 | Y18: 0 | Z18: 0 | AA18: 0 | AB18: 0 | AC18: 0 | AD18: 3.85 | AE18: 2.29 | AF18: 1.92 | AG18: 1.56 | AH18: 0.312 | AI18: 0.565 | AJ18: 0.277 | AK18: 0.444 | AL18: 0 | AM18: 0.0399 | AN18: 0.921 | AO18: 0 | AP18: 0 | AQ18: 0 | AR18: 0 | AS18: 0 | AT18: 1.88 | AU18: 0.742 | AV18: 0 | AW18: 0
A19: C4X7.2 | B19: C | C19: F | D19: 7.2 | E19: 2.13 | F19: 4 | G19: 0 | H19: 0 | I19: 1.72 | J19: 0 | K19: 0 | L19: 0.321 | M19: 0.296 | N19: 0 | O19: 0 | P19: 0 | Q19: 0.75 | R19: 0.75 | S19: 0 | T19: 0.459 | U19: 0 | V19: 0.386 | W19: 0.266 | X19: 0 | Y19: 0 | Z19: 0 | AA19: 0 | AB19: 0 | AC19: 0 | AD19: 4.58 | AE19: 2.84 | AF19: 2.29 | AG19: 1.47 | AH19: 0.425 | AI19: 0.695 | AJ19: 0.337 | AK19: 0.447 | AL19: 0 | AM19: 0.0817 | AN19: 1.24 | AO19: 0 | AP19: 0 | AQ19: 0 | AR19: 0 | AS19: 0 | AT19: 1.75 | AU19: 0.767 | AV19: 0 | AW19: 0
A20: C5X6.7 | B20: C | C20: F | D20: 6.7 | E20: 1.97 | F20: 5 | G20: 0 | H20: 0 | I20: 1.75 | J20: 0 | K20: 0 | L20: 0.19 | M20: 0.32 | N20: 0 | O20: 0 | P20: 0 | Q20: 0.75 | R20: 0.75 | S20: 0 | T20: 0.484 | U20: 0 | V20: 0.552 | W20: 0.215 | X20: 0 | Y20: 0 | Z20: 0 | AA20: 0 | AB20: 0 | AC20: 0 | AD20: 7.48 | AE20: 3.55 | AF20: 2.99 | AG20: 1.95 | AH20: 0.47 | AI20: 0.757 | AJ20: 0.372 | AK20: 0.489 | AL20: 0 | AM20: 0.0549 | AN20: 2.22 | AO20: 0 | AP20: 0 | AQ20: 0 | AR20: 0 | AS20: 0 | AT20: 2.26 | AU20: 0.79 | AV20: 0 | AW20: 0
A21: C5X9 | B21: C | C21: F | D21: 9 | E21: 2.64 | F21: 5 | G21: 0 | H21: 0 | I21: 1.89 | J21: 0 | K21: 0 | L21: 0.325 | M21: 0.32 | N21: 0 | O21: 0 | P21: 0 | Q21: 0.75 | R21: 0.75 | S21: 0 | T21: 0.478 | U21: 0 | V21: 0.427 | W21: 0.264 | X21: 0 | Y21: 0 | Z21: 0 | AA21: 0 | AB21: 0 | AC21: 0 | AD21: 8.89 | AE21: 4.39 | AF21: 3.56 | AG21: 1.83 | AH21: 0.624 | AI21: 0.913 | AJ21: 0.444 | AK21: 0.486 | AL21: 0 | AM21: 0.109 | AN21: 2.93 | AO21: 0 | AP21: 0 | AQ21: 0 | AR21: 0 | AS21: 0 | AT21: 2.1 | AU21: 0.815 | AV21: 0 | AW21: 0
A22: C6X10.5 | B22: C | C22: F | D22: 10.5 | E22: 3.08 | F22: 6 | G22: 0 | H22: 0 | I22: 2.03 | J22: 0 | K22: 0 | L22: 0.314 | M22: 0.343 | N22: 0 | O22: 0 | P22: 0 | Q22: 0.813 | R22: 0.8125 | S22: 0 | T22: 0.5 | U22: 0 | V22: 0.486 | W22: 0.256 | X22: 0 | Y22: 0 | Z22: 0 | AA22: 0 | AB22: 0 | AC22: 0 | AD22: 15.1 | AE22: 6.18 | AF22: 5.04 | AG22: 2.22 | AH22: 0.86 | AI22: 1.14 | AJ22: 0.561 | AK22: 0.529 | AL22: 0 | AM22: 0.128 | AN22: 5.91 | AO22: 0 | AP22: 0 | AQ22: 0 | AR22: 0 | AS22: 0 | AT22: 2.48 | AU22: 0.842 | AV22: 0 | AW22: 0
A23: C6X13 | B23: C | C23: F | D23: 13 | E23: 3.81 | F23: 6 | G23: 0 | H23: 0 | I23: 2.16 | J23: 0 | K23: 0 | L23: 0.437 | M23: 0.343 | N23: 0 | O23: 0 | P23: 0 | Q23: 0.813 | R23: 0.8125 | S23: 0 | T23: 0.514 | U23: 0 | V23: 0.38 | W23: 0.318 | X23: 0 | Y23: 0 | Z23: 0 | AA23: 0 | AB23: 0 | AC23: 0 | AD23: 17.3 | AE23: 7.29 | AF23: 5.78 | AG23: 2.13 | AH23: 1.05 | AI23: 1.35 | AJ23: 0.638 | AK23: 0.524 | AL23: 0 | AM23: 0.237 | AN23: 7.19 | AO23: 0 | AP23: 0 | AQ23: 0 | AR23: 0 | AS23: 0 | AT23: 2.37 | AU23: 0.858 | AV23: 0 | AW23: 0
A24: C6X8.2 | B24: C | C24: F | D24: 8.2 | E24: 2.39 | F24: 6 | G24: 0 | H24: 0 | I24: 1.92 | J24: 0 | K24: 0 | L24: 0.2 | M24: 0.343 | N24: 0 | O24: 0 | P24: 0 | Q24: 0.813 | R24: 0.8125 | S24: 0 | T24: 0.512 | U24: 0 | V24: 0.599 | W24: 0.199 | X24: 0 | Y24: 0 | Z24: 0 | AA24: 0 | AB24: 0 | AC24: 0 | AD24: 13.1 | AE24: 5.16 | AF24: 4.35 | AG24: 2.34 | AH24: 0.687 | AI24: 0.987 | AJ24: 0.488 | AK24: 0.536 | AL24: 0 | AM24: 0.0736 | AN24: 4.7 | AO24: 0 | AP24: 0 | AQ24: 0 | AR24: 0 | AS24: 0 | AT24: 2.65 | AU24: 0.824 | AV24: 0 | AW24: 0
A25: C7X12.2 | B25: C | C25: F | D25: 12.2 | E25: 3.6 | F25: 7 | G25: 0 | H25: 0 | I25: 2.19 | J25: 0 | K25: 0 | L25: 0.314 | M25: 0.366 | N25: 0 | O25: 0 | P25: 0 | Q25: 0.875 | R25: 0.875 | S25: 0 | T25: 0.525 | U25: 0 | V25: 0.538 | W25: 0.257 | X25: 0 | Y25: 0 | Z25: 0 | AA25: 0 | AB25: 0 | AC25: 0 | AD25: 24.2 | AE25: 8.46 | AF25: 6.92 | AG25: 2.6 | AH25: 1.16 | AI25: 1.42 | AJ25: 0.696 | AK25: 0.568 | AL25: 0 | AM25: 0.161 | AN25: 11.2 | AO25: 0 | AP25: 0 | AQ25: 0 | AR25: 0 | AS25: 0 | AT25: 2.86 | AU25: 0.862 | AV25: 0 | AW25: 0
A26: C7X14.7 | B26: C | C26: F | D26: 14.7 | E26: 4.33 | F26: 7 | G26: 0 | H26: 0 | I26: 2.3 | J26: 0 | K26: 0 | L26: 0.419 | M26: 0.366 | N26: 0 | O26: 0 | P26: 0 | Q26: 0.875 | R26: 0.875 | S26: 0 | T26: 0.532 | U26: 0 | V26: 0.441 | W26: 0.309 | X26: 0 | Y26: 0 | Z26: 0 | AA26: 0 | AB26: 0 | AC26: 0 | AD26: 27.2 | AE26: 9.75 | AF26: 7.78 | AG26: 2.51 | AH26: 1.37 | AI26: 1.63 | AJ26: 0.772 | AK26: 0.561 | AL26: 0 | AM26: 0.267 | AN26: 13.1 | AO26: 0 | AP26: 0 | AQ26: 0 | AR26: 0 | AS26: 0 | AT26: 2.75 | AU26: 0.875 | AV26: 0 | AW26: 0
A27: C7X9.8 | B27: C | C27: F | D27: 9.8 | E27: 2.87 | F27: 7 | G27: 0 | H27: 0 | I27: 2.09 | J27: 0 | K27: 0 | L27: 0.21 | M27: 0.366 | N27: 0 | O27: 0 | P27: 0 | Q27: 0.875 | R27: 0.875 | S27: 0 | T27: 0.541 | U27: 0 | V27: 0.647 | W27: 0.205 | X27: 0 | Y27: 0 | Z27: 0 | AA27: 0 | AB27: 0 | AC27: 0 | AD27: 21.2 | AE27: 7.19 | AF27: 6.07 | AG27: 2.72 | AH27: 0.957 | AI27: 1.26 | AJ27: 0.617 | AK27: 0.578 | AL27: 0 | AM27: 0.0996 | AN27: 9.15 | AO27: 0 | AP27: 0 | AQ27: 0 | AR27: 0 | AS27: 0 | AT27: 3.02 | AU27: 0.845 | AV27: 0 | AW27: 0
A28: C8X11.5 | B28: C | C28: F | D28: 11.5 | E28: 3.37 | F28: 8 | G28: 0 | H28: 0 | I28: 2.26 | J28: 0 | K28: 0 | L28: 0.22 | M28: 0.39 | N28: 0 | O28: 0 | P28: 0 | Q28: 0.938 | R28: 0.9375 | S28: 0 | T28: 0.572 | U28: 0 | V28: 0.697 | W28: 0.211 | X28: 0 | Y28: 0 | Z28: 0 | AA28: 0 | AB28: 0 | AC28: 0 | AD28: 32.5 | AE28: 9.63 | AF28: 8.14 | AG28: 3.11 | AH28: 1.31 | AI28: 1.57 | AJ28: 0.775 | AK28: 0.623 | AL28: 0 | AM28: 0.13 | AN28: 16.5 | AO28: 0 | AP28: 0 | AQ28: 0 | AR28: 0 | AS28: 0 | AT28: 3.41 | AU28: 0.862 | AV28: 0 | AW28: 0
A29: C8X13.7 | B29: C | C29: F | D29: 13.7 | E29: 4.04 | F29: 8 | G29: 0 | H29: 0 | I29: 2.34 | J29: 0 | K29: 0 | L29: 0.303 | M29: 0.39 | N29: 0 | O29: 0 | P29: 0 | Q29: 0.938 | R29: 0.9375 | S29: 0 | T29: 0.554 | U29: 0 | V29: 0.604 | W29: 0.252 | X29: 0 | Y29: 0 | Z29: 0 | AA29: 0 | AB29: 0 | AC29: 0 | AD29: 36.1 | AE29: 11 | AF29: 9.02 | AG29: 2.99 | AH29: 1.52 | AI29: 1.73 | AJ29: 0.848 | AK29: 0.613 | AL29: 0 | AM29: 0.186 | AN29: 19.2 | AO29: 0 | AP29: 0 | AQ29: 0 | AR29: 0 | AS29: 0 | AT29: 3.26 | AU29: 0.874 | AV29: 0 | AW29: 0
A30: C8X18.7 | B30: C | C30: F | D30: 18.7 | E30: 5.51 | F30: 8 | G30: 0 | H30: 0 | I30: 2.53 | J30: 0 | K30: 0 | L30: 0.487 | M30: 0.39 | N30: 0 | O30: 0 | P30: 0 | Q30: 0.938 | R30: 0.9375 | S30: 0 | T30: 0.565 | U30: 0 | V30: 0.431 | W30: 0.344 | X30: 0 | Y30: 0 | Z30: 0 | AA30: 0 | AB30: 0 | AC30: 0 | AD30: 43.9 | AE30: 13.9 | AF30: 11 | AG30: 2.82 | AH30: 1.97 | AI30: 2.17 | AJ30: 1.01 | AK30: 0.598 | AL30: 0 | AM30: 0.434 | AN30: 25.1 | AO30: 0 | AP30: 0 | AQ30: 0 | AR30: 0 | AS30: 0 | AT30: 3.05 | AU30: 0.894 | AV30: 0 | AW30: 0
A31: C9X13.4 | B31: C | C31: F | D31: 13.4 | E31: 3.94 | F31: 9 | G31: 0 | H31: 0 | I31: 2.43 | J31: 0 | K31: 0 | L31: 0.233 | M31: 0.413 | N31: 0 | O31: 0 | P31: 0 | Q31: 1 | R31: 1 | S31: 0 | T31: 0.601 | U31: 0 | V31: 0.742 | W31: 0.219 | X31: 0 | Y31: 0 | Z31: 0 | AA31: 0 | AB31: 0 | AC31: 0 | AD31: 47.8 | AE31: 12.6 | AF31: 10.6 | AG31: 3.49 | AH31: 1.75 | AI31: 1.94 | AJ31: 0.954 | AK31: 0.666 | AL31: 0 | AM31: 0.168 | AN31: 28.2 | AO31: 0 | AP31: 0 | AQ31: 0 | AR31: 0 | AS31: 0 | AT31: 3.79 | AU31: 0.875 | AV31: 0 | AW31: 0
A32: C9X15 | B32: C | C32: F | D32: 15 | E32: 4.41 | F32: 9 | G32: 0 | H32: 0 | I32: 2.49 | J32: 0 | K32: 0 | L32: 0.285 | M32: 0.413 | N32: 0 | O32: 0 | P32: 0 | Q32: 1 | R32: 1 | S32: 0 | T32: 0.586 | U32: 0 | V32: 0.681 | W32: 0.245 | X32: 0 | Y32: 0 | Z32: 0 | AA32: 0 | AB32: 0 | AC32: 0 | AD32: 51 | AE32: 13.6 | AF32: 11.3 | AG32: 3.4 | AH32: 1.91 | AI32: 2.04 | AJ32: 1.01 | AK32: 0.659 | AL32: 0 | AM32: 0.208 | AN32: 31 | AO32: 0 | AP32: 0 | AQ32: 0 | AR32: 0 | AS32: 0 | AT32: 3.69 | AU32: 0.882 | AV32: 0 | AW32: 0
A33: C9X20 | B33: C | C33: F | D33: 20 | E33: 5.87 | F33: 9 | G33: 0 | H33: 0 | I33: 2.65 | J33: 0 | K33: 0 | L33: 0.448 | M33: 0.413 | N33: 0 | O33: 0 | P33: 0 | Q33: 1 | R33: 1 | S33: 0 | T33: 0.583 | U33: 0 | V33: 0.515 | W33: 0.326 | X33: 0 | Y33: 0 | Z33: 0 | AA33: 0 | AB33: 0 | AC33: 0 | AD33: 60.9 | AE33: 16.9 | AF33: 13.5 | AG33: 3.22 | AH33: 2.41 | AI33: 2.46 | AJ33: 1.17 | AK33: 0.64 | AL33: 0 | AM33: 0.427 | AN33: 39.4 | AO33: 0 | AP33: 0 | AQ33: 0 | AR33: 0 | AS33: 0 | AT33: 3.46 | AU33: 0.899 | AV33: 0 | AW33: 0
A34: HP10X42 | B34: HP | C34: F | D34: 42 | E34: 12.4 | F34: 9.7 | G34: 0 | H34: 0 | I34: 10.1 | J34: 0 | K34: 0 | L34: 0.415 | M34: 0.42 | N34: 0 | O34: 0 | P34: 0 | Q34: 1.13 | R34: 1.125 | S34: 0.8125 | T34: 0 | U34: 0 | V34: 0 | W34: 0 | X34: 0 | Y34: 12 | Z34: 0 | AA34: 18.9 | AB34: 0 | AC34: 0 | AD34: 210 | AE34: 48.3 | AF34: 43.4 | AG34: 4.13 | AH34: 71.7 | AI34: 21.8 | AJ34: 14.2 | AK34: 2.41 | AL34: 0 | AM34: 0.813 | AN34: 1540 | AO34: 0 | AP34: 23.4 | AQ34: 24.7 | AR34: 9.41 | AS34: 23.7 | AT34: 0 | AU34: 0 | AV34: 0 | AW34: 0
A35: HP10X57 | B35: HP | C35: F | D35: 57 | E35: 16.8 | F35: 10 | G35: 0 | H35: 0 | I35: 10.2 | J35: 0 | K35: 0 | L35: 0.565 | M35: 0.565 | N35: 0 | O35: 0 | P35: 0 | Q35: 1.25 | R35: 1.25 | S35: 0.9375 | T35: 0 | U35: 0 | V35: 0 | W35: 0 | X35: 0 | Y35: 9.05 | Z35: 0 | AA35: 13.9 | AB35: 0 | AC35: 0 | AD35: 294 | AE35: 66.5 | AF35: 58.8 | AG35: 4.18 | AH35: 101 | AI35: 30.3 | AJ35: 19.7 | AK35: 2.45 | AL35: 0 | AM35: 1.97 | AN35: 2240 | AO35: 0 | AP35: 24.1 | AQ35: 34.8 | AR35: 12.9 | AS35: 32.8 | AT35: 0 | AU35: 0 | AV35: 0 | AW35: 0
A36: HP12X53 | B36: HP | C36: F | D36: 53 | E36: 15.5 | F36: 11.8 | G36: 0 | H36: 0 | I36: 12 | J36: 0 | K36: 0 | L36: 0.435 | M36: 0.435 | N36: 0 | O36: 0 | P36: 0 | Q36: 1.13 | R36: 1.125 | S36: 0.875 | T36: 0 | U36: 0 | V36: 0 | W36: 0 | X36: 0 | Y36: 13.8 | Z36: 0 | AA36: 22.3 | AB36: 0 | AC36: 0 | AD36: 393 | AE36: 74 | AF36: 66.7 | AG36: 5.03 | AH36: 127 | AI36: 32.2 | AJ36: 21.1 | AK36: 2.86 | AL36: 0 | AM36: 1.12 | AN36: 4080 | AO36: 0 | AP36: 34.2 | AQ36: 44.7 | AR36: 14.3 | AS36: 36.2 | AT36: 0 | AU36: 0 | AV36: 0 | AW36: 0
A37: HP12X63 | B37: HP | C37: F | D37: 63 | E37: 18.4 | F37: 11.9 | G37: 0 | H37: 0 | I37: 12.1 | J37: 0 | K37: 0 | L37: 0.515 | M37: 0.515 | N37: 0 | O37: 0 | P37: 0 | Q37: 1.25 | R37: 1.25 | S37: 0.875 | T37: 0 | U37: 0 | V37: 0 | W37: 0 | X37: 0 | Y37: 11.8 | Z37: 0 | AA37: 18.9 | AB37: 0 | AC37: 0 | AD37: 472 | AE37: 88.3 | AF37: 79.1 | AG37: 5.06 | AH37: 153 | AI37: 38.7 | AJ37: 25.3 | AK37: 2.88 | AL37: 0 | AM37: 1.83 | AN37: 5000 | AO37: 0 | AP37: 34.6 | AQ37: 54.1 | AR37: 17.1 | AS37: 43.3 | AT37: 0 | AU37: 0 | AV37: 0 | AW37: 0
A38: HP12X74 | B38: HP | C38: F | D38: 74 | E38: 21.8 | F38: 12.1 | G38: 0 | H38: 0 | I38: 12.2 | J38: 0 | K38: 0 | L38: 0.605 | M38: 0.61 | N38: 0 | O38: 0 | P38: 0 | Q38: 1.31 | R38: 1.3125 | S38: 0.9375 | T38: 0 | U38: 0 | V38: 0 | W38: 0 | X38: 0 | Y38: 10 | Z38: 0 | AA38: 16.1 | AB38: 0 | AC38: 0 | AD38: 569 | AE38: 105 | AF38: 93.8 | AG38: 5.11 | AH38: 186 | AI38: 46.6 | AJ38: 30.4 | AK38: 2.92 | AL38: 0 | AM38: 2.98 | AN38: 6160 | AO38: 0 | AP38: 35.2 | AQ38: 65.5 | AR38: 20.4 | AS38: 51.9 | AT38: 0 | AU38: 0 | AV38: 0 | AW38: 0
A39: HP12X84 | B39: HP | C39: F | D39: 84 | E39: 24.6 | F39: 12.3 | G39: 0 | H39: 0 | I39: 12.3 | J39: 0 | K39: 0 | L39: 0.685 | M39: 0.685 | N39: 0 | O39: 0 | P39: 0 | Q39: 1.38 | R39: 1.375 | S39: 1 | T39: 0 | U39: 0 | V39: 0 | W39: 0 | X39: 0 | Y39: 8.97 | Z39: 0 | AA39: 14.2 | AB39: 0 | AC39: 0 | AD39: 650 | AE39: 120 | AF39: 106 | AG39: 5.14 | AH39: 213 | AI39: 53.2 | AJ39: 34.6 | AK39: 2.94 | AL39: 0 | AM39: 4.24 | AN39: 7140 | AO39: 0 | AP39: 35.6 | AQ39: 75 | AR39: 23.1 | AS39: 59 | AT39: 0 | AU39: 0 | AV39: 0 | AW39: 0
A40: HP14X102 | B40: HP | C40: F | D40: 102 | E40: 30 | F40: 14 | G40: 0 | H40: 0 | I40: 14.8 | J40: 0 | K40: 0 | L40: 0.705 | M40: 0.705 | N40: 0 | O40: 0 | P40: 0 | Q40: 1.38 | R40: 1.375 | S40: 1 | T40: 0 | U40: 0 | V40: 0 | W40: 0 | X40: 0 | Y40: 10.5 | Z40: 0 | AA40: 16.2 | AB40: 0 | AC40: 0 | AD40: 1050 | AE40: 169 | AF40: 150 | AG40: 5.92 | AH40: 380 | AI40: 78.8 | AJ40: 51.4 | AK40: 3.56 | AL40: 0 | AM40: 5.39 | AN40: 16800 | AO40: 0 | AP40: 49.2 | AQ40: 128 | AR40: 33 | AS40: 83.3 | AT40: 0 | AU40: 0 | AV40: 0 | AW40: 0
A41: HP14X117 | B41: HP | C41: F | D41: 117 | E41: 34.4 | F41: 14.2 | G41: 0 | H41: 0 | I41: 14.9 | J41: 0 | K41: 0 | L41: 0.805 | M41: 0.805 | N41: 0 | O41: 0 | P41: 0 | Q41: 1.5 | R41: 1.5 | S41: 1.0625 | T41: 0 | U41: 0 | V41: 0 | W41: 0 | X41: 0 | Y41: 9.25 | Z41: 0 | AA41: 14.2 | AB41: 0 | AC41: 0 | AD41: 1220 | AE41: 194 | AF41: 172 | AG41: 5.96 | AH41: 443 | AI41: 91.4 | AJ41: 59.5 | AK41: 3.59 | AL41: 0 | AM41: 8.02 | AN41: 19900 | AO41: 0 | AP41: 49.9 | AQ41: 149 | AR41: 38 | AS41: 96.3 | AT41: 0 | AU41: 0 | AV41: 0 | AW41: 0
A42: HP14X73 | B42: HP | C42: F | D42: 73 | E42: 21.4 | F42: 13.6 | G42: 0 | H42: 0 | I42: 14.6 | J42: 0 | K42: 0 | L42: 0.505 | M42: 0.505 | N42: 0 | O42: 0 | P42: 0 | Q42: 1.19 | R42: 1.1875 | S42: 0.875 | T42: 0 | U42: 0 | V42: 0 | W42: 0 | X42: 0 | Y42: 14.4 | Z42: 0 | AA42: 22.6 | AB42: 0 | AC42: 0 | AD42: 729 | AE42: 118 | AF42: 107 | AG42: 5.84 | AH42: 261 | AI42: 54.6 | AJ42: 35.8 | AK42: 3.49 | AL42: 0 | AM42: 2.01 | AN42: 11200 | AO42: 0 | AP42: 47.8 | AQ42: 88 | AR42: 23.3 | AS42: 58.3 | AT42: 0 | AU42: 0 | AV42: 0 | AW42: 0
A43: HP14X89 | B43: HP | C43: F | D43: 89 | E43: 26.1 | F43: 13.8 | G43: 0 | H43: 0 | I43: 14.7 | J43: 0 | K43: 0 | L43: 0.615 | M43: 0.615 | N43: 0 | O43: 0 | P43: 0 | Q43: 1.31 | R43: 1.3125 | S43: 0.9375 | T43: 0 | U43: 0 | V43: 0 | W43: 0 | X43: 0 | Y43: 11.9 | Z43: 0 | AA43: 18.5 | AB43: 0 | AC43: 0 | AD43: 904 | AE43: 146 | AF43: 131 | AG43: 5.88 | AH43: 326 | AI43: 67.7 | AJ43: 44.3 | AK43: 3.53 | AL43: 0 | AM43: 3.59 | AN43: 14200 | AO43: 0 | AP43: 48.5 | AQ43: 110 | AR43: 28.6 | AS43: 71.9 | AT43: 0 | AU43: 0 | AV43: 0 | AW43: 0
A44: HP8X36 | B44: HP | C44: F | D44: 36 | E44: 10.6 | F44: 8.02 | G44: 0 | H44: 0 | I44: 8.16 | J44: 0 | K44: 0 | L44: 0.445 | M44: 0.445 | N44: 0 | O44: 0 | P44: 0 | Q44: 1.13 | R44: 1.125 | S44: 0.875 | T44: 0 | U44: 0 | V44: 0 | W44: 0 | X44: 0 | Y44: 9.16 | Z44: 0 | AA44: 14.2 | AB44: 0 | AC44: 0 | AD44: 119 | AE44: 33.6 | AF44: 29.8 | AG44: 3.36 | AH44: 40.3 | AI44: 15.2 | AJ44: 9.88 | AK44: 1.95 | AL44: 0 | AM44: 0.77 | AN44: 578 | AO44: 0 | AP44: 15.4 | AQ44: 14 | AR44: 6.5 | AS44: 16.6 | AT44: 0 | AU44: 0 | AV44: 0 | AW44: 0
A45: HSS1.660X0.140 | B45: HSS | C45: F | D45: 2.274862147 | E45: 0.625 | F45: 0 | G45: 0 | H45: 1.66 | I45: 0 | J45: 0 | K45: 0 | L45: 0 | M45: 0 | N45: 0 | O45: 0.14 | P45: 0.13 | Q45: 0 | R45: 0 | S45: 0 | T45: 0 | U45: 0 | V45: 0 | W45: 0 | X45: 0 | Y45: 0 | Z45: 0 | AA45: 0 | AB45: 0 | AC45: 12.8 | AD45: 0.184 | AE45: 0.305 | AF45: 0.222 | AG45: 0.543 | AH45: 0.184 | AI45: 0.305 | AJ45: 0.222 | AK45: 0.543 | AL45: 0 | AM45: 0.368 | AN45: 0 | AO45: 0.444 | AP45: 0 | AQ45: 0 | AR45: 0 | AS45: 0 | AT45: 0 | AU45: 0 | AV45: 0 | AW45: 0
A46: HSS1.900X0.120 | B46: HSS | C46: F | D46: 2.28341426 | E46: 0.624 | F46: 0 | G46: 0 | H46: 1.9 | I46: 0 | J46: 0 | K46: 0 | L46: 0 | M46: 0 | N46: 0 | O46: 0.12 | P46: 0.111 | Q46: 0 | R46: 0 | S46: 0 | T46: 0 | U46: 0 | V46: 0 | W46: 0 | X46: 0 | Y46: 0 | Z46: 0 | AA46: 0 | AB46: 0 | AC46: 17.1 | AD46: 0.251 | AE46: 0.356 | AF46: 0.264 | AG46: 0.634 | AH46: 0.251 | AI46: 0.356 | AJ46: 0.264 | AK46: 0.634 | AL46: 0 | AM46: 0.501 | AN46: 0 | AO46: 0.527 | AP46: 0 | AQ46: 0 | AR46: 0 | AS46: 0 | AT46: 0 | AU46: 0 | AV46: 0 | AW46: 0
A47: HSS1.900X0.145 | B47: HSS | C47: F | D47: 2.720373801 | E47: 0.749 | F47: 0 | G47: 0 | H47: 1.9 | I47: 0 | J47: 0 | K47: 0 | L47: 0 | M47: 0 | N47: 0 | O47: 0.145 | P47: 0.135 | Q47: 0 | R47: 0 | S47: 0 | T47: 0 | U47: 0 | V47: 0 | W47: 0 | X47: 0 | Y47: 0 | Z47: 0 | AA47: 0 | AB47: 0 | AC47: 14.1 | AD47: 0.293 | AE47: 0.421 | AF47: 0.309 | AG47: 0.626 | AH47: 0.293 | AI47: 0.421 | AJ47: 0.309 | AK47: 0.626 | AL47: 0 | AM47: 0.586 | AN47: 0 | AO47: 0.617 | AP47: 0 | AQ47: 0 | AR47: 0 | AS47: 0 | AT47: 0 | AU47: 0 | AV47: 0 | AW47: 0
A48: HSS1.900X0.188 | B48: HSS | C48: F | D48: 3.440686237 | E48: 0.943 | F48: 0 | G48: 0 | H48: 1.9 | I48: 0 | J48: 0 | K48: 0 | L48: 0 | M48: 0 | N48: 0 | O48: 0.1875 | P48: 0.174 | Q48: 0 | R48: 0 | S48: 0 | T48: 0 | U48: 0 | V48: 0 | W48: 0 | X48: 0 | Y48: 0 | Z48: 0 | AA48: 0 | AB48: 0 | AC48: 10.9 | AD48: 0.355 | AE48: 0.52 | AF48: 0.374 | AG48: 0.613 | AH48: 0.355 | AI48: 0.52 | AJ48: 0.374 | AK48: 0.613 | AL48: 0 | AM48: 0.71 | AN48: 0 | AO48: 0.747 | AP48: 0 | AQ48: 0 | AR48: 0 | AS48: 0 | AT48: 0 | AU48: 0 | AV48: 0 | AW48: 0
A49: HSS10.750X0.250 | B49: HSS | C49: F | D49: 28.06162188 | E49: 7.7 | F49: 0 | G49: 0 | H49: 10.75 | I49: 0 | J49: 0 | K49: 0 | L49: 0 | M49: 0 | N49: 0 | O49: 0.25 | P49: 0.233 | Q49: 0 | R49: 0 | S49: 0 | T49: 0 | U49: 0 | V49: 0 | W49: 0 | X49: 0 | Y49: 0 | Z49: 0 | AA49: 0 | AB49: 0 | AC49: 46.1 | AD49: 106 | AE49: 25.8 | AF49: 19.8 | AG49: 3.72 | AH49: 106 | AI49: 25.8 | AJ49: 19.8 | AK49: 3.72 | AL49: 0 | AM49: 213 | AN49: 0 | AO49: 39.6 | AP49: 0 | AQ49: 0 | AR49: 0 | AS49: 0 | AT49: 0 | AU49: 0 | AV49: 0 | AW49: 0
A50: HSS10.750X0.375 | B50: HSS | C50: F | D50: 41.59133243 | E50: 11.4 | F50: 0 | G50: 0 | H50: 10.75 | I50: 0 | J50: 0 | K50: 0 | L50: 0 | M50: 0 | N50: 0 | O50: 0.375 | P50: 0.349 | Q50: 0 | R50: 0 | S50: 0 | T50: 0 | U50: 0 | V50: 0 | W50: 0 | X50: 0 | Y50: 0 | Z50: 0 | AA50: 0 | AB50: 0 | AC50: 30.8 | AD50: 154 | AE50: 37.8 | AF50: 28.7 | AG50: 3.68 | AH50: 154 | AI50: 37.8 | AJ50: 28.7 | AK50: 3.68 | AL50: 0 | AM50: 309 | AN50: 0 | AO50: 57.4 | AP50: 0 | AQ50: 0 | AR50: 0 | AS50: 0 | AT50: 0 | AU50: 0 | AV50: 0 | AW50: 0
A51: HSS10.750X0.500 | B51: HSS | C51: F | D51: 54.78697605 | E51: 15 | F51: 0 | G51: 0 | H51: 10.75 | I51: 0 | J51: 0 | K51: 0 | L51: 0 | M51: 0 | N51: 0 | O51: 0.5 | P51: 0.465 | Q51: 0 | R51: 0 | S51: 0 | T51: 0 | U51: 0 | V51: 0 | W51: 0 | X51: 0 | Y51: 0 | Z51: 0 | AA51: 0 | AB51: 0 | AC51: 23.1 | AD51: 199 | AE51: 49.2 | AF51: 37 | AG51: 3.64 | AH51: 199 | AI51: 49.2 | AJ51: 37 | AK51: 3.64 | AL51: 0 | AM51: 398 | AN51: 0 | AO51: 74.1 | AP51: 0 | AQ51: 0 | AR51: 0 | AS51: 0 | AT51: 0 | AU51: 0 | AV51: 0 | AW51: 0
A52: HSS10X0.188 | B52: HSS | C52: F | D52: 19.71963397 | E52: 5.37 | F52: 0 | G52: 0 | H52: 10 | I52: 0 | J52: 0 | K52: 0 | L52: 0 | M52: 0 | N52: 0 | O52: 0.1875 | P52: 0.174 | Q52: 0 | R52: 0 | S52: 0 | T52: 0 | U52: 0 | V52: 0 | W52: 0 | X52: 0 | Y52: 0 | Z52: 0 | AA52: 0 | AB52: 0 | AC52: 57.5 | AD52: 64.8 | AE52: 16.8 | AF52: 13 | AG52: 3.47 | AH52: 64.8 | AI52: 16.8 | AJ52: 13 | AK52: 3.47 | AL52: 0 | AM52: 130 | AN52: 0 | AO52: 25.9 | AP52: 0 | AQ52: 0 | AR52: 0 | AS52: 0 | AT52: 0 | AU52: 0 | AV52: 0 | AW52: 0
A53: HSS10X0.250 | B53: HSS | C53: F | D53: 26.05722032 | E53: 7.15 | F53: 0 | G53: 0 | H53: 10 | I53: 0 | J53: 0 | K53: 0 | L53: 0 | M53: 0 | N53: 0 | O53: 0.25 | P53: 0.233 | Q53: 0 | R53: 0 | S53: 0 | T53: 0 | U53: 0 | V53: 0 | W53: 0 | X53: 0 | Y53: 0 | Z53: 0 | AA53: 0 | AB53: 0 | AC53: 42.9 | AD53: 85.3 | AE53: 22.2 | AF53: 17.1 | AG53: 3.45 | AH53: 85.3 | AI53: 22.2 | AJ53: 17.1 | AK53: 3.45 | AL53: 0 | AM53: 171 | AN53: 0 | AO53: 34.1 | AP53: 0 | AQ53: 0 | AR53: 0 | AS53: 0 | AT53: 0 | AU53: 0 | AV53: 0 | AW53: 0
A54: HSS10X0.312 | B54: HSS | C54: F | D54: 32.31262086 | E54: 8.88 | F54: 0 | G54: 0 | H54: 10 | I54: 0 | J54: 0 | K54: 0 | L54: 0 | M54: 0 | N54: 0 | O54: 0.3125 | P54: 0.291 | Q54: 0 | R54: 0 | S54: 0 | T54: 0 | U54: 0 | V54: 0 | W54: 0 | X54: 0 | Y54: 0 | Z54: 0 | AA54: 0 | AB54: 0 | AC54: 34.4 | AD54: 105 | AE54: 27.4 | AF54: 20.9 | AG54: 3.43 | AH54: 105 | AI54: 27.4 | AJ54: 20.9 | AK54: 3.43 | AL54: 0 | AM54: 209 | AN54: 0 | AO54: 41.9 | AP54: 0 | AQ54: 0 | AR54: 0 | AS54: 0 | AT54: 0 | AU54: 0 | AV54: 0 | AW54: 0
A55: HSS10X0.375 | B55: HSS | C55: F | D55: 38.58473008 | E55: 10.6 | F55: 0 | G55: 0 | H55: 10 | I55: 0 | J55: 0 | K55: 0 | L55: 0 | M55: 0 | N55: 0 | O55: 0.375 | P55: 0.349 | Q55: 0 | R55: 0 | S55: 0 | T55: 0 | U55: 0 | V55: 0 | W55: 0 | X55: 0 | Y55: 0 | Z55: 0 | AA55: 0 | AB55: 0 | AC55: 28.7 | AD55: 123 | AE55: 32.5 | AF55: 24.7 | AG55: 3.41 | AH55: 123 | AI55: 32.5 | AJ55: 24.7 | AK55: 3.41 | AL55: 0 | AM55: 247 | AN55: 0 | AO55: 49.3 | AP55: 0 | AQ55: 0 | AR55: 0 | AS55: 0 | AT55: 0 | AU55: 0 | AV55: 0 | AW55: 0
A56: HSS10X0.500 | B56: HSS | C56: F | D56: 50.77817293 | E56: 13.9 | F56: 0 | G56: 0 | H56: 10 | I56: 0 | J56: 0 | K56: 0 | L56: 0 | M56: 0 | N56: 0 | O56: 0.5 | P56: 0.465 | Q56: 0 | R56: 0 | S56: 0 | T56: 0 | U56: 0 | V56: 0 | W56: 0 | X56: 0 | Y56: 0 | Z56: 0 | AA56: 0 | AB56: 0 | AC56: 21.5 | AD56: 159 | AE56: 42.3 | AF56: 31.7 | AG56: 3.38 | AH56: 159 | AI56: 42.3 | AJ56: 31.7 | AK56: 3.38 | AL56: 0 | AM56: 317 | AN56: 0 | AO56: 63.5 | AP56: 0 | AQ56: 0 | AR56: 0 | AS56: 0 | AT56: 0 | AU56: 0 | AV56: 0 | AW56: 0
A57: HSS10X0.625 | B57: HSS | C57: F | D57: 62.63754884 | E57: 17.2 | F57: 0 | G57: 0 | H57: 10 | I57: 0 | J57: 0 | K57: 0 | L57: 0 | M57: 0 | N57: 0 | O57: 0.625 | P57: 0.581 | Q57: 0 | R57: 0 | S57: 0 | T57: 0 | U57: 0 | V57: 0 | W57: 0 | X57: 0 | Y57: 0 | Z57: 0 | AA57: 0 | AB57: 0 | AC57: 17.2 | AD57: 191 | AE57: 51.6 | AF57: 38.3 | AG57: 3.34 | AH57: 191 | AI57: 51.6 | AJ57: 38.3 | AK57: 3.34 | AL57: 0 | AM57: 383 | AN57: 0 | AO57: 76.6 | AP57: 0 | AQ57: 0 | AR57: 0 | AS57: 0 | AT57: 0 | AU57: 0 | AV57: 0 | AW57: 0
A58: HSS10X10X1/2 | B58: HSS | C58: F | D58: 62.33164987 | E58: 17.2 | F58: 0 | G58: 10 | H58: 0 | I58: 0 | J58: 10 | K58: 0 | L58: 0 | M58: 0 | N58: 0 | O58: 0.5 | P58: 0.465 | Q58: 0 | R58: 0 | S58: 0 | T58: 0 | U58: 0 | V58: 0 | W58: 0 | X58: 0 | Y58: 0 | Z58: 18.5 | AA58: 0 | AB58: 18.5 | AC58: 0 | AD58: 256 | AE58: 60.7 | AF58: 51.2 | AG58: 3.86 | AH58: 0 | AI58: 0 | AJ58: 0 | AK58: 0 | AL58: 0 | AM58: 412 | AN58: 0 | AO58: 84.2 | AP58: 0 | AQ58: 0 | AR58: 0 | AS58: 0 | AT58: 0 | AU58: 0 | AV58: 0 | AW58: 0
A59: HSS10X10X1/4 | B59: HSS | C59: F | D59: 32.59746019 | E59: 8.96 | F59: 0 | G59: 10 | H59: 0 | I59: 0 | J59: 10 | K59: 0 | L59: 0 | M59: 0 | N59: 0 | O59: 0.25 | P59: 0.233 | Q59: 0 | R59: 0 | S59: 0 | T59: 0 | U59: 0 | V59: 0 | W59: 0 | X59: 0 | Y59: 0 | Z59: 39.9 | AA59: 0 | AB59: 39.9 | AC59: 0 | AD59: 141 | AE59: 32.7 | AF59: 28.3 | AG59: 3.97 | AH59: 0 | AI59: 0 | AJ59: 0 | AK59: 0 | AL59: 0 | AM59: 220 | AN59: 0 | AO59: 44.4 | AP59: 0 | AQ59: 0 | AR59: 0 | AS59: 0 | AT59: 0 | AU59: 0 | AV59: 0 | AW59: 0
A60: HSS10X10X3/16 | B60: HSS | C60: F | D60: 24.71554752 | E60: 6.76 | F60: 0 | G60: 10 | H60: 0 | I60: 0 | J60: 10 | K60: 0 | L60: 0 | M60: 0 | N60: 0 | O60: 0.1875 | P60: 0.174 | Q60: 0 | R60: 0 | S60: 0 | T60: 0 | U60: 0 | V60: 0 | W60: 0 | X60: 0 | Y60: 0 | Z60: 54.5 | AA60: 0 | AB60: 54.5 | AC60: 0 | AD60: 108 | AE60: 24.8 | AF60: 21.6 | AG60: 4 | AH60: 0 | AI60: 0 | AJ60: 0 | AK60: 0 | AL60: 0 | AM60: 167 | AN60: 0 | AO60: 33.6 | AP60: 0 | AQ60: 0 | AR60: 0 | AS60: 0 | AT60: 0 | AU60: 0 | AV60: 0 | AW60: 0
A61: HSS10X10X3/8 | B61: HSS | C61: F | D61: 47.82245984 | E61: 13.2 | F61: 0 | G61: 10 | H61: 0 | I61: 0 | J61: 10 | K61: 0 | L61: 0 | M61: 0 | N61: 0 | O61: 0.375 | P61: 0.349 | Q61: 0 | R61: 0 | S61: 0 | T61: 0 | U61: 0 | V61: 0 | W61: 0 | X61: 0 | Y61: 0 | Z61: 25.7 | AA61: 0 | AB61: 25.7 | AC61: 0 | AD61: 202 | AE61: 47.2 | AF61: 40.4 | AG61: 3.92 | AH61: 0 | AI61: 0 | AJ61: 0 | AK61: 0 | AL61: 0 | AM61: 320 | AN61: 0 | AO61: 64.8 | AP61: 0 | AQ61: 0 | AR61: 0 | AS61: 0 | AT61: 0 | AU61: 0 | AV61: 0 | AW61: 0
A62: HSS10X10X5/16 | B62: HSS | C62: F | D62: 40.29943622 | E62: 11.1 | F62: 0 | G62: 10 | H62: 0 | I62: 0 | J62: 10 | K62: 0 | L62: 0 | M62: 0 | N62: 0 | O62: 0.3125 | P62: 0.291 | Q62: 0 | R62: 0 | S62: 0 | T62: 0 | U62: 0 | V62: 0 | W62: 0 | X62: 0 | Y62: 0 | Z62: 31.4 | AA62: 0 | AB62: 31.4 | AC62: 0 | AD62: 172 | AE62: 40.1 | AF62: 34.5 | AG62: 3.94 | AH62: 0 | AI62: 0 | AJ62: 0 | AK62: 0 | AL62: 0 | AM62: 271 | AN62: 0 | AO62: 54.8 | AP62: 0 | AQ62: 0 | AR62: 0 | AS62: 0 | AT62: 0 | AU62: 0 | AV62: 0 | AW62: 0
A63: HSS10X10X5/8 | B63: HSS | C63: F | D63: 76.12503029 | E63: 21 | F63: 0 | G63: 10 | H63: 0 | I63: 0 | J63: 10 | K63: 0 | L63: 0 | M63: 0 | N63: 0 | O63: 0.625 | P63: 0.581 | Q63: 0 | R63: 0 | S63: 0 | T63: 0 | U63: 0 | V63: 0 | W63: 0 | X63: 0 | Y63: 0 | Z63: 14.2 | AA63: 0 | AB63: 14.2 | AC63: 0 | AD63: 304 | AE63: 73.2 | AF63: 60.8 | AG63: 3.8 | AH63: 0 | AI63: 0 | AJ63: 0 | AK63: 0 | AL63: 0 | AM63: 498 | AN63: 0 | AO63: 102 | AP63: 0 | AQ63: 0 | AR63: 0 | AS63: 0 | AT63: 0 | AU63: 0 | AV63: 0 | AW63: 0
A64: HSS10X2X1/4 | B64: HSS | C64: F | D64: 18.98634908 | E64: 5.24 | F64: 0 | G64: 10 | H64: 0 | I64: 0 | J64: 2 | K64: 0 | L64: 0 | M64: 0 | N64: 0 | O64: 0.25 | P64: 0.233 | Q64: 0 | R64: 0 | S64: 0 | T64: 0 | U64: 0 | V64: 0 | W64: 0 | X64: 0 | Y64: 0 | Z64: 5.58 | AA64: 0 | AB64: 39.9 | AC64: 0 | AD64: 52.5 | AE64: 14.4 | AF64: 10.5 | AG64: 3.17 | AH64: 3.67 | AI64: 4.26 | AJ64: 3.67 | AK64: 0.838 | AL64: 0 | AM64: 12.2 | AN64: 0.25 | AO64: 7.99 | AP64: 0 | AQ64: 0 | AR64: 0 | AS64: 0 | AT64: 0 | AU64: 0 | AV64: 0 | AW64: 0
A65: HSS10X2X1/8 | B65: HSS | C65: F | D65: 9.850428528 | E65: 2.7 | F65: 0 | G65: 10 | H65: 0 | I65: 0 | J65: 2 | K65: 0 | L65: 0 | M65: 0 | N65: 0 | O65: 0.125 | P65: 0.116 | Q65: 0 | R65: 0 | S65: 0 | T65: 0 | U65: 0 | V65: 0 | W65: 0 | X65: 0 | Y65: 0 | Z65: 14.2 | AA65: 0 | AB65: 83.2 | AC65: 0 | AD65: 28.5 | AE65: 7.65 | AF65: 5.7 | AG65: 3.25 | AH65: 2.14 | AI65: 2.33 | AJ65: 2.14 | AK65: 0.89 | AL65: 0 | AM65: 6.9 | AN65: 0.125 | AO65: 4.31 | AP65: 0 | AQ65: 0 | AR65: 0 | AS65: 0 | AT65: 0 | AU65: 0 | AV65: 0 | AW65: 0
A66: HSS10X2X3/16 | B66: HSS | C66: F | D66: 14.54331085 | E66: 3.98 | F66: 0 | G66: 10 | H66: 0 | I66: 0 | J66: 2 | K66: 0 | L66: 0 | M66: 0 | N66: 0 | O66: 0.1875 | P66: 0.174 | Q66: 0 | R66: 0 | S66: 0 | T66: 0 | U66: 0 | V66: 0 | W66: 0 | X66: 0 | Y66: 0 | Z66: 8.49 | AA66: 0 | AB66: 54.5 | AC66: 0 | AD66: 41 | AE66: 11.1 | AF66: 8.19 | AG66: 3.21 | AH66: 2.97 | AI66: 3.34 | AJ66: 2.97 | AK66: 0.864 | AL66: 0 | AM66: 9.74 | AN66: 0.1875 | AO66: 6.22 | AP66: 0 | AQ66: 0 | AR66: 0 | AS66: 0 | AT66: 0 | AU66: 0 | AV66: 0 | AW66: 0
A67: HSS10X2X3/8 | B67: HSS | C67: F | D67: 27.40579317 | E67: 7.58 | F67: 0 | G67: 10 | H67: 0 | I67: 0 | J67: 2 | K67: 0 | L67: 0 | M67: 0 | N67: 0 | O67: 0.375 | P67: 0.349 | Q67: 0 | R67: 0 | S67: 0 | T67: 0 | U67: 0 | V67: 0 | W67: 0 | X67: 0 | Y67: 0 | Z67: 2.73 | AA67: 0 | AB67: 25.7 | AC67: 0 | AD67: 71.7 | AE67: 20.3 | AF67: 14.3 | AG67: 3.08 | AH67: 4.7 | AI67: 5.76 | AJ67: 4.7 | AK67: 0.787 | AL67: 0 | AM67: 15.9 | AN67: 0.375 | AO67: 11 | AP67: 0 | AQ67: 0 | AR67: 0 | AS67: 0 | AT67: 0 | AU67: 0 | AV67: 0 | AW67: 0
A68: HSS10X2X5/16 | B68: HSS | C68: F | D68: 23.31845899 | E68: 6.43 | F68: 0 | G68: 10 | H68: 0 | I68: 0 | J68: 2 | K68: 0 | L68: 0 | M68: 0 | N68: 0 | O68: 0.3125 | P68: 0.291 | Q68: 0 | R68: 0 | S68: 0 | T68: 0 | U68: 0 | V68: 0 | W68: 0 | X68: 0 | Y68: 0 | Z68: 3.87 | AA68: 0 | AB68: 31.4 | AC68: 0 | AD68: 62.6 | AE68: 17.5 | AF68: 12.5 | AG68: 3.12 | AH68: 4.24 | AI68: 5.06 | AJ68: 4.24 | AK68: 0.812 | AL68: 0 | AM68: 14.2 | AN68: 0.3125 | AO68: 9.56 | AP68: 0 | AQ68: 0 | AR68: 0 | AS68: 0 | AT68: 0 | AU68: 0 | AV68: 0 | AW68: 0
A69: HSS10X3-1/2X1/2 | B69: HSS | C69: F | D69: 40.21359431 | E69: 11.1 | F69: 0 | G69: 10 | H69: 0 | I69: 0 | J69: 3.5 | K69: 0 | L69: 0 | M69: 0 | N69: 0 | O69: 0.5 | P69: 0.465 | Q69: 0 | R69: 0 | S69: 0 | T69: 0 | U69: 0 | V69: 0 | W69: 0 | X69: 0 | Y69: 0 | Z69: 4.53 | AA69: 0 | AB69: 18.5 | AC69: 0 | AD69: 118 | AE69: 31.9 | AF69: 23.7 | AG69: 3.26 | AH69: 21.4 | AI69: 14.7 | AJ69: 12.2 | AK69: 1.39 | AL69: 0 | AM69: 63.2 | AN69: 0.5 | AO69: 26.5 | AP69: 0 | AQ69: 0 | AR69: 0 | AS69: 0 | AT69: 0 | AU69: 0 | AV69: 0 | AW69: 0
A70: HSS10X3-1/2X1/4 | B70: HSS | C70: F | D70: 21.53843241 | E70: 5.93 | F70: 0 | G70: 10 | H70: 0 | I70: 0 | J70: 3.5 | K70: 0 | L70: 0 | M70: 0 | N70: 0 | O70: 0.25 | P70: 0.233 | Q70: 0 | R70: 0 | S70: 0 | T70: 0 | U70: 0 | V70: 0 | W70: 0 | X70: 0 | Y70: 0 | Z70: 12 | AA70: 0 | AB70: 39.9 | AC70: 0 | AD70: 69.1 | AE70: 17.9 | AF70: 13.8 | AG70: 3.41 | AH70: 13.1 | AI70: 8.45 | AJ70: 7.51 | AK70: 1.49 | AL70: 0 | AM70: 37 | AN70: 0.25 | AO70: 14.8 | AP70: 0 | AQ70: 0 | AR70: 0 | AS70: 0 | AT70: 0 | AU70: 0 | AV70: 0 | AW70: 0
A71: HSS10X3-1/2X1/8 | B71: HSS | C71: F | D71: 11.12647019 | E71: 3.04 | F71: 0 | G71: 10 | H71: 0 | I71: 0 | J71: 3.5 | K71: 0 | L71: 0 | M71: 0 | N71: 0 | O71: 0.125 | P71: 0.116 | Q71: 0 | R71: 0 | S71: 0 | T71: 0 | U71: 0 | V71: 0 | W71: 0 | X71: 0 | Y71: 0 | Z71: 27.2 | AA71: 0 | AB71: 83.2 | AC71: 0 | AD71: 37 | AE71: 9.37 | AF71: 7.4 | AG71: 3.49 | AH71: 7.22 | AI71: 4.48 | AJ71: 4.12 | AK71: 1.54 | AL71: 0 | AM71: 19.8 | AN71: 0.125 | AO71: 7.75 | AP71: 0 | AQ71: 0 | AR71: 0 | AS71: 0 | AT71: 0 | AU71: 0 | AV71: 0 | AW71: 0
A72: HSS10X3-1/2X3/16 | B72: HSS | C72: F | D72: 16.46247752 | E72: 4.5 | F72: 0 | G72: 10 | H72: 0 | I72: 0 | J72: 3.5 | K72: 0 | L72: 0 | M72: 0 | N72: 0 | O72: 0.1875 | P72: 0.174 | Q72: 0 | R72: 0 | S72: 0 | T72: 0 | U72: 0 | V72: 0 | W72: 0 | X72: 0 | Y72: 0 | Z72: 17.1 | AA72: 0 | AB72: 54.5 | AC72: 0 | AD72: 53.6 | AE72: 13.7 | AF72: 10.7 | AG72: 3.45 | AH72: 10.3 | AI72: 6.52 | AJ72: 5.89 | AK72: 1.51 | AL72: 0 | AM72: 28.6 | AN72: 0.1875 | AO72: 11.4 | AP72: 0 | AQ72: 0 | AR72: 0 | AS72: 0 | AT72: 0 | AU72: 0 | AV72: 0 | AW72: 0
A73: HSS10X3-1/2X3/8 | B73: HSS | C73: F | D73: 31.23391817 | E73: 8.62 | F73: 0 | G73: 10 | H73: 0 | I73: 0 | J73: 3.5 | K73: 0 | L73: 0 | M73: 0 | N73: 0 | O73: 0.375 | P73: 0.349 | Q73: 0 | R73: 0 | S73: 0 | T73: 0 | U73: 0 | V73: 0 | W73: 0 | X73: 0 | Y73: 0 | Z73: 7.03 | AA73: 0 | AB73: 25.7 | AC73: 0 | AD73: 96.1 | AE73: 25.3 | AF73: 19.2 | AG73: 3.34 | AH73: 17.8 | AI73: 11.8 | AJ73: 10.2 | AK73: 1.44 | AL73: 0 | AM73: 51.5 | AN73: 0.375 | AO73: 21.1 | AP73: 0 | AQ73: 0 | AR73: 0 | AS73: 0 | AT73: 0 | AU73: 0 | AV73: 0 | AW73: 0
A74: HSS10X3-1/2X5/16 | B74: HSS | C74: F | D74: 26.51366733 | E74: 7.3 | F74: 0 | G74: 10 | H74: 0 | I74: 0 | J74: 3.5 | K74: 0 | L74: 0 | M74: 0 | N74: 0 | O74: 0.3125 | P74: 0.291 | Q74: 0 | R74: 0 | S74: 0 | T74: 0 | U74: 0 | V74: 0 | W74: 0 | X74: 0 | Y74: 0 | Z74: 9.03 | AA74: 0 | AB74: 31.4 | AC74: 0 | AD74: 83.2 | AE74: 21.7 | AF74: 16.6 | AG74: 3.38 | AH74: 15.6 | AI74: 10.2 | AJ74: 8.92 | AK74: 1.46 | AL74: 0 | AM74: 44.6 | AN74: 0.3125 | AO74: 18 | AP74: 0 | AQ74: 0 | AR74: 0 | AS74: 0 | AT74: 0 | AU74: 0 | AV74: 0 | AW74: 0
A75: HSS10X3X1/4 | B75: HSS | C75: F | D75: 20.68773797 | E75: 5.7 | F75: 0 | G75: 10 | H75: 0 | I75: 0 | J75: 3 | K75: 0 | L75: 0 | M75: 0 | N75: 0 | O75: 0.25 | P75: 0.233 | Q75: 0 | R75: 0 | S75: 0 | T75: 0 | U75: 0 | V75: 0 | W75: 0 | X75: 0 | Y75: 0 | Z75: 9.88 | AA75: 0 | AB75: 39.9 | AC75: 0 | AD75: 63.6 | AE75: 16.7 | AF75: 12.7 | AG75: 3.34 | AH75: 9.28 | AI75: 6.99 | AJ75: 6.19 | AK75: 1.28 | AL75: 0 | AM75: 27.6 | AN75: 0.25 | AO75: 12.5 | AP75: 0 | AQ75: 0 | AR75: 0 | AS75: 0 | AT75: 0 | AU75: 0 | AV75: 0 | AW75: 0
A76: HSS10X3X1/8 | B76: HSS | C76: F | D76: 10.70112297 | E76: 2.93 | F76: 0 | G76: 10 | H76: 0 | I76: 0 | J76: 3 | K76: 0 | L76: 0 | M76: 0 | N76: 0 | O76: 0.125 | P76: 0.116 | Q76: 0 | R76: 0 | S76: 0 | T76: 0 | U76: 0 | V76: 0 | W76: 0 | X76: 0 | Y76: 0 | Z76: 22.9 | AA76: 0 | AB76: 83.2 | AC76: 0 | AD76: 34.2 | AE76: 8.8 | AF76: 6.83 | AG76: 3.42 | AH76: 5.16 | AI76: 3.74 | AJ76: 3.44 | AK76: 1.33 | AL76: 0 | AM76: 14.9 | AN76: 0.125 | AO76: 6.61 | AP76: 0 | AQ76: 0 | AR76: 0 | AS76: 0 | AT76: 0 | AU76: 0 | AV76: 0 | AW76: 0
A77: HSS10X3X3/16 | B77: HSS | C77: F | D77: 15.8227553 | E77: 4.32 | F77: 0 | G77: 10 | H77: 0 | I77: 0 | J77: 3 | K77: 0 | L77: 0 | M77: 0 | N77: 0 | O77: 0.1875 | P77: 0.174 | Q77: 0 | R77: 0 | S77: 0 | T77: 0 | U77: 0 | V77: 0 | W77: 0 | X77: 0 | Y77: 0 | Z77: 14.2 | AA77: 0 | AB77: 54.5 | AC77: 0 | AD77: 49.4 | AE77: 12.8 | AF77: 9.87 | AG77: 3.38 | AH77: 7.33 | AI77: 5.41 | AJ77: 4.89 | AK77: 1.3 | AL77: 0 | AM77: 21.5 | AN77: 0.1875 | AO77: 9.64 | AP77: 0 | AQ77: 0 | AR77: 0 | AS77: 0 | AT77: 0 | AU77: 0 | AV77: 0 | AW77: 0
A78: HSS10X3X3/8 | B78: HSS | C78: F | D78: 29.9578765 | E78: 8.27 | F78: 0 | G78: 10 | H78: 0 | I78: 0 | J78: 3 | K78: 0 | L78: 0 | M78: 0 | N78: 0 | O78: 0.375 | P78: 0.349 | Q78: 0 | R78: 0 | S78: 0 | T78: 0 | U78: 0 | V78: 0 | W78: 0 | X78: 0 | Y78: 0 | Z78: 5.6 | AA78: 0 | AB78: 25.7 | AC78: 0 | AD78: 88 | AE78: 23.7 | AF78: 17.6 | AG78: 3.26 | AH78: 12.4 | AI78: 9.73 | AJ78: 8.28 | AK78: 1.22 | AL78: 0 | AM78: 37.8 | AN78: 0.375 | AO78: 17.7 | AP78: 0 | AQ78: 0 | AR78: 0 | AS78: 0 | AT78: 0 | AU78: 0 | AV78: 0 | AW78: 0
A79: HSS10X3X5/16 | B79: HSS | C79: F | D79: 25.44859788 | E79: 7.01 | F79: 0 | G79: 10 | H79: 0 | I79: 0 | J79: 3 | K79: 0 | L79: 0 | M79: 0 | N79: 0 | O79: 0.3125 | P79: 0.291 | Q79: 0 | R79: 0 | S79: 0 | T79: 0 | U79: 0 | V79: 0 | W79: 0 | X79: 0 | Y79: 0 | Z79: 7.31 | AA79: 0 | AB79: 31.4 | AC79: 0 | AD79: 76.3 | AE79: 20.3 | AF79: 15.3 | AG79: 3.3 | AH79: 11 | AI79: 8.42 | AJ79: 7.3 | AK79: 1.25 | AL79: 0 | AM79: 33 | AN79: 0.3125 | AO79: 15.2 | AP79: 0 | AQ79: 0 | AR79: 0 | AS79: 0 | AT79: 0 | AU79: 0 | AV79: 0 | AW79: 0
A80: HSS10X4X1/2 | B80: HSS | C80: F | D80: 41.9149832 | E80: 11.6 | F80: 0 | G80: 10 | H80: 0 | I80: 0 | J80: 4 | K80: 0 | L80: 0 | M80: 0 | N80: 0 | O80: 0.5 | P80: 0.465 | Q80: 0 | R80: 0 | S80: 0 | T80: 0 | U80: 0 | V80: 0 | W80: 0 | X80: 0 | Y80: 0 | Z80: 5.6 | AA80: 0 | AB80: 18.5 | AC80: 0 | AD80: 129 | AE80: 34.1 | AF80: 25.8 | AG80: 3.34 | AH80: 29.5 | AI80: 17.6 | AJ80: 14.7 | AK80: 1.59 | AL80: 0 | AM80: 82.6 | AN80: 0.5 | AO80: 31 | AP80: 0 | AQ80: 0 | AR80: 0 | AS80: 0 | AT80: 0 | AU80: 0 | AV80: 0 | AW80: 0
A81: HSS10X4X1/4 | B81: HSS | C81: F | D81: 22.38912686 | E81: 6.17 | F81: 0 | G81: 10 | H81: 0 | I81: 0 | J81: 4 | K81: 0 | L81: 0 | M81: 0 | N81: 0 | O81: 0.25 | P81: 0.233 | Q81: 0 | R81: 0 | S81: 0 | T81: 0 | U81: 0 | V81: 0 | W81: 0 | X81: 0 | Y81: 0 | Z81: 14.2 | AA81: 0 | AB81: 39.9 | AC81: 0 | AD81: 74.7 | AE81: 19 | AF81: 14.9 | AG81: 3.48 | AH81: 17.7 | AI81: 10 | AJ81: 8.87 | AK81: 1.7 | AL81: 0 | AM81: 47.4 | AN81: 0.25 | AO81: 17.1 | AP81: 0 | AQ81: 0 | AR81: 0 | AS81: 0 | AT81: 0 | AU81: 0 | AV81: 0 | AW81: 0
A82: HSS10X4X1/8 | B82: HSS | C82: F | D82: 11.55181742 | E82: 3.16 | F82: 0 | G82: 10 | H82: 0 | I82: 0 | J82: 4 | K82: 0 | L82: 0 | M82: 0 | N82: 0 | O82: 0.125 | P82: 0.116 | Q82: 0 | R82: 0 | S82: 0 | T82: 0 | U82: 0 | V82: 0 | W82: 0 | X82: 0 | Y82: 0 | Z82: 31.5 | AA82: 0 | AB82: 83.2 | AC82: 0 | AD82: 39.8 | AE82: 10 | AF82: 7.97 | AG82: 3.55 | AH82: 9.65 | AI82: 5.26 | AJ82: 4.83 | AK82: 1.75 | AL82: 0 | AM82: 25.1 | AN82: 0.125 | AO82: 8.9 | AP82: 0 | AQ82: 0 | AR82: 0 | AS82: 0 | AT82: 0 | AU82: 0 | AV82: 0 | AW82: 0
A83: HSS10X4X3/16 | B83: HSS | C83: F | D83: 17.10219974 | E83: 4.67 | F83: 0 | G83: 10 | H83: 0 | I83: 0 | J83: 4 | K83: 0 | L83: 0 | M83: 0 | N83: 0 | O83: 0.1875 | P83: 0.174 | Q83: 0 | R83: 0 | S83: 0 | T83: 0 | U83: 0 | V83: 0 | W83: 0 | X83: 0 | Y83: 0 | Z83: 20 | AA83: 0 | AB83: 54.5 | AC83: 0 | AD83: 57.8 | AE83: 14.6 | AF83: 11.6 | AG83: 3.52 | AH83: 13.9 | AI83: 7.66 | AJ83: 6.93 | AK83: 1.72 | AL83: 0 | AM83: 36.5 | AN83: 0.1875 | AO83: 13.1 | AP83: 0 | AQ83: 0 | AR83: 0 | AS83: 0 | AT83: 0 | AU83: 0 | AV83: 0 | AW83: 0
A84: HSS10X4X3/8 | B84: HSS | C84: F | D84: 32.50995984 | E84: 8.97 | F84: 0 | G84: 10 | H84: 0 | I84: 0 | J84: 4 | K84: 0 | L84: 0 | M84: 0 | N84: 0 | O84: 0.375 | P84: 0.349 | Q84: 0 | R84: 0 | S84: 0 | T84: 0 | U84: 0 | V84: 0 | W84: 0 | X84: 0 | Y84: 0 | Z84: 8.46 | AA84: 0 | AB84: 25.7 | AC84: 0 | AD84: 104 | AE84: 27 | AF84: 20.8 | AG84: 3.41 | AH84: 24.3 | AI84: 14 | AJ84: 12.1 | AK84: 1.64 | AL84: 0 | AM84: 66.5 | AN84: 0.375 | AO84: 24.4 | AP84: 0 | AQ84: 0 | AR84: 0 | AS84: 0 | AT84: 0 | AU84: 0 | AV84: 0 | AW84: 0
A85: HSS10X4X5/16 | B85: HSS | C85: F | D85: 27.57873677 | E85: 7.59 | F85: 0 | G85: 10 | H85: 0 | I85: 0 | J85: 4 | K85: 0 | L85: 0 | M85: 0 | N85: 0 | O85: 0.3125 | P85: 0.291 | Q85: 0 | R85: 0 | S85: 0 | T85: 0 | U85: 0 | V85: 0 | W85: 0 | X85: 0 | Y85: 0 | Z85: 10.7 | AA85: 0 | AB85: 31.4 | AC85: 0 | AD85: 90.1 | AE85: 23.1 | AF85: 18 | AG85: 3.44 | AH85: 21.2 | AI85: 12.1 | AJ85: 10.6 | AK85: 1.67 | AL85: 0 | AM85: 57.3 | AN85: 0.3125 | AO85: 20.9 | AP85: 0 | AQ85: 0 | AR85: 0 | AS85: 0 | AT85: 0 | AU85: 0 | AV85: 0 | AW85: 0
A86: HSS10X4X5/8 | B86: HSS | C86: F | D86: 50.60419696 | E86: 14 | F86: 0 | G86: 10 | H86: 0 | I86: 0 | J86: 4 | K86: 0 | L86: 0 | M86: 0 | N86: 0 | O86: 0.625 | P86: 0.581 | Q86: 0 | R86: 0 | S86: 0 | T86: 0 | U86: 0 | V86: 0 | W86: 0 | X86: 0 | Y86: 0 | Z86: 3.88 | AA86: 0 | AB86: 14.2 | AC86: 0 | AD86: 149 | AE86: 40.3 | AF86: 29.9 | AG86: 3.26 | AH86: 33.5 | AI86: 20.6 | AJ86: 16.8 | AK86: 1.54 | AL86: 0 | AM86: 95.7 | AN86: 0.625 | AO86: 36.7 | AP86: 0 | AQ86: 0 | AR86: 0 | AS86: 0 | AT86: 0 | AU86: 0 | AV86: 0 | AW86: 0
A87: HSS10X5X1/4 | B87: HSS | C87: F | D87: 24.09051575 | E87: 6.63 | F87: 0 | G87: 10 | H87: 0 | I87: 0 | J87: 5 | K87: 0 | L87: 0 | M87: 0 | N87: 0 | O87: 0.25 | P87: 0.233 | Q87: 0 | R87: 0 | S87: 0 | T87: 0 | U87: 0 | V87: 0 | W87: 0 | X87: 0 | Y87: 0 | Z87: 18.5 | AA87: 0 | AB87: 39.9 | AC87: 0 | AD87: 85.8 | AE87: 21.3 | AF87: 17.2 | AG87: 3.6 | AH87: 29.3 | AI87: 13.2 | AJ87: 11.7 | AK87: 2.1 | AL87: 0 | AM87: 70.7 | AN87: 0.25 | AO87: 21.6 | AP87: 0 | AQ87: 0 | AR87: 0 | AS87: 0 | AT87: 0 | AU87: 0 | AV87: 0 | AW87: 0
A88: HSS10X5X3/16 | B88: HSS | C88: F | D88: 18.38164419 | E88: 5.02 | F88: 0 | G88: 10 | H88: 0 | I88: 0 | J88: 5 | K88: 0 | L88: 0 | M88: 0 | N88: 0 | O88: 0.1875 | P88: 0.174 | Q88: 0 | R88: 0 | S88: 0 | T88: 0 | U88: 0 | V88: 0 | W88: 0 | X88: 0 | Y88: 0 | Z88: 25.7 | AA88: 0 | AB88: 54.5 | AC88: 0 | AD88: 66.2 | AE88: 16.3 | AF88: 13.2 | AG88: 3.63 | AH88: 22.7 | AI88: 10.1 | AJ88: 9.09 | AK88: 2.13 | AL88: 0 | AM88: 54.1 | AN88: 0.1875 | AO88: 16.5 | AP88: 0 | AQ88: 0 | AR88: 0 | AS88: 0 | AT88: 0 | AU88: 0 | AV88: 0 | AW88: 0
A89: HSS10X5X3/8 | B89: HSS | C89: F | D89: 35.06204317 | E89: 9.67 | F89: 0 | G89: 10 | H89: 0 | I89: 0 | J89: 5 | K89: 0 | L89: 0 | M89: 0 | N89: 0 | O89: 0.375 | P89: 0.349 | Q89: 0 | R89: 0 | S89: 0 | T89: 0 | U89: 0 | V89: 0 | W89: 0 | X89: 0 | Y89: 0 | Z89: 11.3 | AA89: 0 | AB89: 25.7 | AC89: 0 | AD89: 120 | AE89: 30.4 | AF89: 24.1 | AG89: 3.53 | AH89: 40.6 | AI89: 18.7 | AJ89: 16.2 | AK89: 2.05 | AL89: 0 | AM89: 100 | AN89: 0.375 | AO89: 31.2 | AP89: 0 | AQ89: 0 | AR89: 0 | AS89: 0 | AT89: 0 | AU89: 0 | AV89: 0 | AW89: 0
A90: HSS10X5X5/16 | B90: HSS | C90: F | D90: 29.70887566 | E90: 8.17 | F90: 0 | G90: 10 | H90: 0 | I90: 0 | J90: 5 | K90: 0 | L90: 0 | M90: 0 | N90: 0 | O90: 0.3125 | P90: 0.291 | Q90: 0 | R90: 0 | S90: 0 | T90: 0 | U90: 0 | V90: 0 | W90: 0 | X90: 0 | Y90: 0 | Z90: 14.2 | AA90: 0 | AB90: 31.4 | AC90: 0 | AD90: 104 | AE90: 26 | AF90: 20.8 | AG90: 3.56 | AH90: 35.2 | AI90: 16 | AJ90: 14.1 | AK90: 2.07 | AL90: 0 | AM90: 86 | AN90: 0.3125 | AO90: 26.5 | AP90: 0 | AQ90: 0 | AR90: 0 | AS90: 0 | AT90: 0 | AU90: 0 | AV90: 0 | AW90: 0
A91: HSS10X6X1/2 | B91: HSS | C91: F | D91: 48.72053876 | E91: 13.5 | F91: 0 | G91: 10 | H91: 0 | I91: 0 | J91: 6 | K91: 0 | L91: 0 | M91: 0 | N91: 0 | O91: 0.5 | P91: 0.465 | Q91: 0 | R91: 0 | S91: 0 | T91: 0 | U91: 0 | V91: 0 | W91: 0 | X91: 0 | Y91: 0 | Z91: 9.9 | AA91: 0 | AB91: 18.5 | AC91: 0 | AD91: 171 | AE91: 43 | AF91: 34.3 | AG91: 3.57 | AH91: 76.8 | AI91: 30.1 | AJ91: 25.6 | AK91: 2.39 | AL91: 0 | AM91: 176 | AN91: 0.5 | AO91: 48.7 | AP91: 0 | AQ91: 0 | AR91: 0 | AS91: 0 | AT91: 0 | AU91: 0 | AV91: 0 | AW91: 0
A92: HSS10X6X1/4 | B92: HSS | C92: F | D92: 25.79190464 | E92: 7.1 | F92: 0 | G92: 10 | H92: 0 | I92: 0 | J92: 6 | K92: 0 | L92: 0 | M92: 0 | N92: 0 | O92: 0.25 | P92: 0.233 | Q92: 0 | R92: 0 | S92: 0 | T92: 0 | U92: 0 | V92: 0 | W92: 0 | X92: 0 | Y92: 0 | Z92: 22.8 | AA92: 0 | AB92: 39.9 | AC92: 0 | AD92: 96.9 | AE92: 23.6 | AF92: 19.4 | AG92: 3.69 | AH92: 44.1 | AI92: 16.6 | AJ92: 14.7 | AK92: 2.49 | AL92: 0 | AM92: 96.7 | AN92: 0.25 | AO92: 26.2 | AP92: 0 | AQ92: 0 | AR92: 0 | AS92: 0 | AT92: 0 | AU92: 0 | AV92: 0 | AW92: 0
A93: HSS10X6X3/16 | B93: HSS | C93: F | D93: 19.66108863 | E93: 5.37 | F93: 0 | G93: 10 | H93: 0 | I93: 0 | J93: 6 | K93: 0 | L93: 0 | M93: 0 | N93: 0 | O93: 0.1875 | P93: 0.174 | Q93: 0 | R93: 0 | S93: 0 | T93: 0 | U93: 0 | V93: 0 | W93: 0 | X93: 0 | Y93: 0 | Z93: 31.5 | AA93: 0 | AB93: 54.5 | AC93: 0 | AD93: 74.6 | AE93: 18 | AF93: 14.9 | AG93: 3.73 | AH93: 34.1 | AI93: 12.7 | AJ93: 11.4 | AK93: 2.52 | AL93: 0 | AM93: 73.8 | AN93: 0.1875 | AO93: 19.9 | AP93: 0 | AQ93: 0 | AR93: 0 | AS93: 0 | AT93: 0 | AU93: 0 | AV93: 0 | AW93: 0
A94: HSS10X6X3/8 | B94: HSS | C94: F | D94: 37.6141265 | E94: 10.4 | F94: 0 | G94: 10 | H94: 0 | I94: 0 | J94: 6 | K94: 0 | L94: 0 | M94: 0 | N94: 0 | O94: 0.375 | P94: 0.349 | Q94: 0 | R94: 0 | S94: 0 | T94: 0 | U94: 0 | V94: 0 | W94: 0 | X94: 0 | Y94: 0 | Z94: 14.2 | AA94: 0 | AB94: 25.7 | AC94: 0 | AD94: 137 | AE94: 33.8 | AF94: 27.4 | AG94: 3.63 | AH94: 61.8 | AI94: 23.7 | AJ94: 20.6 | AK94: 2.44 | AL94: 0 | AM94: 139 | AN94: 0.375 | AO94: 37.9 | AP94: 0 | AQ94: 0 | AR94: 0 | AS94: 0 | AT94: 0 | AU94: 0 | AV94: 0 | AW94: 0
A95: HSS10X6X5/16 | B95: HSS | C95: F | D95: 31.83901455 | E95: 8.76 | F95: 0 | G95: 10 | H95: 0 | I95: 0 | J95: 6 | K95: 0 | L95: 0 | M95: 0 | N95: 0 | O95: 0.3125 | P95: 0.291 | Q95: 0 | R95: 0 | S95: 0 | T95: 0 | U95: 0 | V95: 0 | W95: 0 | X95: 0 | Y95: 0 | Z95: 17.6 | AA95: 0 | AB95: 31.4 | AC95: 0 | AD95: 118 | AE95: 28.8 | AF95: 23.5 | AG95: 3.66 | AH95: 53.3 | AI95: 20.2 | AJ95: 17.8 | AK95: 2.47 | AL95: 0 | AM95: 118 | AN95: 0.3125 | AO95: 32.2 | AP95: 0 | AQ95: 0 | AR95: 0 | AS95: 0 | AT95: 0 | AU95: 0 | AV95: 0 | AW95: 0
A96: HSS10X6X5/8 | B96: HSS | C96: F | D96: 59.1111414 | E96: 16.4 | F96: 0 | G96: 10 | H96: 0 | I96: 0 | J96: 6 | K96: 0 | L96: 0 | M96: 0 | N96: 0 | O96: 0.625 | P96: 0.581 | Q96: 0 | R96: 0 | S96: 0 | T96: 0 | U96: 0 | V96: 0 | W96: 0 | X96: 0 | Y96: 0 | Z96: 7.33 | AA96: 0 | AB96: 14.2 | AC96: 0 | AD96: 201 | AE96: 51.3 | AF96: 40.2 | AG96: 3.5 | AH96: 89.4 | AI96: 35.8 | AJ96: 29.8 | AK96: 2.34 | AL96: 0 | AM96: 209 | AN96: 0.625 | AO96: 58.6 | AP96: 0 | AQ96: 0 | AR96: 0 | AS96: 0 | AT96: 0 | AU96: 0 | AV96: 0 | AW96: 0
A97: HSS10X8X1/2 | B97: HSS | C97: F | D97: 55.52609431 | E97: 15.3 | F97: 0 | G97: 10 | H97: 0 | I97: 0 | J97: 8 | K97: 0 | L97: 0 | M97: 0 | N97: 0 | O97: 0.5 | P97: 0.465 | Q97: 0 | R97: 0 | S97: 0 | T97: 0 | U97: 0 | V97: 0 | W97: 0 | X97: 0 | Y97: 0 | Z97: 14.2 | AA97: 0 | AB97: 18.5 | AC97: 0 | AD97: 214 | AE97: 51.9 | AF97: 42.7 | AG97: 3.73 | AH97: 151 | AI97: 44.5 | AJ97: 37.8 | AK97: 3.14 | AL97: 0 | AM97: 288 | AN97: 0.5 | AO97: 66.4 | AP97: 0 | AQ97: 0 | AR97: 0 | AS97: 0 | AT97: 0 | AU97: 0 | AV97: 0 | AW97: 0
A98: HSS10X8X1/4 | B98: HSS | C98: F | D98: 29.19468241 | E98: 8.03 | F98: 0 | G98: 10 | H98: 0 | I98: 0 | J98: 8 | K98: 0 | L98: 0 | M98: 0 | N98: 0 | O98: 0.25 | P98: 0.233 | Q98: 0 | R98: 0 | S98: 0 | T98: 0 | U98: 0 | V98: 0 | W98: 0 | X98: 0 | Y98: 0 | Z98: 31.3 | AA98: 0 | AB98: 39.9 | AC98: 0 | AD98: 119 | AE98: 28.1 | AF98: 23.8 | AG98: 3.85 | AH98: 84.7 | AI98: 24.2 | AJ98: 21.2 | AK98: 3.25 | AL98: 0 | AM98: 155 | AN98: 0.25 | AO98: 35.3 | AP98: 0 | AQ98: 0 | AR98: 0 | AS98: 0 | AT98: 0 | AU98: 0 | AV98: 0 | AW98: 0
A99: HSS10X8X3/16 | B99: HSS | C99: F | D99: 22.21997752 | E99: 6.06 | F99: 0 | G99: 10 | H99: 0 | I99: 0 | J99: 8 | K99: 0 | L99: 0 | M99: 0 | N99: 0 | O99: 0.1875 | P99: 0.174 | Q99: 0 | R99: 0 | S99: 0 | T99: 0 | U99: 0 | V99: 0 | W99: 0 | X99: 0 | Y99: 0 | Z99: 43 | AA99: 0 | AB99: 54.5 | AC99: 0 | AD99: 91.4 | AE99: 21.4 | AF99: 18.3 | AG99: 3.88 | AH99: 65.1 | AI99: 18.4 | AJ99: 16.3 | AK99: 3.28 | AL99: 0 | AM99: 118 | AN99: 0.1875 | AO99: 26.7 | AP99: 0 | AQ99: 0 | AR99: 0 | AS99: 0 | AT99: 0 | AU99: 0 | AV99: 0 | AW99: 0
A100: HSS10X8X3/8 | B100: HSS | C100: F | D100: 42.71829317 | E100: 11.8 | F100: 0 | G100: 10 | H100: 0 | I100: 0 | J100: 8 | K100: 0 | L100: 0 | M100: 0 | N100: 0 | O100: 0.375 | P100: 0.349 | Q100: 0 | R100: 0 | S100: 0 | T100: 0 | U100: 0 | V100: 0 | W100: 0 | X100: 0 | Y100: 0 | Z100: 19.9 | AA100: 0 | AB100: 25.7 | AC100: 0 | AD100: 169 | AE100: 40.5 | AF100: 33.9 | AG100: 3.79 | AH100: 120 | AI100: 34.8 | AJ100: 30 | AK100: 3.19 | AL100: 0 | AM100: 224 | AN100: 0.375 | AO100: 51.4 | AP100: 0 | AQ100: 0 | AR100: 0 | AS100: 0 | AT100: 0 | AU100: 0 | AV100: 0 | AW100: 0
A101: HSS10X8X5/16 | B101: HSS | C101: F | D101: 36.09929233 | E101: 9.92 | F101: 0 | G101: 10 | H101: 0 | I101: 0 | J101: 8 | K101: 0 | L101: 0 | M101: 0 | N101: 0 | O101: 0.3125 | P101: 0.291 | Q101: 0 | R101: 0 | S101: 0 | T101: 0 | U101: 0 | V101: 0 | W101: 0 | X101: 0 | Y101: 0 | Z101: 24.5 | AA101: 0 | AB101: 31.4 | AC101: 0 | AD101: 145 | AE101: 34.4 | AF101: 29 | AG101: 3.82 | AH101: 103 | AI101: 29.6 | AJ101: 25.7 | AK101: 3.22 | AL101: 0 | AM101: 190 | AN101: 0.3125 | AO101: 43.5 | AP101: 0 | AQ101: 0 | AR101: 0 | AS101: 0 | AT101: 0 | AU101: 0 | AV101: 0 | AW101: 0
A102: HSS10X8X5/8 | B102: HSS | C102: F | D102: 67.61808585 | E102: 18.7 | F102: 0 | G102: 10 | H102: 0 | I102: 0 | J102: 8 | K102: 0 | L102: 0 | M102: 0 | N102: 0 | O102: 0.625 | P102: 0.581 | Q102: 0 | R102: 0 | S102: 0 | T102: 0 | U102: 0 | V102: 0 | W102: 0 | X102: 0 | Y102: 0 | Z102: 10.8 | AA102: 0 | AB102: 14.2 | AC102: 0 | AD102: 253 | AE102: 62.2 | AF102: 50.5 | AG102: 3.68 | AH102: 178 | AI102: 53.3 | AJ102: 44.5 | AK102: 3.09 | AL102: 0 | AM102: 346 | AN102: 0.625 | AO102: 80.4 | AP102: 0 | AQ102: 0 | AR102: 0 | AS102: 0 | AT102: 0 | AU102: 0 | AV102: 0 | AW102: 0
A103: HSS12.750X0.250 | B103: HSS | C103: F | D103: 33.40669271 | E103: 9.16 | F103: 0 | G103: 0 | H103: 12.75 | I103: 0 | J103: 0 | K103: 0 | L103: 0 | M103: 0 | N103: 0 | O103: 0.25 | P103: 0.233 | Q103: 0 | R103: 0 | S103: 0 | T103: 0 | U103: 0 | V103: 0 | W103: 0 | X103: 0 | Y103: 0 | Z103: 0 | AA103: 0 | AB103: 0 | AC103: 54.7 | AD103: 180 | AE103: 36.5 | AF103: 28.2 | AG103: 4.43 | AH103: 180 | AI103: 36.5 | AJ103: 28.2 | AK103: 4.43 | AL103: 0 | AM103: 359 | AN103: 0 | AO103: 56.3 | AP103: 0 | AQ103: 0 | AR103: 0 | AS103: 0 | AT103: 0 | AU103: 0 | AV103: 0 | AW103: 0
A104: HSS12.750X0.375 | B104: HSS | C104: F | D104: 49.60893868 | E104: 13.6 | F104: 0 | G104: 0 | H104: 12.75 | I104: 0 | J104: 0 | K104: 0 | L104: 0 | M104: 0 | N104: 0 | O104: 0.375 | P104: 0.349 | Q104: 0 | R104: 0 | S104: 0 | T104: 0 | U104: 0 | V104: 0 | W104: 0 | X104: 0 | Y104: 0 | Z104: 0 | AA104: 0 | AB104: 0 | AC104: 36.5 | AD104: 262 | AE104: 53.7 | AF104: 41 | AG104: 4.39 | AH104: 262 | AI104: 53.7 | AJ104: 41 | AK104: 4.39 | AL104: 0 | AM104: 523 | AN104: 0 | AO104: 82.1 | AP104: 0 | AQ104: 0 | AR104: 0 | AS104: 0 | AT104: 0 | AU104: 0 | AV104: 0 | AW104: 0
A105: HSS12.750X0.500 | B105: HSS | C105: F | D105: 65.47711772 | E105: 17.9 | F105: 0 | G105: 0 | H105: 12.75 | I105: 0 | J105: 0 | K105: 0 | L105: 0 | M105: 0 | N105: 0 | O105: 0.5 | P105: 0.465 | Q105: 0 | R105: 0 | S105: 0 | T105: 0 | U105: 0 | V105: 0 | W105: 0 | X105: 0 | Y105: 0 | Z105: 0 | AA105: 0 | AB105: 0 | AC105: 27.4 | AD105: 339 | AE105: 70.2 | AF105: 53.2 | AG105: 4.35 | AH105: 339 | AI105: 70.2 | AJ105: 53.2 | AK105: 4.35 | AL105: 0 | AM105: 678 | AN105: 0 | AO105: 106 | AP105: 0 | AQ105: 0 | AR105: 0 | AS105: 0 | AT105: 0 | AU105: 0 | AV105: 0 | AW105: 0
A106: HSS12X10X1/2 | B106: HSS | C106: F | D106: 69.13720542 | E106: 19 | F106: 0 | G106: 12 | H106: 0 | I106: 0 | J106: 10 | K106: 0 | L106: 0 | M106: 0 | N106: 0 | O106: 0.5 | P106: 0.465 | Q106: 0 | R106: 0 | S106: 0 | T106: 0 | U106: 0 | V106: 0 | W106: 0 | X106: 0 | Y106: 0 | Z106: 18.5 | AA106: 0 | AB106: 22.8 | AC106: 0 | AD106: 395 | AE106: 78.8 | AF106: 65.9 | AG106: 4.56 | AH106: 298 | AI106: 69.6 | AJ106: 59.7 | AK106: 3.96 | AL106: 0 | AM106: 545 | AN106: 0.5 | AO106: 102 | AP106: 0 | AQ106: 0 | AR106: 0 | AS106: 0 | AT106: 0 | AU106: 0 | AV106: 0 | AW106: 0
A107: HSS12X10X1/4 | B107: HSS | C107: F | D107: 36.00023797 | E107: 9.9 | F107: 0 | G107: 12 | H107: 0 | I107: 0 | J107: 10 | K107: 0 | L107: 0 | M107: 0 | N107: 0 | O107: 0.25 | P107: 0.233 | Q107: 0 | R107: 0 | S107: 0 | T107: 0 | U107: 0 | V107: 0 | W107: 0 | X107: 0 | Y107: 0 | Z107: 39.9 | AA107: 0 | AB107: 48.5 | AC107: 0 | AD107: 216 | AE107: 42.1 | AF107: 36 | AG107: 4.67 | AH107: 164 | AI107: 37.2 | AJ107: 32.7 | AK107: 4.07 | AL107: 0 | AM107: 289 | AN107: 0.25 | AO107: 53.5 | AP107: 0 | AQ107: 0 | AR107: 0 | AS107: 0 | AT107: 0 | AU107: 0 | AV107: 0 | AW107: 0
A108: HSS12X10X3/8 | B108: HSS | C108: F | D108: 52.9266265 | E108: 14.6 | F108: 0 | G108: 12 | H108: 0 | I108: 0 | J108: 10 | K108: 0 | L108: 0 | M108: 0 | N108: 0 | O108: 0.375 | P108: 0.349 | Q108: 0 | R108: 0 | S108: 0 | T108: 0 | U108: 0 | V108: 0 | W108: 0 | X108: 0 | Y108: 0 | Z108: 25.7 | AA108: 0 | AB108: 31.4 | AC108: 0 | AD108: 310 | AE108: 61.1 | AF108: 51.6 | AG108: 4.61 | AH108: 234 | AI108: 54 | AJ108: 46.9 | AK108: 4.01 | AL108: 0 | AM108: 421 | AN108: 0.375 | AO108: 78.3 | AP108: 0 | AQ108: 0 | AR108: 0 | AS108: 0 | AT108: 0 | AU108: 0 | AV108: 0 | AW108: 0
A109: HSS12X10X5/16 | B109: HSS | C109: F | D109: 44.61984788 | E109: 12.2 | F109: 0 | G109: 12 | H109: 0 | I109: 0 | J109: 10 | K109: 0 | L109: 0 | M109: 0 | N109: 0 | O109: 0.3125 | P109: 0.291 | Q109: 0 | R109: 0 | S109: 0 | T109: 0 | U109: 0 | V109: 0 | W109: 0 | X109: 0 | Y109: 0 | Z109: 31.4 | AA109: 0 | AB109: 38.2 | AC109: 0 | AD109: 264 | AE109: 51.7 | AF109: 44 | AG109: 4.64 | AH109: 200 | AI109: 45.7 | AJ109: 40 | AK109: 4.04 | AL109: 0 | AM109: 356 | AN109: 0.3125 | AO109: 66.1 | AP109: 0 | AQ109: 0 | AR109: 0 | AS109: 0 | AT109: 0 | AU109: 0 | AV109: 0 | AW109: 0
A110: HSS12X12X1/2 | B110: HSS | C110: F | D110: 75.94276098 | E110: 20.9 | F110: 0 | G110: 12 | H110: 0 | I110: 0 | J110: 12 | K110: 0 | L110: 0 | M110: 0 | N110: 0 | O110: 0.5 | P110: 0.465 | Q110: 0 | R110: 0 | S110: 0 | T110: 0 | U110: 0 | V110: 0 | W110: 0 | X110: 0 | Y110: 0 | Z110: 22.8 | AA110: 0 | AB110: 22.8 | AC110: 0 | AD110: 457 | AE110: 89.6 | AF110: 76.2 | AG110: 4.68 | AH110: 0 | AI110: 0 | AJ110: 0 | AK110: 0 | AL110: 0 | AM110: 728 | AN110: 0 | AO110: 123 | AP110: 0 | AQ110: 0 | AR110: 0 | AS110: 0 | AT110: 0 | AU110: 0 | AV110: 0 | AW110: 0
A111: HSS12X12X1/4 | B111: HSS | C111: F | D111: 39.40301575 | E111: 10.8 | F111: 0 | G111: 12 | H111: 0 | I111: 0 | J111: 12 | K111: 0 | L111: 0 | M111: 0 | N111: 0 | O111: 0.25 | P111: 0.233 | Q111: 0 | R111: 0 | S111: 0 | T111: 0 | U111: 0 | V111: 0 | W111: 0 | X111: 0 | Y111: 0 | Z111: 48.5 | AA111: 0 | AB111: 48.5 | AC111: 0 | AD111: 248 | AE111: 47.6 | AF111: 41.4 | AG111: 4.79 | AH111: 0 | AI111: 0 | AJ111: 0 | AK111: 0 | AL111: 0 | AM111: 384 | AN111: 0 | AO111: 64.5 | AP111: 0 | AQ111: 0 | AR111: 0 | AS111: 0 | AT111: 0 | AU111: 0 | AV111: 0 | AW111: 0
A112: HSS12X12X3/16 | B112: HSS | C112: F | D112: 29.81971419 | E112: 8.15 | F112: 0 | G112: 12 | H112: 0 | I112: 0 | J112: 12 | K112: 0 | L112: 0 | M112: 0 | N112: 0 | O112: 0.1875 | P112: 0.174 | Q112: 0 | R112: 0 | S112: 0 | T112: 0 | U112: 0 | V112: 0 | W112: 0 | X112: 0 | Y112: 0 | Z112: 66 | AA112: 0 | AB112: 66 | AC112: 0 | AD112: 189 | AE112: 36 | AF112: 31.5 | AG112: 4.82 | AH112: 0 | AI112: 0 | AJ112: 0 | AK112: 0 | AL112: 0 | AM112: 290 | AN112: 0 | AO112: 48.6 | AP112: 0 | AQ112: 0 | AR112: 0 | AS112: 0 | AT112: 0 | AU112: 0 | AV112: 0 | AW112: 0
A113: HSS12X12X3/8 | B113: HSS | C113: F | D113: 58.03079317 | E113: 16 | F113: 0 | G113: 12 | H113: 0 | I113: 0 | J113: 12 | K113: 0 | L113: 0 | M113: 0 | N113: 0 | O113: 0.375 | P113: 0.349 | Q113: 0 | R113: 0 | S113: 0 | T113: 0 | U113: 0 | V113: 0 | W113: 0 | X113: 0 | Y113: 0 | Z113: 31.4 | AA113: 0 | AB113: 31.4 | AC113: 0 | AD113: 357 | AE113: 69.2 | AF113: 59.5 | AG113: 4.73 | AH113: 0 | AI113: 0 | AJ113: 0 | AK113: 0 | AL113: 0 | AM113: 561 | AN113: 0 | AO113: 94.6 | AP113: 0 | AQ113: 0 | AR113: 0 | AS113: 0 | AT113: 0 | AU113: 0 | AV113: 0 | AW113: 0
A114: HSS12X12X5/16 | B114: HSS | C114: F | D114: 48.80638066 | E114: 13.4 | F114: 0 | G114: 12 | H114: 0 | I114: 0 | J114: 12 | K114: 0 | L114: 0 | M114: 0 | N114: 0 | O114: 0.3125 | P114: 0.291 | Q114: 0 | R114: 0 | S114: 0 | T114: 0 | U114: 0 | V114: 0 | W114: 0 | X114: 0 | Y114: 0 | Z114: 38.2 | AA114: 0 | AB114: 38.2 | AC114: 0 | AD114: 304 | AE114: 58.6 | AF114: 50.7 | AG114: 4.76 | AH114: 0 | AI114: 0 | AJ114: 0 | AK114: 0 | AL114: 0 | AM114: 474 | AN114: 0 | AO114: 79.7 | AP114: 0 | AQ114: 0 | AR114: 0 | AS114: 0 | AT114: 0 | AU114: 0 | AV114: 0 | AW114: 0
A115: HSS12X12X5/8 | B115: HSS | C115: F | D115: 93.13891918 | E115: 25.7 | F115: 0 | G115: 12 | H115: 0 | I115: 0 | J115: 12 | K115: 0 | L115: 0 | M115: 0 | N115: 0 | O115: 0.625 | P115: 0.581 | Q115: 0 | R115: 0 | S115: 0 | T115: 0 | U115: 0 | V115: 0 | W115: 0 | X115: 0 | Y115: 0 | Z115: 17.7 | AA115: 0 | AB115: 17.7 | AC115: 0 | AD115: 548 | AE115: 109 | AF115: 91.4 | AG115: 4.62 | AH115: 0 | AI115: 0 | AJ115: 0 | AK115: 0 | AL115: 0 | AM115: 885 | AN115: 0 | AO115: 151 | AP115: 0 | AQ115: 0 | AR115: 0 | AS115: 0 | AT115: 0 | AU115: 0 | AV115: 0 | AW115: 0
A116: HSS12X2X1/4 | B116: HSS | C116: F | D116: 22.38912686 | E116: 6.17 | F116: 0 | G116: 12 | H116: 0 | I116: 0 | J116: 2 | K116: 0 | L116: 0 | M116: 0 | N116: 0 | O116: 0.25 | P116: 0.233 | Q116: 0 | R116: 0 | S116: 0 | T116: 0 | U116: 0 | V116: 0 | W116: 0 | X116: 0 | Y116: 0 | Z116: 5.58 | AA116: 0 | AB116: 48.5 | AC116: 0 | AD116: 86.9 | AE116: 20.1 | AF116: 14.5 | AG116: 3.75 | AH116: 4.41 | AI116: 5.08 | AJ116: 4.41 | AK116: 0.845 | AL116: 0 | AM116: 15.1 | AN116: 0.25 | AO116: 9.64 | AP116: 0 | AQ116: 0 | AR116: 0 | AS116: 0 | AT116: 0 | AU116: 0 | AV116: 0 | AW116: 0
A117: HSS12X2X3/16 | B117: HSS | C117: F | D117: 17.10219974 | E117: 4.67 | F117: 0 | G117: 12 | H117: 0 | I117: 0 | J117: 2 | K117: 0 | L117: 0 | M117: 0 | N117: 0 | O117: 0.1875 | P117: 0.174 | Q117: 0 | R117: 0 | S117: 0 | T117: 0 | U117: 0 | V117: 0 | W117: 0 | X117: 0 | Y117: 0 | Z117: 8.49 | AA117: 0 | AB117: 66 | AC117: 0 | AD117: 67.4 | AE117: 15.5 | AF117: 11.2 | AG117: 3.8 | AH117: 3.55 | AI117: 3.97 | AJ117: 3.55 | AK117: 0.872 | AL117: 0 | AM117: 12 | AN117: 0.1875 | AO117: 7.49 | AP117: 0 | AQ117: 0 | AR117: 0 | AS117: 0 | AT117: 0 | AU117: 0 | AV117: 0 | AW117: 0
A118: HSS12X2X5/16 | B118: HSS | C118: F | D118: 27.57873677 | E118: 7.59 | F118: 0 | G118: 12 | H118: 0 | I118: 0 | J118: 2 | K118: 0 | L118: 0 | M118: 0 | N118: 0 | O118: 0.3125 | P118: 0.291 | Q118: 0 | R118: 0 | S118: 0 | T118: 0 | U118: 0 | V118: 0 | W118: 0 | X118: 0 | Y118: 0 | Z118: 3.87 | AA118: 0 | AB118: 38.2 | AC118: 0 | AD118: 104 | AE118: 24.5 | AF118: 17.4 | AG118: 3.71 | AH118: 5.1 | AI118: 6.05 | AJ118: 5.1 | AK118: 0.82 | AL118: 0 | AM118: 17.6 | AN118: 0.3125 | AO118: 11.6 | AP118: 0 | AQ118: 0 | AR118: 0 | AS118: 0 | AT118: 0 | AU118: 0 | AV118: 0 | AW118: 0
A119: HSS12X3-1/2X3/8 | B119: HSS | C119: F | D119: 36.33808484 | E119: 10 | F119: 0 | G119: 12 | H119: 0 | I119: 0 | J119: 3.5 | K119: 0 | L119: 0 | M119: 0 | N119: 0 | O119: 0.375 | P119: 0.349 | Q119: 0 | R119: 0 | S119: 0 | T119: 0 | U119: 0 | V119: 0 | W119: 0 | X119: 0 | Y119: 0 | Z119: 7.03 | AA119: 0 | AB119: 31.4 | AC119: 0 | AD119: 156 | AE119: 34.7 | AF119: 26 | AG119: 3.94 | AH119: 21.3 | AI119: 14 | AJ119: 12.2 | AK119: 1.46 | AL119: 0 | AM119: 64.7 | AN119: 0.375 | AO119: 25.5 | AP119: 0 | AQ119: 0 | AR119: 0 | AS119: 0 | AT119: 0 | AU119: 0 | AV119: 0 | AW119: 0
A120: HSS12X3-1/2X5/16 | B120: HSS | C120: F | D120: 30.7739451 | E120: 8.46 | F120: 0 | G120: 12 | H120: 0 | I120: 0 | J120: 3.5 | K120: 0 | L120: 0 | M120: 0 | N120: 0 | O120: 0.3125 | P120: 0.291 | Q120: 0 | R120: 0 | S120: 0 | T120: 0 | U120: 0 | V120: 0 | W120: 0 | X120: 0 | Y120: 0 | Z120: 9.03 | AA120: 0 | AB120: 38.2 | AC120: 0 | AD120: 134 | AE120: 29.6 | AF120: 22.4 | AG120: 3.98 | AH120: 18.6 | AI120: 12.1 | AJ120: 10.6 | AK120: 1.48 | AL120: 0 | AM120: 56 | AN120: 0.3125 | AO120: 21.8 | AP120: 0 | AQ120: 0 | AR120: 0 | AS120: 0 | AT120: 0 | AU120: 0 | AV120: 0 | AW120: 0
A121: HSS12X3X1/4 | B121: HSS | C121: F | D121: 24.09051575 | E121: 6.63 | F121: 0 | G121: 12 | H121: 0 | I121: 0 | J121: 3 | K121: 0 | L121: 0 | M121: 0 | N121: 0 | O121: 0.25 | P121: 0.233 | Q121: 0 | R121: 0 | S121: 0 | T121: 0 | U121: 0 | V121: 0 | W121: 0 | X121: 0 | Y121: 0 | Z121: 9.88 | AA121: 0 | AB121: 48.5 | AC121: 0 | AD121: 103 | AE121: 22.9 | AF121: 17.2 | AG121: 3.94 | AH121: 11.1 | AI121: 8.28 | AJ121: 7.38 | AK121: 1.29 | AL121: 0 | AM121: 34.5 | AN121: 0.25 | AO121: 15.1 | AP121: 0 | AQ121: 0 | AR121: 0 | AS121: 0 | AT121: 0 | AU121: 0 | AV121: 0 | AW121: 0
A122: HSS12X3X3/16 | B122: HSS | C122: F | D122: 18.38164419 | E122: 5.02 | F122: 0 | G122: 12 | H122: 0 | I122: 0 | J122: 3 | K122: 0 | L122: 0 | M122: 0 | N122: 0 | O122: 0.1875 | P122: 0.174 | Q122: 0 | R122: 0 | S122: 0 | T122: 0 | U122: 0 | V122: 0 | W122: 0 | X122: 0 | Y122: 0 | Z122: 14.2 | AA122: 0 | AB122: 66 | AC122: 0 | AD122: 79.6 | AE122: 17.5 | AF122: 13.3 | AG122: 3.98 | AH122: 8.72 | AI122: 6.4 | AJ122: 5.81 | AK122: 1.32 | AL122: 0 | AM122: 26.8 | AN122: 0.1875 | AO122: 11.6 | AP122: 0 | AQ122: 0 | AR122: 0 | AS122: 0 | AT122: 0 | AU122: 0 | AV122: 0 | AW122: 0
A123: HSS12X3X5/16 | B123: HSS | C123: F | D123: 29.70887566 | E123: 8.17 | F123: 0 | G123: 12 | H123: 0 | I123: 0 | J123: 3 | K123: 0 | L123: 0 | M123: 0 | N123: 0 | O123: 0.3125 | P123: 0.291 | Q123: 0 | R123: 0 | S123: 0 | T123: 0 | U123: 0 | V123: 0 | W123: 0 | X123: 0 | Y123: 0 | Z123: 7.31 | AA123: 0 | AB123: 38.2 | AC123: 0 | AD123: 124 | AE123: 27.9 | AF123: 20.7 | AG123: 3.9 | AH123: 13.1 | AI123: 10 | AJ123: 8.73 | AK123: 1.27 | AL123: 0 | AM123: 41.3 | AN123: 0.3125 | AO123: 18.4 | AP123: 0 | AQ123: 0 | AR123: 0 | AS123: 0 | AT123: 0 | AU123: 0 | AV123: 0 | AW123: 0
A124: HSS12X4X1/2 | B124: HSS | C124: F | D124: 48.72053876 | E124: 13.5 | F124: 0 | G124: 12 | H124: 0 | I124: 0 | J124: 4 | K124: 0 | L124: 0 | M124: 0 | N124: 0 | O124: 0.5 | P124: 0.465 | Q124: 0 | R124: 0 | S124: 0 | T124: 0 | U124: 0 | V124: 0 | W124: 0 | X124: 0 | Y124: 0 | Z124: 5.6 | AA124: 0 | AB124: 22.8 | AC124: 0 | AD124: 210 | AE124: 46.7 | AF124: 34.9 | AG124: 3.95 | AH124: 35.3 | AI124: 20.9 | AJ124: 17.7 | AK124: 1.62 | AL124: 0 | AM124: 105 | AN124: 0.5 | AO124: 37.5 | AP124: 0 | AQ124: 0 | AR124: 0 | AS124: 0 | AT124: 0 | AU124: 0 | AV124: 0 | AW124: 0
A125: HSS12X4X1/4 | B125: HSS | C125: F | D125: 25.79190464 | E125: 7.1 | F125: 0 | G125: 12 | H125: 0 | I125: 0 | J125: 4 | K125: 0 | L125: 0 | M125: 0 | N125: 0 | O125: 0.25 | P125: 0.233 | Q125: 0 | R125: 0 | S125: 0 | T125: 0 | U125: 0 | V125: 0 | W125: 0 | X125: 0 | Y125: 0 | Z125: 14.2 | AA125: 0 | AB125: 48.5 | AC125: 0 | AD125: 119 | AE125: 25.6 | AF125: 19.9 | AG125: 4.1 | AH125: 21 | AI125: 11.7 | AJ125: 10.5 | AK125: 1.72 | AL125: 0 | AM125: 59.8 | AN125: 0.25 | AO125: 20.6 | AP125: 0 | AQ125: 0 | AR125: 0 | AS125: 0 | AT125: 0 | AU125: 0 | AV125: 0 | AW125: 0
A126: HSS12X4X3/16 | B126: HSS | C126: F | D126: 19.66108863 | E126: 5.37 | F126: 0 | G126: 12 | H126: 0 | I126: 0 | J126: 4 | K126: 0 | L126: 0 | M126: 0 | N126: 0 | O126: 0.1875 | P126: 0.174 | Q126: 0 | R126: 0 | S126: 0 | T126: 0 | U126: 0 | V126: 0 | W126: 0 | X126: 0 | Y126: 0 | Z126: 20 | AA126: 0 | AB126: 66 | AC126: 0 | AD126: 91.8 | AE126: 19.6 | AF126: 15.3 | AG126: 4.13 | AH126: 16.4 | AI126: 9 | AJ126: 8.2 | AK126: 1.75 | AL126: 0 | AM126: 46.1 | AN126: 0.1875 | AO126: 15.7 | AP126: 0 | AQ126: 0 | AR126: 0 | AS126: 0 | AT126: 0 | AU126: 0 | AV126: 0 | AW126: 0
A127: HSS12X4X3/8 | B127: HSS | C127: F | D127: 37.6141265 | E127: 10.4 | F127: 0 | G127: 12 | H127: 0 | I127: 0 | J127: 4 | K127: 0 | L127: 0 | M127: 0 | N127: 0 | O127: 0.375 | P127: 0.349 | Q127: 0 | R127: 0 | S127: 0 | T127: 0 | U127: 0 | V127: 0 | W127: 0 | X127: 0 | Y127: 0 | Z127: 8.46 | AA127: 0 | AB127: 31.4 | AC127: 0 | AD127: 168 | AE127: 36.7 | AF127: 28 | AG127: 4.02 | AH127: 28.9 | AI127: 16.6 | AJ127: 14.5 | AK127: 1.67 | AL127: 0 | AM127: 84.1 | AN127: 0.375 | AO127: 29.5 | AP127: 0 | AQ127: 0 | AR127: 0 | AS127: 0 | AT127: 0 | AU127: 0 | AV127: 0 | AW127: 0
A128: HSS12X4X5/16 | B128: HSS | C128: F | D128: 31.83901455 | E128: 8.76 | F128: 0 | G128: 12 | H128: 0 | I128: 0 | J128: 4 | K128: 0 | L128: 0 | M128: 0 | N128: 0 | O128: 0.3125 | P128: 0.291 | Q128: 0 | R128: 0 | S128: 0 | T128: 0 | U128: 0 | V128: 0 | W128: 0 | X128: 0 | Y128: 0 | Z128: 10.7 | AA128: 0 | AB128: 38.2 | AC128: 0 | AD128: 144 | AE128: 31.3 | AF128: 24.1 | AG128: 4.06 | AH128: 25.2 | AI128: 14.2 | AJ128: 12.6 | AK128: 1.7 | AL128: 0 | AM128: 72.4 | AN128: 0.3125 | AO128: 25.2 | AP128: 0 | AQ128: 0 | AR128: 0 | AS128: 0 | AT128: 0 | AU128: 0 | AV128: 0 | AW128: 0
A129: HSS12X4X5/8 | B129: HSS | C129: F | D129: 59.1111414 | E129: 16.4 | F129: 0 | G129: 12 | H129: 0 | I129: 0 | J129: 4 | K129: 0 | L129: 0 | M129: 0 | N129: 0 | O129: 0.625 | P129: 0.581 | Q129: 0 | R129: 0 | S129: 0 | T129: 0 | U129: 0 | V129: 0 | W129: 0 | X129: 0 | Y129: 0 | Z129: 3.88 | AA129: 0 | AB129: 17.7 | AC129: 0 | AD129: 245 | AE129: 55.5 | AF129: 40.8 | AG129: 3.87 | AH129: 40.4 | AI129: 24.5 | AJ129: 20.2 | AK129: 1.57 | AL129: 0 | AM129: 122 | AN129: 0.625 | AO129: 44.6 | AP129: 0 | AQ129: 0 | AR129: 0 | AS129: 0 | AT129: 0 | AU129: 0 | AV129: 0 | AW129: 0
A130: HSS12X6X1/2 | B130: HSS | C130: F | D130: 55.52609431 | E130: 15.3 | F130: 0 | G130: 12 | H130: 0 | I130: 0 | J130: 6 | K130: 0 | L130: 0 | M130: 0 | N130: 0 | O130: 0.5 | P130: 0.465 | Q130: 0 | R130: 0 | S130: 0 | T130: 0 | U130: 0 | V130: 0 | W130: 0 | X130: 0 | Y130: 0 | Z130: 9.9 | AA130: 0 | AB130: 22.8 | AC130: 0 | AD130: 271 | AE130: 57.4 | AF130: 45.2 | AG130: 4.21 | AH130: 91.1 | AI130: 35.2 | AJ130: 30.4 | AK130: 2.44 | AL130: 0 | AM130: 227 | AN130: 0.5 | AO130: 59 | AP130: 0 | AQ130: 0 | AR130: 0 | AS130: 0 | AT130: 0 | AU130: 0 | AV130: 0 | AW130: 0
A131: HSS12X6X1/4 | B131: HSS | C131: F | D131: 29.19468241 | E131: 8.03 | F131: 0 | G131: 12 | H131: 0 | I131: 0 | J131: 6 | K131: 0 | L131: 0 | M131: 0 | N131: 0 | O131: 0.25 | P131: 0.233 | Q131: 0 | R131: 0 | S131: 0 | T131: 0 | U131: 0 | V131: 0 | W131: 0 | X131: 0 | Y131: 0 | Z131: 22.8 | AA131: 0 | AB131: 48.5 | AC131: 0 | AD131: 151 | AE131: 31.1 | AF131: 25.2 | AG131: 4.34 | AH131: 51.9 | AI131: 19.3 | AJ131: 17.3 | AK131: 2.54 | AL131: 0 | AM131: 124 | AN131: 0.25 | AO131: 31.6 | AP131: 0 | AQ131: 0 | AR131: 0 | AS131: 0 | AT131: 0 | AU131: 0 | AV131: 0 | AW131: 0
A132: HSS12X6X3/16 | B132: HSS | C132: F | D132: 22.21997752 | E132: 6.06 | F132: 0 | G132: 12 | H132: 0 | I132: 0 | J132: 6 | K132: 0 | L132: 0 | M132: 0 | N132: 0 | O132: 0.1875 | P132: 0.174 | Q132: 0 | R132: 0 | S132: 0 | T132: 0 | U132: 0 | V132: 0 | W132: 0 | X132: 0 | Y132: 0 | Z132: 31.5 | AA132: 0 | AB132: 66 | AC132: 0 | AD132: 116 | AE132: 23.7 | AF132: 19.4 | AG132: 4.38 | AH132: 40 | AI132: 14.7 | AJ132: 13.3 | AK132: 2.57 | AL132: 0 | AM132: 94.6 | AN132: 0.1875 | AO132: 24 | AP132: 0 | AQ132: 0 | AR132: 0 | AS132: 0 | AT132: 0 | AU132: 0 | AV132: 0 | AW132: 0
A133: HSS12X6X3/8 | B133: HSS | C133: F | D133: 42.71829317 | E133: 11.8 | F133: 0 | G133: 12 | H133: 0 | I133: 0 | J133: 6 | K133: 0 | L133: 0 | M133: 0 | N133: 0 | O133: 0.375 | P133: 0.349 | Q133: 0 | R133: 0 | S133: 0 | T133: 0 | U133: 0 | V133: 0 | W133: 0 | X133: 0 | Y133: 0 | Z133: 14.2 | AA133: 0 | AB133: 31.4 | AC133: 0 | AD133: 215 | AE133: 44.8 | AF133: 35.9 | AG133: 4.28 | AH133: 72.9 | AI133: 27.7 | AJ133: 24.3 | AK133: 2.49 | AL133: 0 | AM133: 178 | AN133: 0.375 | AO133: 45.8 | AP133: 0 | AQ133: 0 | AR133: 0 | AS133: 0 | AT133: 0 | AU133: 0 | AV133: 0 | AW133: 0
A134: HSS12X6X5/16 | B134: HSS | C134: F | D134: 36.09929233 | E134: 9.92 | F134: 0 | G134: 12 | H134: 0 | I134: 0 | J134: 6 | K134: 0 | L134: 0 | M134: 0 | N134: 0 | O134: 0.3125 | P134: 0.291 | Q134: 0 | R134: 0 | S134: 0 | T134: 0 | U134: 0 | V134: 0 | W134: 0 | X134: 0 | Y134: 0 | Z134: 17.6 | AA134: 0 | AB134: 38.2 | AC134: 0 | AD134: 184 | AE134: 38.1 | AF134: 30.7 | AG134: 4.31 | AH134: 62.8 | AI134: 23.6 | AJ134: 20.9 | AK134: 2.52 | AL134: 0 | AM134: 152 | AN134: 0.3125 | AO134: 38.8 | AP134: 0 | AQ134: 0 | AR134: 0 | AS134: 0 | AT134: 0 | AU134: 0 | AV134: 0 | AW134: 0
A135: HSS12X6X5/8 | B135: HSS | C135: F | D135: 67.61808585 | E135: 18.7 | F135: 0 | G135: 12 | H135: 0 | I135: 0 | J135: 6 | K135: 0 | L135: 0 | M135: 0 | N135: 0 | O135: 0.625 | P135: 0.581 | Q135: 0 | R135: 0 | S135: 0 | T135: 0 | U135: 0 | V135: 0 | W135: 0 | X135: 0 | Y135: 0 | Z135: 7.33 | AA135: 0 | AB135: 17.7 | AC135: 0 | AD135: 321 | AE135: 68.8 | AF135: 53.4 | AG135: 4.14 | AH135: 107 | AI135: 42.1 | AJ135: 35.5 | AK135: 2.39 | AL135: 0 | AM135: 271 | AN135: 0.625 | AO135: 71.1 | AP135: 0 | AQ135: 0 | AR135: 0 | AS135: 0 | AT135: 0 | AU135: 0 | AV135: 0 | AW135: 0
A136: HSS12X8X1/2 | B136: HSS | C136: F | D136: 62.33164987 | E136: 17.2 | F136: 0 | G136: 12 | H136: 0 | I136: 0 | J136: 8 | K136: 0 | L136: 0 | M136: 0 | N136: 0 | O136: 0.5 | P136: 0.465 | Q136: 0 | R136: 0 | S136: 0 | T136: 0 | U136: 0 | V136: 0 | W136: 0 | X136: 0 | Y136: 0 | Z136: 14.2 | AA136: 0 | AB136: 22.8 | AC136: 0 | AD136: 333 | AE136: 68.1 | AF136: 55.6 | AG136: 4.41 | AH136: 178 | AI136: 51.5 | AJ136: 44.4 | AK136: 3.21 | AL136: 0 | AM136: 377 | AN136: 0.5 | AO136: 80.4 | AP136: 0 | AQ136: 0 | AR136: 0 | AS136: 0 | AT136: 0 | AU136: 0 | AV136: 0 | AW136: 0
A137: HSS12X8X1/4 | B137: HSS | C137: F | D137: 32.59746019 | E137: 8.96 | F137: 0 | G137: 12 | H137: 0 | I137: 0 | J137: 8 | K137: 0 | L137: 0 | M137: 0 | N137: 0 | O137: 0.25 | P137: 0.233 | Q137: 0 | R137: 0 | S137: 0 | T137: 0 | U137: 0 | V137: 0 | W137: 0 | X137: 0 | Y137: 0 | Z137: 31.3 | AA137: 0 | AB137: 48.5 | AC137: 0 | AD137: 184 | AE137: 36.6 | AF137: 30.6 | AG137: 4.53 | AH137: 98.8 | AI137: 27.8 | AJ137: 24.7 | AK137: 3.32 | AL137: 0 | AM137: 202 | AN137: 0.25 | AO137: 42.5 | AP137: 0 | AQ137: 0 | AR137: 0 | AS137: 0 | AT137: 0 | AU137: 0 | AV137: 0 | AW137: 0
A138: HSS12X8X3/16 | B138: HSS | C138: F | D138: 24.77886641 | E138: 6.76 | F138: 0 | G138: 12 | H138: 0 | I138: 0 | J138: 8 | K138: 0 | L138: 0 | M138: 0 | N138: 0 | O138: 0.1878 | P138: 0.174 | Q138: 0 | R138: 0 | S138: 0 | T138: 0 | U138: 0 | V138: 0 | W138: 0 | X138: 0 | Y138: 0 | Z138: 43 | AA138: 0 | AB138: 66 | AC138: 0 | AD138: 140 | AE138: 27.8 | AF138: 23.4 | AG138: 4.56 | AH138: 75.7 | AI138: 21.1 | AJ138: 18.9 | AK138: 3.35 | AL138: 0 | AM138: 153 | AN138: 0.1875 | AO138: 32.2 | AP138: 0 | AQ138: 0 | AR138: 0 | AS138: 0 | AT138: 0 | AU138: 0 | AV138: 0 | AW138: 0
A139: HSS12X8X3/8 | B139: HSS | C139: F | D139: 47.82245984 | E139: 13.2 | F139: 0 | G139: 12 | H139: 0 | I139: 0 | J139: 8 | K139: 0 | L139: 0 | M139: 0 | N139: 0 | O139: 0.375 | P139: 0.349 | Q139: 0 | R139: 0 | S139: 0 | T139: 0 | U139: 0 | V139: 0 | W139: 0 | X139: 0 | Y139: 0 | Z139: 19.9 | AA139: 0 | AB139: 31.4 | AC139: 0 | AD139: 262 | AE139: 53 | AF139: 43.7 | AG139: 4.47 | AH139: 140 | AI139: 40.1 | AJ139: 35.1 | AK139: 3.27 | AL139: 0 | AM139: 293 | AN139: 0.375 | AO139: 62.1 | AP139: 0 | AQ139: 0 | AR139: 0 | AS139: 0 | AT139: 0 | AU139: 0 | AV139: 0 | AW139: 0
A140: HSS12X8X5/16 | B140: HSS | C140: F | D140: 40.3595701 | E140: 11.1 | F140: 0 | G140: 12 | H140: 0 | I140: 0 | J140: 8 | K140: 0 | L140: 0 | M140: 0 | N140: 0 | O140: 0.3125 | P140: 0.291 | Q140: 0 | R140: 0 | S140: 0 | T140: 0 | U140: 0 | V140: 0 | W140: 0 | X140: 0 | Y140: 0 | Z140: 24.5 | AA140: 0 | AB140: 38.2 | AC140: 0 | AD140: 224 | AE140: 44.9 | AF140: 37.4 | AG140: 4.5 | AH140: 120 | AI140: 34.1 | AJ140: 30.1 | AK140: 3.29 | AL140: 0 | AM140: 248 | AN140: 0.3125 | AO140: 52.4 | AP140: 0 | AQ140: 0 | AR140: 0 | AS140: 0 | AT140: 0 | AU140: 0 | AV140: 0 | AW140: 0
A141: HSS12X8X5/8 | B141: HSS | C141: F | D141: 76.12503029 | E141: 21 | F141: 0 | G141: 12 | H141: 0 | I141: 0 | J141: 8 | K141: 0 | L141: 0 | M141: 0 | N141: 0 | O141: 0.625 | P141: 0.581 | Q141: 0 | R141: 0 | S141: 0 | T141: 0 | U141: 0 | V141: 0 | W141: 0 | X141: 0 | Y141: 0 | Z141: 10.8 | AA141: 0 | AB141: 17.7 | AC141: 0 | AD141: 397 | AE141: 82.1 | AF141: 66.1 | AG141: 4.34 | AH141: 210 | AI141: 61.9 | AJ141: 52.5 | AK141: 3.16 | AL141: 0 | AM141: 454 | AN141: 0.625 | AO141: 97.7 | AP141: 0 | AQ141: 0 | AR141: 0 | AS141: 0 | AT141: 0 | AU141: 0 | AV141: 0 | AW141: 0
A142: HSS14X0.250 | B142: HSS | C142: F | D142: 36.74736199 | E142: 10.1 | F142: 0 | G142: 0 | H142: 14 | I142: 0 | J142: 0 | K142: 0 | L142: 0 | M142: 0 | N142: 0 | O142: 0.25 | P142: 0.233 | Q142: 0 | R142: 0 | S142: 0 | T142: 0 | U142: 0 | V142: 0 | W142: 0 | X142: 0 | Y142: 0 | Z142: 0 | AA142: 0 | AB142: 0 | AC142: 60.1 | AD142: 239 | AE142: 44.2 | AF142: 34.1 | AG142: 4.87 | AH142: 239 | AI142: 44.2 | AJ142: 34.1 | AK142: 4.87 | AL142: 0 | AM142: 478 | AN142: 0 | AO142: 68.2 | AP142: 0 | AQ142: 0 | AR142: 0 | AS142: 0 | AT142: 0 | AU142: 0 | AV142: 0 | AW142: 0
A143: HSS14X0.312 | B143: HSS | C143: F | D143: 45.65391766 | E143: 12.5 | F143: 0 | G143: 0 | H143: 14 | I143: 0 | J143: 0 | K143: 0 | L143: 0 | M143: 0 | N143: 0 | O143: 0.3125 | P143: 0.291 | Q143: 0 | R143: 0 | S143: 0 | T143: 0 | U143: 0 | V143: 0 | W143: 0 | X143: 0 | Y143: 0 | Z143: 0 | AA143: 0 | AB143: 0 | AC143: 48.1 | AD143: 295 | AE143: 54.7 | AF143: 42.1 | AG143: 4.85 | AH143: 295 | AI143: 54.7 | AJ143: 42.1 | AK143: 4.85 | AL143: 0 | AM143: 589 | AN143: 0 | AO143: 84.2 | AP143: 0 | AQ143: 0 | AR143: 0 | AS143: 0 | AT143: 0 | AU143: 0 | AV143: 0 | AW143: 0
A144: HSS14X0.375 | B144: HSS | C144: F | D144: 54.61994259 | E144: 15 | F144: 0 | G144: 0 | H144: 14 | I144: 0 | J144: 0 | K144: 0 | L144: 0 | M144: 0 | N144: 0 | O144: 0.375 | P144: 0.349 | Q144: 0 | R144: 0 | S144: 0 | T144: 0 | U144: 0 | V144: 0 | W144: 0 | X144: 0 | Y144: 0 | Z144: 0 | AA144: 0 | AB144: 0 | AC144: 40.1 | AD144: 349 | AE144: 65.1 | AF144: 49.8 | AG144: 4.83 | AH144: 349 | AI144: 65.1 | AJ144: 49.8 | AK144: 4.83 | AL144: 0 | AM144: 698 | AN144: 0 | AO144: 100 | AP144: 0 | AQ144: 0 | AR144: 0 | AS144: 0 | AT144: 0 | AU144: 0 | AV144: 0 | AW144: 0
A145: HSS14X0.500 | B145: HSS | C145: F | D145: 72.15845626 | E145: 19.8 | F145: 0 | G145: 0 | H145: 14 | I145: 0 | J145: 0 | K145: 0 | L145: 0 | M145: 0 | N145: 0 | O145: 0.5 | P145: 0.465 | Q145: 0 | R145: 0 | S145: 0 | T145: 0 | U145: 0 | V145: 0 | W145: 0 | X145: 0 | Y145: 0 | Z145: 0 | AA145: 0 | AB145: 0 | AC145: 30.1 | AD145: 453 | AE145: 85.2 | AF145: 64.8 | AG145: 4.79 | AH145: 453 | AI145: 85.2 | AJ145: 64.8 | AK145: 4.79 | AL145: 0 | AM145: 907 | AN145: 0 | AO145: 130 | AP145: 0 | AQ145: 0 | AR145: 0 | AS145: 0 | AT145: 0 | AU145: 0 | AV145: 0 | AW145: 0
A146: HSS14X0.625 | B146: HSS | C146: F | D146: 89.36290301 | E146: 24.5 | F146: 0 | G146: 0 | H146: 14 | I146: 0 | J146: 0 | K146: 0 | L146: 0 | M146: 0 | N146: 0 | O146: 0.625 | P146: 0.581 | Q146: 0 | R146: 0 | S146: 0 | T146: 0 | U146: 0 | V146: 0 | W146: 0 | X146: 0 | Y146: 0 | Z146: 0 | AA146: 0 | AB146: 0 | AC146: 24.1 | AD146: 552 | AE146: 105 | AF146: 78.9 | AG146: 4.75 | AH146: 552 | AI146: 105 | AJ146: 78.9 | AK146: 4.75 | AL146: 0 | AM146: 1100 | AN146: 0 | AO146: 158 | AP146: 0 | AQ146: 0 | AR146: 0 | AS146: 0 | AT146: 0 | AU146: 0 | AV146: 0 | AW146: 0
A147: HSS14X10X1/2 | B147: HSS | C147: F | D147: 75.94276098 | E147: 20.9 | F147: 0 | G147: 14 | H147: 0 | I147: 0 | J147: 10 | K147: 0 | L147: 0 | M147: 0 | N147: 0 | O147: 0.5 | P147: 0.465 | Q147: 0 | R147: 0 | S147: 0 | T147: 0 | U147: 0 | V147: 0 | W147: 0 | X147: 0 | Y147: 0 | Z147: 18.5 | AA147: 0 | AB147: 27.1 | AC147: 0 | AD147: 573 | AE147: 98.8 | AF147: 81.8 | AG147: 5.23 | AH147: 341 | AI147: 78.5 | AJ147: 68.1 | AK147: 4.04 | AL147: 0 | AM147: 685 | AN147: 0.5 | AO147: 120 | AP147: 0 | AQ147: 0 | AR147: 0 | AS147: 0 | AT147: 0 | AU147: 0 | AV147: 0 | AW147: 0
A148: HSS14X10X1/4 | B148: HSS | C148: F | D148: 39.47833964 | E148: 10.8 | F148: 0 | G148: 14 | H148: 0 | I148: 0 | J148: 10 | K148: 0 | L148: 0 | M148: 0 | N148: 0 | O148: 0.25 | P148: 0.233 | Q148: 0 | R148: 0 | S148: 0 | T148: 0 | U148: 0 | V148: 0 | W148: 0 | X148: 0 | Y148: 0 | Z148: 39.9 | AA148: 0 | AB148: 57.1 | AC148: 0 | AD148: 310 | AE148: 52.4 | AF148: 44.3 | AG148: 5.35 | AH148: 186 | AI148: 41.8 | AJ148: 37.2 | AK148: 4.14 | AL148: 0 | AM148: 362 | AN148: 0.25 | AO148: 62.6 | AP148: 0 | AQ148: 0 | AR148: 0 | AS148: 0 | AT148: 0 | AU148: 0 | AV148: 0 | AW148: 0
A149: HSS14X10X3/8 | B149: HSS | C149: F | D149: 58.07409284 | E149: 16 | F149: 0 | G149: 14 | H149: 0 | I149: 0 | J149: 10 | K149: 0 | L149: 0 | M149: 0 | N149: 0 | O149: 0.375 | P149: 0.349 | Q149: 0 | R149: 0 | S149: 0 | T149: 0 | U149: 0 | V149: 0 | W149: 0 | X149: 0 | Y149: 0 | Z149: 25.7 | AA149: 0 | AB149: 37.1 | AC149: 0 | AD149: 447 | AE149: 76.3 | AF149: 63.9 | AG149: 5.29 | AH149: 267 | AI149: 60.7 | AJ149: 53.4 | AK149: 4.09 | AL149: 0 | AM149: 528 | AN149: 0.375 | AO149: 91.8 | AP149: 0 | AQ149: 0 | AR149: 0 | AS149: 0 | AT149: 0 | AU149: 0 | AV149: 0 | AW149: 0
A150: HSS14X10X5/16 | B150: HSS | C150: F | D150: 48.86537666 | E150: 13.4 | F150: 0 | G150: 14 | H150: 0 | I150: 0 | J150: 10 | K150: 0 | L150: 0 | M150: 0 | N150: 0 | O150: 0.3125 | P150: 0.291 | Q150: 0 | R150: 0 | S150: 0 | T150: 0 | U150: 0 | V150: 0 | W150: 0 | X150: 0 | Y150: 0 | Z150: 31.4 | AA150: 0 | AB150: 45.1 | AC150: 0 | AD150: 380 | AE150: 64.6 | AF150: 54.3 | AG150: 5.32 | AH150: 227 | AI150: 51.4 | AJ150: 45.5 | AK150: 4.12 | AL150: 0 | AM150: 446 | AN150: 0.3125 | AO150: 77.4 | AP150: 0 | AQ150: 0 | AR150: 0 | AS150: 0 | AT150: 0 | AU150: 0 | AV150: 0 | AW150: 0
A151: HSS14X10X5/8 | B151: HSS | C151: F | D151: 93.09940885 | E151: 25.7 | F151: 0 | G151: 14 | H151: 0 | I151: 0 | J151: 10 | K151: 0 | L151: 0 | M151: 0 | N151: 0 | O151: 0.625 | P151: 0.581 | Q151: 0 | R151: 0 | S151: 0 | T151: 0 | U151: 0 | V151: 0 | W151: 0 | X151: 0 | Y151: 0 | Z151: 14.2 | AA151: 0 | AB151: 21.1 | AC151: 0 | AD151: 687 | AE151: 120 | AF151: 98.2 | AG151: 5.17 | AH151: 407 | AI151: 95.1 | AJ151: 81.5 | AK151: 3.98 | AL151: 0 | AM151: 832 | AN151: 0.625 | AO151: 146 | AP151: 0 | AQ151: 0 | AR151: 0 | AS151: 0 | AT151: 0 | AU151: 0 | AV151: 0 | AW151: 0
A152: HSS14X14X1/2 | B152: HSS | C152: F | D152: 89.55387209 | E152: 24.6 | F152: 0 | G152: 14 | H152: 0 | I152: 0 | J152: 14 | K152: 0 | L152: 0 | M152: 0 | N152: 0 | O152: 0.5 | P152: 0.465 | Q152: 0 | R152: 0 | S152: 0 | T152: 0 | U152: 0 | V152: 0 | W152: 0 | X152: 0 | Y152: 0 | Z152: 27.1 | AA152: 0 | AB152: 27.1 | AC152: 0 | AD152: 743 | AE152: 124 | AF152: 106 | AG152: 5.49 | AH152: 0 | AI152: 0 | AJ152: 0 | AK152: 0 | AL152: 0 | AM152: 1170 | AN152: 0 | AO152: 170 | AP152: 0 | AQ152: 0 | AR152: 0 | AS152: 0 | AT152: 0 | AU152: 0 | AV152: 0 | AW152: 0
A153: HSS14X14X3/8 | B153: HSS | C153: F | D153: 68.2391265 | E153: 18.7 | F153: 0 | G153: 14 | H153: 0 | I153: 0 | J153: 14 | K153: 0 | L153: 0 | M153: 0 | N153: 0 | O153: 0.375 | P153: 0.349 | Q153: 0 | R153: 0 | S153: 0 | T153: 0 | U153: 0 | V153: 0 | W153: 0 | X153: 0 | Y153: 0 | Z153: 37.1 | AA153: 0 | AB153: 37.1 | AC153: 0 | AD153: 577 | AE153: 95.4 | AF153: 82.5 | AG153: 5.55 | AH153: 0 | AI153: 0 | AJ153: 0 | AK153: 0 | AL153: 0 | AM153: 900 | AN153: 0 | AO153: 130 | AP153: 0 | AQ153: 0 | AR153: 0 | AS153: 0 | AT153: 0 | AU153: 0 | AV153: 0 | AW153: 0
A154: HSS14X14X5/16 | B154: HSS | C154: F | D154: 57.3133251 | E154: 15.7 | F154: 0 | G154: 14 | H154: 0 | I154: 0 | J154: 14 | K154: 0 | L154: 0 | M154: 0 | N154: 0 | O154: 0.3125 | P154: 0.291 | Q154: 0 | R154: 0 | S154: 0 | T154: 0 | U154: 0 | V154: 0 | W154: 0 | X154: 0 | Y154: 0 | Z154: 45.1 | AA154: 0 | AB154: 45.1 | AC154: 0 | AD154: 490 | AE154: 80.5 | AF154: 69.9 | AG154: 5.58 | AH154: 0 | AI154: 0 | AJ154: 0 | AK154: 0 | AL154: 0 | AM154: 759 | AN154: 0 | AO154: 109 | AP154: 0 | AQ154: 0 | AR154: 0 | AS154: 0 | AT154: 0 | AU154: 0 | AV154: 0 | AW154: 0
A155: HSS14X14X5/8 | B155: HSS | C155: F | D155: 110 | E155: 30.3 | F155: 0 | G155: 14 | H155: 0 | I155: 0 | J155: 14 | K155: 0 | L155: 0 | M155: 0 | N155: 0 | O155: 0.625 | P155: 0.581 | Q155: 0 | R155: 0 | S155: 0 | T155: 0 | U155: 0 | V155: 0 | W155: 0 | X155: 0 | Y155: 0 | Z155: 21.1 | AA155: 0 | AB155: 21.1 | AC155: 0 | AD155: 897 | AE155: 151 | AF155: 128 | AG155: 5.44 | AH155: 0 | AI155: 0 | AJ155: 0 | AK155: 0 | AL155: 0 | AM155: 1430 | AN155: 0 | AO155: 208 | AP155: 0 | AQ155: 0 | AR155: 0 | AS155: 0 | AT155: 0 | AU155: 0 | AV155: 0 | AW155: 0
A156: HSS14X4X1/2 | B156: HSS | C156: F | D156: 55.52609431 | E156: 15.3 | F156: 0 | G156: 14 | H156: 0 | I156: 0 | J156: 4 | K156: 0 | L156: 0 | M156: 0 | N156: 0 | O156: 0.5 | P156: 0.465 | Q156: 0 | R156: 0 | S156: 0 | T156: 0 | U156: 0 | V156: 0 | W156: 0 | X156: 0 | Y156: 0 | Z156: 5.6 | AA156: 0 | AB156: 27.1 | AC156: 0 | AD156: 317 | AE156: 61 | AF156: 45.3 | AG156: 4.55 | AH156: 41.2 | AI156: 24.1 | AJ156: 20.6 | AK156: 1.64 | AL156: 0 | AM156: 127 | AN156: 0.5 | AO156: 44.1 | AP156: 0 | AQ156: 0 | AR156: 0 | AS156: 0 | AT156: 0 | AU156: 0 | AV156: 0 | AW156: 0
A157: HSS14X4X1/4 | B157: HSS | C157: F | D157: 29.24958964 | E157: 8.03 | F157: 0 | G157: 14 | H157: 0 | I157: 0 | J157: 4 | K157: 0 | L157: 0 | M157: 0 | N157: 0 | O157: 0.25 | P157: 0.233 | Q157: 0 | R157: 0 | S157: 0 | T157: 0 | U157: 0 | V157: 0 | W157: 0 | X157: 0 | Y157: 0 | Z157: 14.2 | AA157: 0 | AB157: 57.1 | AC157: 0 | AD157: 178 | AE157: 33.2 | AF157: 25.4 | AG157: 4.71 | AH157: 24.4 | AI157: 13.5 | AJ157: 12.2 | AK157: 1.74 | AL157: 0 | AM157: 72.4 | AN157: 0.25 | AO157: 24.1 | AP157: 0 | AQ157: 0 | AR157: 0 | AS157: 0 | AT157: 0 | AU157: 0 | AV157: 0 | AW157: 0
A158: HSS14X4X3/16 | B158: HSS | C158: F | D158: 22.11825352 | E158: 6.06 | F158: 0 | G158: 14 | H158: 0 | I158: 0 | J158: 4 | K158: 0 | L158: 0 | M158: 0 | N158: 0 | O158: 0.1875 | P158: 0.174 | Q158: 0 | R158: 0 | S158: 0 | T158: 0 | U158: 0 | V158: 0 | W158: 0 | X158: 0 | Y158: 0 | Z158: 20 | AA158: 0 | AB158: 77.5 | AC158: 0 | AD158: 137 | AE158: 25.3 | AF158: 19.5 | AG158: 4.74 | AH158: 19 | AI158: 10.3 | AJ158: 9.48 | AK158: 1.77 | AL158: 0 | AM158: 55.8 | AN158: 0.1875 | AO158: 18.4 | AP158: 0 | AQ158: 0 | AR158: 0 | AS158: 0 | AT158: 0 | AU158: 0 | AV158: 0 | AW158: 0
A159: HSS14X4X3/8 | B159: HSS | C159: F | D159: 42.74934284 | E159: 11.8 | F159: 0 | G159: 14 | H159: 0 | I159: 0 | J159: 4 | K159: 0 | L159: 0 | M159: 0 | N159: 0 | O159: 0.375 | P159: 0.349 | Q159: 0 | R159: 0 | S159: 0 | T159: 0 | U159: 0 | V159: 0 | W159: 0 | X159: 0 | Y159: 0 | Z159: 8.46 | AA159: 0 | AB159: 37.1 | AC159: 0 | AD159: 252 | AE159: 47.8 | AF159: 36 | AG159: 4.63 | AH159: 33.6 | AI159: 19.1 | AJ159: 16.8 | AK159: 1.69 | AL159: 0 | AM159: 102 | AN159: 0.375 | AO159: 34.6 | AP159: 0 | AQ159: 0 | AR159: 0 | AS159: 0 | AT159: 0 | AU159: 0 | AV159: 0 | AW159: 0
A160: HSS14X4X5/16 | B160: HSS | C160: F | D160: 36.08862666 | E160: 9.92 | F160: 0 | G160: 14 | H160: 0 | I160: 0 | J160: 4 | K160: 0 | L160: 0 | M160: 0 | N160: 0 | O160: 0.3125 | P160: 0.291 | Q160: 0 | R160: 0 | S160: 0 | T160: 0 | U160: 0 | V160: 0 | W160: 0 | X160: 0 | Y160: 0 | Z160: 10.7 | AA160: 0 | AB160: 45.1 | AC160: 0 | AD160: 216 | AE160: 40.6 | AF160: 30.9 | AG160: 4.67 | AH160: 29.2 | AI160: 16.4 | AJ160: 14.6 | AK160: 1.72 | AL160: 0 | AM160: 87.7 | AN160: 0.3125 | AO160: 29.5 | AP160: 0 | AQ160: 0 | AR160: 0 | AS160: 0 | AT160: 0 | AU160: 0 | AV160: 0 | AW160: 0
A161: HSS14X4X5/8 | B161: HSS | C161: F | D161: 67.59082551 | E161: 18.7 | F161: 0 | G161: 14 | H161: 0 | I161: 0 | J161: 4 | K161: 0 | L161: 0 | M161: 0 | N161: 0 | O161: 0.625 | P161: 0.581 | Q161: 0 | R161: 0 | S161: 0 | T161: 0 | U161: 0 | V161: 0 | W161: 0 | X161: 0 | Y161: 0 | Z161: 3.88 | AA161: 0 | AB161: 21.1 | AC161: 0 | AD161: 373 | AE161: 73.1 | AF161: 53.3 | AG161: 4.47 | AH161: 47.2 | AI161: 28.5 | AJ161: 23.6 | AK161: 1.59 | AL161: 0 | AM161: 148 | AN161: 0.625 | AO161: 52.6 | AP161: 0 | AQ161: 0 | AR161: 0 | AS161: 0 | AT161: 0 | AU161: 0 | AV161: 0 | AW161: 0
A162: HSS14X6X1/2 | B162: HSS | C162: F | D162: 62.33164987 | E162: 17.2 | F162: 0 | G162: 14 | H162: 0 | I162: 0 | J162: 6 | K162: 0 | L162: 0 | M162: 0 | N162: 0 | O162: 0.5 | P162: 0.465 | Q162: 0 | R162: 0 | S162: 0 | T162: 0 | U162: 0 | V162: 0 | W162: 0 | X162: 0 | Y162: 0 | Z162: 9.9 | AA162: 0 | AB162: 27.1 | AC162: 0 | AD162: 402 | AE162: 73.6 | AF162: 57.4 | AG162: 4.84 | AH162: 105 | AI162: 40.4 | AJ162: 35.1 | AK162: 2.48 | AL162: 0 | AM162: 279 | AN162: 0.5 | AO162: 69.3 | AP162: 0 | AQ162: 0 | AR162: 0 | AS162: 0 | AT162: 0 | AU162: 0 | AV162: 0 | AW162: 0
A163: HSS14X6X1/4 | B163: HSS | C163: F | D163: 32.65917297 | E163: 8.96 | F163: 0 | G163: 14 | H163: 0 | I163: 0 | J163: 6 | K163: 0 | L163: 0 | M163: 0 | N163: 0 | O163: 0.25 | P163: 0.233 | Q163: 0 | R163: 0 | S163: 0 | T163: 0 | U163: 0 | V163: 0 | W163: 0 | X163: 0 | Y163: 0 | Z163: 22.8 | AA163: 0 | AB163: 57.1 | AC163: 0 | AD163: 222 | AE163: 39.6 | AF163: 31.7 | AG163: 4.98 | AH163: 59.6 | AI163: 22 | AJ163: 19.9 | AK163: 2.58 | AL163: 0 | AM163: 152 | AN163: 0.25 | AO163: 36.9 | AP163: 0 | AQ163: 0 | AR163: 0 | AS163: 0 | AT163: 0 | AU163: 0 | AV163: 0 | AW163: 0
A164: HSS14X6X3/16 | B164: HSS | C164: F | D164: 24.66489241 | E164: 6.76 | F164: 0 | G164: 14 | H164: 0 | I164: 0 | J164: 6 | K164: 0 | L164: 0 | M164: 0 | N164: 0 | O164: 0.1875 | P164: 0.174 | Q164: 0 | R164: 0 | S164: 0 | T164: 0 | U164: 0 | V164: 0 | W164: 0 | X164: 0 | Y164: 0 | Z164: 31.5 | AA164: 0 | AB164: 77.5 | AC164: 0 | AD164: 170 | AE164: 30.1 | AF164: 24.3 | AG164: 5.01 | AH164: 45.9 | AI164: 16.7 | AJ164: 15.3 | AK164: 2.61 | AL164: 0 | AM164: 116 | AN164: 0.1875 | AO164: 28 | AP164: 0 | AQ164: 0 | AR164: 0 | AS164: 0 | AT164: 0 | AU164: 0 | AV164: 0 | AW164: 0
A165: HSS14X6X3/8 | B165: HSS | C165: F | D165: 47.85759284 | E165: 13.2 | F165: 0 | G165: 14 | H165: 0 | I165: 0 | J165: 6 | K165: 0 | L165: 0 | M165: 0 | N165: 0 | O165: 0.375 | P165: 0.349 | Q165: 0 | R165: 0 | S165: 0 | T165: 0 | U165: 0 | V165: 0 | W165: 0 | X165: 0 | Y165: 0 | Z165: 14.2 | AA165: 0 | AB165: 37.1 | AC165: 0 | AD165: 317 | AE165: 57.3 | AF165: 45.3 | AG165: 4.91 | AH165: 84.1 | AI165: 31.6 | AJ165: 28 | AK165: 2.53 | AL165: 0 | AM165: 219 | AN165: 0.375 | AO165: 53.7 | AP165: 0 | AQ165: 0 | AR165: 0 | AS165: 0 | AT165: 0 | AU165: 0 | AV165: 0 | AW165: 0
A166: HSS14X6X5/16 | B166: HSS | C166: F | D166: 40.34754333 | E166: 11.1 | F166: 0 | G166: 14 | H166: 0 | I166: 0 | J166: 6 | K166: 0 | L166: 0 | M166: 0 | N166: 0 | O166: 0.3125 | P166: 0.291 | Q166: 0 | R166: 0 | S166: 0 | T166: 0 | U166: 0 | V166: 0 | W166: 0 | X166: 0 | Y166: 0 | Z166: 17.6 | AA166: 0 | AB166: 45.1 | AC166: 0 | AD166: 271 | AE166: 48.6 | AF166: 38.7 | AG166: 4.94 | AH166: 72.3 | AI166: 26.9 | AJ166: 24.1 | AK166: 2.55 | AL166: 0 | AM166: 186 | AN166: 0.3125 | AO166: 45.5 | AP166: 0 | AQ166: 0 | AR166: 0 | AS166: 0 | AT166: 0 | AU166: 0 | AV166: 0 | AW166: 0
A167: HSS14X6X5/8 | B167: HSS | C167: F | D167: 76.09368662 | E167: 21 | F167: 0 | G167: 14 | H167: 0 | I167: 0 | J167: 10 | K167: 0 | L167: 0 | M167: 0 | N167: 0 | O167: 0.625 | P167: 0.581 | Q167: 0 | R167: 0 | S167: 0 | T167: 0 | U167: 0 | V167: 0 | W167: 0 | X167: 0 | Y167: 0 | Z167: 7.33 | AA167: 0 | AB167: 21.1 | AC167: 0 | AD167: 478 | AE167: 88.7 | AF167: 68.3 | AG167: 4.77 | AH167: 124 | AI167: 48.4 | AJ167: 41.2 | AK167: 2.43 | AL167: 0 | AM167: 334 | AN167: 0.625 | AO167: 83.7 | AP167: 0 | AQ167: 0 | AR167: 0 | AS167: 0 | AT167: 0 | AU167: 0 | AV167: 0 | AW167: 0
A168: HSS16X0.250 | B168: HSS | C168: F | D168: 42.09243282 | E168: 11.5 | F168: 0 | G168: 0 | H168: 16 | I168: 0 | J168: 0 | K168: 0 | L168: 0 | M168: 0 | N168: 0 | O168: 0.25 | P168: 0.233 | Q168: 0 | R168: 0 | S168: 0 | T168: 0 | U168: 0 | V168: 0 | W168: 0 | X168: 0 | Y168: 0 | Z168: 0 | AA168: 0 | AB168: 0 | AC168: 68.7 | AD168: 359 | AE168: 57.9 | AF168: 44.8 | AG168: 5.58 | AH168: 359 | AI168: 57.9 | AJ168: 44.8 | AK168: 5.58 | AL168: 0 | AM168: 717 | AN168: 0 | AO168: 89.7 | AP168: 0 | AQ168: 0 | AR168: 0 | AS168: 0 | AT168: 0 | AU168: 0 | AV168: 0 | AW168: 0
A169: HSS16X0.312 | B169: HSS | C169: F | D169: 52.32456606 | E169: 14.4 | F169: 0 | G169: 0 | H169: 16 | I169: 0 | J169: 0 | K169: 0 | L169: 0 | M169: 0 | N169: 0 | O169: 0.3125 | P169: 0.291 | Q169: 0 | R169: 0 | S169: 0 | T169: 0 | U169: 0 | V169: 0 | W169: 0 | X169: 0 | Y169: 0 | Z169: 0 | AA169: 0 | AB169: 0 | AC169: 55 | AD169: 443 | AE169: 71.8 | AF169: 55.4 | AG169: 5.55 | AH169: 443 | AI169: 71.8 | AJ169: 55.4 | AK169: 5.55 | AL169: 0 | AM169: 886 | AN169: 0 | AO169: 111 | AP169: 0 | AQ169: 0 | AR169: 0 | AS169: 0 | AT169: 0 | AU169: 0 | AV169: 0 | AW169: 0
A170: HSS16X0.375 | B170: HSS | C170: F | D170: 62.63754884 | E170: 17.2 | F170: 0 | G170: 0 | H170: 16 | I170: 0 | J170: 0 | K170: 0 | L170: 0 | M170: 0 | N170: 0 | O170: 0.375 | P170: 0.349 | Q170: 0 | R170: 0 | S170: 0 | T170: 0 | U170: 0 | V170: 0 | W170: 0 | X170: 0 | Y170: 0 | Z170: 0 | AA170: 0 | AB170: 0 | AC170: 45.8 | AD170: 526 | AE170: 85.5 | AF170: 65.7 | AG170: 5.53 | AH170: 526 | AI170: 85.5 | AJ170: 65.7 | AK170: 5.53 | AL170: 0 | AM170: 1050 | AN170: 0 | AO170: 131 | AP170: 0 | AQ170: 0 | AR170: 0 | AS170: 0 | AT170: 0 | AU170: 0 | AV170: 0 | AW170: 0
A171: HSS16X0.438 | B171: HSS | C171: F | D171: 72.86567327 | E171: 19.9 | F171: 0 | G171: 0 | H171: 16 | I171: 0 | J171: 0 | K171: 0 | L171: 0 | M171: 0 | N171: 0 | O171: 0.4375 | P171: 0.407 | Q171: 0 | R171: 0 | S171: 0 | T171: 0 | U171: 0 | V171: 0 | W171: 0 | X171: 0 | Y171: 0 | Z171: 0 | AA171: 0 | AB171: 0 | AC171: 39.3 | AD171: 606 | AE171: 99 | AF171: 75.8 | AG171: 5.51 | AH171: 606 | AI171: 99 | AJ171: 75.8 | AK171: 5.51 | AL171: 0 | AM171: 1210 | AN171: 0 | AO171: 152 | AP171: 0 | AQ171: 0 | AR171: 0 | AS171: 0 | AT171: 0 | AU171: 0 | AV171: 0 | AW171: 0
A172: HSS16X0.500 | B172: HSS | C172: F | D172: 82.84859793 | E172: 22.7 | F172: 0 | G172: 0 | H172: 16 | I172: 0 | J172: 0 | K172: 0 | L172: 0 | M172: 0 | N172: 0 | O172: 0.5 | P172: 0.465 | Q172: 0 | R172: 0 | S172: 0 | T172: 0 | U172: 0 | V172: 0 | W172: 0 | X172: 0 | Y172: 0 | Z172: 0 | AA172: 0 | AB172: 0 | AC172: 34.4 | AD172: 685 | AE172: 112 | AF172: 85.7 | AG172: 5.49 | AH172: 685 | AI172: 112 | AJ172: 85.7 | AK172: 5.49 | AL172: 0 | AM172: 1370 | AN172: 0 | AO172: 171 | AP172: 0 | AQ172: 0 | AR172: 0 | AS172: 0 | AT172: 0 | AU172: 0 | AV172: 0 | AW172: 0
A173: HSS16X0.625 | B173: HSS | C173: F | D173: 103 | E173: 28.1 | F173: 0 | G173: 0 | H173: 16 | I173: 0 | J173: 0 | K173: 0 | L173: 0 | M173: 0 | N173: 0 | O173: 0.625 | P173: 0.581 | Q173: 0 | R173: 0 | S173: 0 | T173: 0 | U173: 0 | V173: 0 | W173: 0 | X173: 0 | Y173: 0 | Z173: 0 | AA173: 0 | AB173: 0 | AC173: 27.5 | AD173: 838 | AE173: 138 | AF173: 105 | AG173: 5.46 | AH173: 838 | AI173: 138 | AJ173: 105 | AK173: 5.46 | AL173: 0 | AM173: 1680 | AN173: 0 | AO173: 209 | AP173: 0 | AQ173: 0 | AR173: 0 | AS173: 0 | AT173: 0 | AU173: 0 | AV173: 0 | AW173: 0
A174: HSS16X12X1/2 | B174: HSS | C174: F | D174: 89.55387209 | E174: 24.6 | F174: 0 | G174: 16 | H174: 0 | I174: 0 | J174: 12 | K174: 0 | L174: 0 | M174: 0 | N174: 0 | O174: 0.5 | P174: 0.465 | Q174: 0 | R174: 0 | S174: 0 | T174: 0 | U174: 0 | V174: 0 | W174: 0 | X174: 0 | Y174: 0 | Z174: 22.8 | AA174: 0 | AB174: 31.4 | AC174: 0 | AD174: 904 | AE174: 135 | AF174: 113 | AG174: 6.06 | AH174: 581 | AI174: 111 | AJ174: 96.8 | AK174: 4.86 | AL174: 0 | AM174: 1120 | AN174: 0.5 | AO174: 166 | AP174: 0 | AQ174: 0 | AR174: 0 | AS174: 0 | AT174: 0 | AU174: 0 | AV174: 0 | AW174: 0
A175: HSS16X12X3/8 | B175: HSS | C175: F | D175: 68.29059284 | E175: 18.7 | F175: 0 | G175: 16 | H175: 0 | I175: 0 | J175: 12 | K175: 0 | L175: 0 | M175: 0 | N175: 0 | O175: 0.375 | P175: 0.349 | Q175: 0 | R175: 0 | S175: 0 | T175: 0 | U175: 0 | V175: 0 | W175: 0 | X175: 0 | Y175: 0 | Z175: 31.4 | AA175: 0 | AB175: 42.8 | AC175: 0 | AD175: 702 | AE175: 104 | AF175: 87.7 | AG175: 6.12 | AH175: 452 | AI175: 85.5 | AJ175: 75.3 | AK175: 4.91 | AL175: 0 | AM175: 862 | AN175: 0.375 | AO175: 127 | AP175: 0 | AQ175: 0 | AR175: 0 | AS175: 0 | AT175: 0 | AU175: 0 | AV175: 0 | AW175: 0
A176: HSS16X12X5/16 | B176: HSS | C176: F | D176: 57.38320999 | E176: 15.7 | F176: 0 | G176: 16 | H176: 0 | I176: 0 | J176: 12 | K176: 0 | L176: 0 | M176: 0 | N176: 0 | O176: 0.3125 | P176: 0.291 | Q176: 0 | R176: 0 | S176: 0 | T176: 0 | U176: 0 | V176: 0 | W176: 0 | X176: 0 | Y176: 0 | Z176: 38.2 | AA176: 0 | AB176: 52 | AC176: 0 | AD176: 595 | AE176: 87.7 | AF176: 74.4 | AG176: 6.15 | AH176: 384 | AI176: 72.2 | AJ176: 64 | AK176: 4.94 | AL176: 0 | AM176: 727 | AN176: 0.3125 | AO176: 107 | AP176: 0 | AQ176: 0 | AR176: 0 | AS176: 0 | AT176: 0 | AU176: 0 | AV176: 0 | AW176: 0
A177: HSS16X12X5/8 | B177: HSS | C177: F | D177: 110 | E177: 30.3 | F177: 0 | G177: 16 | H177: 0 | I177: 0 | J177: 12 | K177: 0 | L177: 0 | M177: 0 | N177: 0 | O177: 0.625 | P177: 0.581 | Q177: 0 | R177: 0 | S177: 0 | T177: 0 | U177: 0 | V177: 0 | W177: 0 | X177: 0 | Y177: 0 | Z177: 17.7 | AA177: 0 | AB177: 24.5 | AC177: 0 | AD177: 1090 | AE177: 165 | AF177: 136 | AG177: 6 | AH177: 700 | AI177: 135 | AJ177: 117 | AK177: 4.8 | AL177: 0 | AM177: 1370 | AN177: 0.625 | AO177: 204 | AP177: 0 | AQ177: 0 | AR177: 0 | AS177: 0 | AT177: 0 | AU177: 0 | AV177: 0 | AW177: 0
A178: HSS16X16X1/2 | B178: HSS | C178: F | D178: 103 | E178: 28.3 | F178: 0 | G178: 16 | H178: 0 | I178: 0 | J178: 16 | K178: 0 | L178: 0 | M178: 0 | N178: 0 | O178: 0.5 | P178: 0.465 | Q178: 0 | R178: 0 | S178: 0 | T178: 0 | U178: 0 | V178: 0 | W178: 0 | X178: 0 | Y178: 0 | Z178: 31.4 | AA178: 0 | AB178: 31.4 | AC178: 0 | AD178: 1130 | AE178: 164 | AF178: 141 | AG178: 6.31 | AH178: 0 | AI178: 0 | AJ178: 0 | AK178: 0 | AL178: 0 | AM178: 1770 | AN178: 0 | AO178: 224 | AP178: 0 | AQ178: 0 | AR178: 0 | AS178: 0 | AT178: 0 | AU178: 0 | AV178: 0 | AW178: 0
A179: HSS16X16X3/8 | B179: HSS | C179: F | D179: 78.44745984 | E179: 21.5 | F179: 0 | G179: 16 | H179: 0 | I179: 0 | J179: 16 | K179: 0 | L179: 0 | M179: 0 | N179: 0 | O179: 0.375 | P179: 0.349 | Q179: 0 | R179: 0 | S179: 0 | T179: 0 | U179: 0 | V179: 0 | W179: 0 | X179: 0 | Y179: 0 | Z179: 42.8 | AA179: 0 | AB179: 42.8 | AC179: 0 | AD179: 873 | AE179: 126 | AF179: 109 | AG179: 6.37 | AH179: 0 | AI179: 0 | AJ179: 0 | AK179: 0 | AL179: 0 | AM179: 1350 | AN179: 0 | AO179: 171 | AP179: 0 | AQ179: 0 | AR179: 0 | AS179: 0 | AT179: 0 | AU179: 0 | AV179: 0 | AW179: 0
A180: HSS16X16X5/16 | B180: HSS | C180: F | D180: 65.82026955 | E180: 18.1 | F180: 0 | G180: 16 | H180: 0 | I180: 0 | J180: 16 | K180: 0 | L180: 0 | M180: 0 | N180: 0 | O180: 0.3125 | P180: 0.291 | Q180: 0 | R180: 0 | S180: 0 | T180: 0 | U180: 0 | V180: 0 | W180: 0 | X180: 0 | Y180: 0 | Z180: 52 | AA180: 0 | AB180: 52 | AC180: 0 | AD180: 739 | AE180: 106 | AF180: 92.3 | AG180: 6.39 | AH180: 0 | AI180: 0 | AJ180: 0 | AK180: 0 | AL180: 0 | AM180: 1140 | AN180: 0 | AO180: 144 | AP180: 0 | AQ180: 0 | AR180: 0 | AS180: 0 | AT180: 0 | AU180: 0 | AV180: 0 | AW180: 0
A181: HSS16X16X5/8 | B181: HSS | C181: F | D181: 127 | E181: 35 | F181: 0 | G181: 16 | H181: 0 | I181: 0 | J181: 16 | K181: 0 | L181: 0 | M181: 0 | N181: 0 | O181: 0.625 | P181: 0.581 | Q181: 0 | R181: 0 | S181: 0 | T181: 0 | U181: 0 | V181: 0 | W181: 0 | X181: 0 | Y181: 0 | Z181: 24.5 | AA181: 0 | AB181: 24.5 | AC181: 0 | AD181: 1370 | AE181: 200 | AF181: 171 | AG181: 6.25 | AH181: 0 | AI181: 0 | AJ181: 0 | AK181: 0 | AL181: 0 | AM181: 2170 | AN181: 0 | AO181: 276 | AP181: 0 | AQ181: 0 | AR181: 0 | AS181: 0 | AT181: 0 | AU181: 0 | AV181: 0 | AW181: 0
A182: HSS16X4X1/2 | B182: HSS | C182: F | D182: 62.33164987 | E182: 17.2 | F182: 0 | G182: 16 | H182: 0 | I182: 0 | J182: 4 | K182: 0 | L182: 0 | M182: 0 | N182: 0 | O182: 0.5 | P182: 0.465 | Q182: 0 | R182: 0 | S182: 0 | T182: 0 | U182: 0 | V182: 0 | W182: 0 | X182: 0 | Y182: 0 | Z182: 5.6 | AA182: 0 | AB182: 31.4 | AC182: 0 | AD182: 455 | AE182: 77.3 | AF182: 56.9 | AG182: 5.15 | AH182: 47 | AI182: 27.4 | AJ182: 23.5 | AK182: 1.65 | AL182: 0 | AM182: 150 | AN182: 0.5 | AO182: 50.7 | AP182: 0 | AQ182: 0 | AR182: 0 | AS182: 0 | AT182: 0 | AU182: 0 | AV182: 0 | AW182: 0
A183: HSS16X4X1/4 | B183: HSS | C183: F | D183: 32.65917297 | E183: 8.96 | F183: 0 | G183: 16 | H183: 0 | I183: 0 | J183: 4 | K183: 0 | L183: 0 | M183: 0 | N183: 0 | O183: 0.25 | P183: 0.233 | Q183: 0 | R183: 0 | S183: 0 | T183: 0 | U183: 0 | V183: 0 | W183: 0 | X183: 0 | Y183: 0 | Z183: 14.2 | AA183: 0 | AB183: 65.7 | AC183: 0 | AD183: 253 | AE183: 41.7 | AF183: 31.6 | AG183: 5.31 | AH183: 27.7 | AI183: 15.2 | AJ183: 13.8 | AK183: 1.76 | AL183: 0 | AM183: 85.2 | AN183: 0.25 | AO183: 27.6 | AP183: 0 | AQ183: 0 | AR183: 0 | AS183: 0 | AT183: 0 | AU183: 0 | AV183: 0 | AW183: 0
A184: HSS16X4X3/16 | B184: HSS | C184: F | D184: 24.66489241 | E184: 6.76 | F184: 0 | G184: 14 | H184: 0 | I184: 0 | J184: 4 | K184: 0 | L184: 0 | M184: 0 | N184: 0 | O184: 0.1875 | P184: 0.174 | Q184: 0 | R184: 0 | S184: 0 | T184: 0 | U184: 0 | V184: 0 | W184: 0 | X184: 0 | Y184: 0 | Z184: 20 | AA184: 0 | AB184: 89 | AC184: 0 | AD184: 193 | AE184: 31.7 | AF184: 24.2 | AG184: 5.35 | AH184: 21.5 | AI184: 11.7 | AJ184: 10.8 | AK184: 1.78 | AL184: 0 | AM184: 65.5 | AN184: 0.1875 | AO184: 21.1 | AP184: 0 | AQ184: 0 | AR184: 0 | AS184: 0 | AT184: 0 | AU184: 0 | AV184: 0 | AW184: 0
A185: HSS16X4X3/8 | B185: HSS | C185: F | D185: 47.85759284 | E185: 13.2 | F185: 0 | G185: 16 | H185: 0 | I185: 0 | J185: 4 | K185: 0 | L185: 0 | M185: 0 | N185: 0 | O185: 0.375 | P185: 0.349 | Q185: 0 | R185: 0 | S185: 0 | T185: 0 | U185: 0 | V185: 0 | W185: 0 | X185: 0 | Y185: 0 | Z185: 8.46 | AA185: 0 | AB185: 42.8 | AC185: 0 | AD185: 360 | AE185: 60.2 | AF185: 45 | AG185: 5.23 | AH185: 38.3 | AI185: 21.7 | AJ185: 19.1 | AK185: 1.71 | AL185: 0 | AM185: 120 | AN185: 0.375 | AO185: 39.7 | AP185: 0 | AQ185: 0 | AR185: 0 | AS185: 0 | AT185: 0 | AU185: 0 | AV185: 0 | AW185: 0
A186: HSS16X4X5/16 | B186: HSS | C186: F | D186: 40.34754333 | E186: 11.1 | F186: 0 | G186: 16 | H186: 0 | I186: 0 | J186: 4 | K186: 0 | L186: 0 | M186: 0 | N186: 0 | O186: 0.3125 | P186: 0.291 | Q186: 0 | R186: 0 | S186: 0 | T186: 0 | U186: 0 | V186: 0 | W186: 0 | X186: 0 | Y186: 0 | Z186: 10.7 | AA186: 0 | AB186: 52 | AC186: 0 | AD186: 308 | AE186: 51.1 | AF186: 38.5 | AG186: 5.27 | AH186: 33.2 | AI186: 18.5 | AJ186: 16.6 | AK186: 1.73 | AL186: 0 | AM186: 103 | AN186: 0.3125 | AO186: 33.8 | AP186: 0 | AQ186: 0 | AR186: 0 | AS186: 0 | AT186: 0 | AU186: 0 | AV186: 0 | AW186: 0
A187: HSS16X4X5/8 | B187: HSS | C187: F | D187: 76.09368662 | E187: 21 | F187: 0 | G187: 16 | H187: 0 | I187: 0 | J187: 4 | K187: 0 | L187: 0 | M187: 0 | N187: 0 | O187: 0.625 | P187: 0.581 | Q187: 0 | R187: 0 | S187: 0 | T187: 0 | U187: 0 | V187: 0 | W187: 0 | X187: 0 | Y187: 0 | Z187: 3.88 | AA187: 0 | AB187: 24.5 | AC187: 0 | AD187: 539 | AE187: 92.9 | AF187: 67.3 | AG187: 5.06 | AH187: 54.1 | AI187: 32.5 | AJ187: 27 | AK187: 1.6 | AL187: 0 | AM187: 174 | AN187: 0.625 | AO187: 60.5 | AP187: 0 | AQ187: 0 | AR187: 0 | AS187: 0 | AT187: 0 | AU187: 0 | AV187: 0 | AW187: 0
A188: HSS16X8X1/2 | B188: HSS | C188: F | D188: 75.94276098 | E188: 20.9 | F188: 0 | G188: 16 | H188: 0 | I188: 0 | J188: 8 | K188: 0 | L188: 0 | M188: 0 | N188: 0 | O188: 0.5 | P188: 0.465 | Q188: 0 | R188: 0 | S188: 0 | T188: 0 | U188: 0 | V188: 0 | W188: 0 | X188: 0 | Y188: 0 | Z188: 14.2 | AA188: 0 | AB188: 31.4 | AC188: 0 | AD188: 679 | AE188: 106 | AF188: 84.9 | AG188: 5.7 | AH188: 230 | AI188: 65.5 | AJ188: 57.6 | AK188: 3.32 | AL188: 0 | AM188: 563 | AN188: 0.5 | AO188: 108 | AP188: 0 | AQ188: 0 | AR188: 0 | AS188: 0 | AT188: 0 | AU188: 0 | AV188: 0 | AW188: 0
A189: HSS16X8X1/4 | B189: HSS | C189: F | D189: 39.47833964 | E189: 10.8 | F189: 0 | G189: 16 | H189: 0 | I189: 0 | J189: 8 | K189: 0 | L189: 0 | M189: 0 | N189: 0 | O189: 0.25 | P189: 0.233 | Q189: 0 | R189: 0 | S189: 0 | T189: 0 | U189: 0 | V189: 0 | W189: 0 | X189: 0 | Y189: 0 | Z189: 31.3 | AA189: 0 | AB189: 65.7 | AC189: 0 | AD189: 368 | AE189: 56.4 | AF189: 46.1 | AG189: 5.83 | AH189: 127 | AI189: 35 | AJ189: 31.7 | AK189: 3.42 | AL189: 0 | AM189: 300 | AN189: 0.25 | AO189: 57 | AP189: 0 | AQ189: 0 | AR189: 0 | AS189: 0 | AT189: 0 | AU189: 0 | AV189: 0 | AW189: 0
A190: HSS16X8X3/8 | B190: HSS | C190: F | D190: 58.07409284 | E190: 16 | F190: 0 | G190: 16 | H190: 0 | I190: 0 | J190: 8 | K190: 0 | L190: 0 | M190: 0 | N190: 0 | O190: 0.375 | P190: 0.349 | Q190: 0 | R190: 0 | S190: 0 | T190: 0 | U190: 0 | V190: 0 | W190: 0 | X190: 0 | Y190: 0 | Z190: 19.9 | AA190: 0 | AB190: 42.8 | AC190: 0 | AD190: 531 | AE190: 82.1 | AF190: 66.3 | AG190: 5.77 | AH190: 181 | AI190: 50.8 | AJ190: 45.3 | AK190: 3.37 | AL190: 0 | AM190: 436 | AN190: 0.375 | AO190: 83.4 | AP190: 0 | AQ190: 0 | AR190: 0 | AS190: 0 | AT190: 0 | AU190: 0 | AV190: 0 | AW190: 0
A191: HSS16X8X5/16 | B191: HSS | C191: F | D191: 48.86537666 | E191: 13.4 | F191: 0 | G191: 16 | H191: 0 | I191: 0 | J191: 8 | K191: 0 | L191: 0 | M191: 0 | N191: 0 | O191: 0.3125 | P191: 0.291 | Q191: 0 | R191: 0 | S191: 0 | T191: 0 | U191: 0 | V191: 0 | W191: 0 | X191: 0 | Y191: 0 | Z191: 24.5 | AA191: 0 | AB191: 52 | AC191: 0 | AD191: 451 | AE191: 69.4 | AF191: 56.4 | AG191: 5.8 | AH191: 155 | AI191: 43 | AJ191: 38.7 | AK191: 3.4 | AL191: 0 | AM191: 369 | AN191: 0.3125 | AO191: 70.4 | AP191: 0 | AQ191: 0 | AR191: 0 | AS191: 0 | AT191: 0 | AU191: 0 | AV191: 0 | AW191: 0
A192: HSS16X8X5/8 | B192: HSS | C192: F | D192: 93.09940885 | E192: 25.7 | F192: 0 | G192: 16 | H192: 0 | I192: 0 | J192: 8 | K192: 0 | L192: 0 | M192: 0 | N192: 0 | O192: 0.3125 | P192: 0.581 | Q192: 0 | R192: 0 | S192: 0 | T192: 0 | U192: 0 | V192: 0 | W192: 0 | X192: 0 | Y192: 0 | Z192: 10.8 | AA192: 0 | AB192: 24.5 | AC192: 0 | AD192: 815 | AE192: 129 | AF192: 102 | AG192: 5.64 | AH192: 274 | AI192: 79.2 | AJ192: 68.6 | AK192: 3.27 | AL192: 0 | AM192: 681 | AN192: 0.625 | AO192: 132 | AP192: 0 | AQ192: 0 | AR192: 0 | AS192: 0 | AT192: 0 | AU192: 0 | AV192: 0 | AW192: 0
A193: HSS18X0.375 | B193: HSS | C193: F | D193: 70.65515509 | E193: 19.4 | F193: 0 | G193: 0 | H193: 18 | I193: 0 | J193: 0 | K193: 0 | L193: 0 | M193: 0 | N193: 0 | O193: 0.375 | P193: 0.349 | Q193: 0 | R193: 0 | S193: 0 | T193: 0 | U193: 0 | V193: 0 | W193: 0 | X193: 0 | Y193: 0 | Z193: 0 | AA193: 0 | AB193: 0 | AC193: 51.6 | AD193: 754 | AE193: 109 | AF193: 83.8 | AG193: 6.24 | AH193: 754 | AI193: 109 | AJ193: 83.8 | AK193: 6.24 | AL193: 0 | AM193: 1510 | AN193: 0 | AO193: 168 | AP193: 0 | AQ193: 0 | AR193: 0 | AS193: 0 | AT193: 0 | AU193: 0 | AV193: 0 | AW193: 0
A194: HSS18X0.500 | B194: HSS | C194: F | D194: 93.5387396 | E194: 25.6 | F194: 0 | G194: 0 | H194: 18 | I194: 0 | J194: 0 | K194: 0 | L194: 0 | M194: 0 | N194: 0 | O194: 0.5 | P194: 0.465 | Q194: 0 | R194: 0 | S194: 0 | T194: 0 | U194: 0 | V194: 0 | W194: 0 | X194: 0 | Y194: 0 | Z194: 0 | AA194: 0 | AB194: 0 | AC194: 38.7 | AD194: 985 | AE194: 143 | AF194: 109 | AG194: 6.2 | AH194: 985 | AI194: 143 | AJ194: 109 | AK194: 6.2 | AL194: 0 | AM194: 1970 | AN194: 0 | AO194: 219 | AP194: 0 | AQ194: 0 | AR194: 0 | AS194: 0 | AT194: 0 | AU194: 0 | AV194: 0 | AW194: 0
A195: HSS18X6X1/2 | B195: HSS | C195: F | D195: 75.94276098 | E195: 20.9 | F195: 0 | G195: 18 | H195: 0 | I195: 0 | J195: 6 | K195: 0 | L195: 0 | M195: 0 | N195: 0 | O195: 0.5 | P195: 0.465 | Q195: 0 | R195: 0 | S195: 0 | T195: 0 | U195: 0 | V195: 0 | W195: 0 | X195: 0 | Y195: 0 | Z195: 9.9 | AA195: 0 | AB195: 35.7 | AC195: 0 | AD195: 770 | AE195: 112 | AF195: 85.6 | AG195: 6.07 | AH195: 134 | AI195: 50.7 | AJ195: 44.6 | AK195: 2.53 | AL195: 0 | AM195: 387 | AN195: 0.5 | AO195: 89.9 | AP195: 0 | AQ195: 0 | AR195: 0 | AS195: 0 | AT195: 0 | AU195: 0 | AV195: 0 | AW195: 0
A196: HSS18X6X1/4 | B196: HSS | C196: F | D196: 39.47833964 | E196: 10.8 | F196: 0 | G196: 18 | H196: 0 | I196: 0 | J196: 6 | K196: 0 | L196: 0 | M196: 0 | N196: 0 | O196: 0.25 | P196: 0.233 | Q196: 0 | R196: 0 | S196: 0 | T196: 0 | U196: 0 | V196: 0 | W196: 0 | X196: 0 | Y196: 0 | Z196: 22.8 | AA196: 0 | AB196: 74.3 | AC196: 0 | AD196: 419 | AE196: 59.4 | AF196: 46.5 | AG196: 6.22 | AH196: 75.1 | AI196: 27.3 | AJ196: 25 | AK196: 2.63 | AL196: 0 | AM196: 210 | AN196: 0.25 | AO196: 47.7 | AP196: 0 | AQ196: 0 | AR196: 0 | AS196: 0 | AT196: 0 | AU196: 0 | AV196: 0 | AW196: 0
A197: HSS18X6X3/8 | B197: HSS | C197: F | D197: 58.07409284 | E197: 16 | F197: 0 | G197: 18 | H197: 0 | I197: 0 | J197: 6 | K197: 0 | L197: 0 | M197: 0 | N197: 0 | O197: 0.375 | P197: 0.349 | Q197: 0 | R197: 0 | S197: 0 | T197: 0 | U197: 0 | V197: 0 | W197: 0 | X197: 0 | Y197: 0 | Z197: 14.2 | AA197: 0 | AB197: 48.6 | AC197: 0 | AD197: 602 | AE197: 86.4 | AF197: 66.9 | AG197: 6.15 | AH197: 106 | AI197: 39.5 | AJ197: 35.5 | AK197: 2.58 | AL197: 0 | AM197: 302 | AN197: 0.375 | AO197: 69.5 | AP197: 0 | AQ197: 0 | AR197: 0 | AS197: 0 | AT197: 0 | AU197: 0 | AV197: 0 | AW197: 0
A198: HSS18X6X5/16 | B198: HSS | C198: F | D198: 48.86537666 | E198: 13.4 | F198: 0 | G198: 18 | H198: 0 | I198: 0 | J198: 6 | K198: 0 | L198: 0 | M198: 0 | N198: 0 | O198: 0.3125 | P198: 0.291 | Q198: 0 | R198: 0 | S198: 0 | T198: 0 | U198: 0 | V198: 0 | W198: 0 | X198: 0 | Y198: 0 | Z198: 17.6 | AA198: 0 | AB198: 58.9 | AC198: 0 | AD198: 513 | AE198: 73.1 | AF198: 57 | AG198: 6.18 | AH198: 91.3 | AI198: 33.5 | AJ198: 30.4 | AK198: 2.61 | AL198: 0 | AM198: 257 | AN198: 0.3125 | AO198: 58.7 | AP198: 0 | AQ198: 0 | AR198: 0 | AS198: 0 | AT198: 0 | AU198: 0 | AV198: 0 | AW198: 0
A199: HSS18X6X5/8 | B199: HSS | C199: F | D199: 93.09940885 | E199: 25.7 | F199: 0 | G199: 18 | H199: 0 | I199: 0 | J199: 6 | K199: 0 | L199: 0 | M199: 0 | N199: 0 | O199: 0.625 | P199: 0.581 | Q199: 0 | R199: 0 | S199: 0 | T199: 0 | U199: 0 | V199: 0 | W199: 0 | X199: 0 | Y199: 0 | Z199: 7.33 | AA199: 0 | AB199: 28 | AC199: 0 | AD199: 923 | AE199: 135 | AF199: 103 | AG199: 6 | AH199: 158 | AI199: 61 | AJ199: 52.7 | AK199: 2.48 | AL199: 0 | AM199: 462 | AN199: 0.325 | AO199: 109 | AP199: 0 | AQ199: 0 | AR199: 0 | AS199: 0 | AT199: 0 | AU199: 0 | AV199: 0 | AW199: 0
A200: HSS2.375X0.125 | B200: HSS | C200: F | D200: 3.006602344 | E200: 0.823 | F200: 0 | G200: 0 | H200: 2.375 | I200: 0 | J200: 0 | K200: 0 | L200: 0 | M200: 0 | N200: 0 | O200: 0.125 | P200: 0.116 | Q200: 0 | R200: 0 | S200: 0 | T200: 0 | U200: 0 | V200: 0 | W200: 0 | X200: 0 | Y200: 0 | Z200: 0 | AA200: 0 | AB200: 0 | AC200: 20.5 | AD200: 0.527 | AE200: 0.592 | AF200: 0.443 | AG200: 0.8 | AH200: 0.527 | AI200: 0.592 | AJ200: 0.443 | AK200: 0.8 | AL200: 0 | AM200: 1.05 | AN200: 0 | AO200: 0.887 | AP200: 0 | AQ200: 0 | AR200: 0 | AS200: 0 | AT200: 0 | AU200: 0 | AV200: 0 | AW200: 0
... 693 more rows
